Workbook

Sheet AER only (hidden)
B1: Data in these columns used for data validation and database purposes.
B2: Date last modified: | C2: 2017-01-16 | D2: added (Albury and Victora) for AGN
C3: 2016-10-17 | D3: updated TransGrid's correct legal name, corrected TasNetworks (T) to June financial year
C4: 2017-02-01 | D4: inserted Power and Water, added NRs (dms_FeederCat_1 and dms_FeederCat_2)
C5: 2017-03-03 | D5: inserted AEMO as a business | AB5: FOR ELECTRICITY BUSINESSES ONLY
C6: 2018-03-28 | D6: major changes to accommodate STPIS
C7: Template Version | D7: 5 | AB7: Feeder Types | AF7: TasNetworks (D) | AG7: MAIFI flag | AH7: Feeder Names
AB9: CBD | AC9: Urban | AD9: Short rural | AE9: long rural | AF9: EXTRA
B10: dms_TradingName_List | C10: dms_TradingNameFull_List | D10: dms_ABN_List | E10: dms_JurisdictionList | F10: dms_Sector_List | G10: dms_Segment_List | H10: dms_FormControl_List | I10: dms_RPT_List | J10: dms_RPTMonth_List | K10: dms_CRCPlength_List | L10: dms_FRCPlength_List | M10: dms_663_List | N10: dms_DeterminationRef_List | O10: dms_Addr1_List | P10: dms_Addr2_List | Q10: dms_Suburb_List | R10: dms_State_List | S10: dms_PostCode_List | T10: dms_PAddr1_List | U10: dms_PAddr2_List | V10: dms_PSuburb_List | W10: dms_PState_List | X10: dms_PPostCode_List | Y10: dms_ContactName1_List | Z10: dms_ContactPh1_List | AA10: dms_ContactEmail_List | AB10: dms_CBD_flag | AC10: dms_Urban_flag | AD10: dms_ShortRural_flag | AE10: dms_LongRural_flag | AF10: dms_FeederType_5_flag | AG10: dms_MAIFI_flag_List | AH10: dms_FeederName_1 | AI10: dms_FeederName_2 | AJ10: dms_FeederName_3 | AK10: dms_FeederName_4 | AL10: dms_FeederName_5 | AM10: dms_Public_Lighting_List | AN10: Column1
B11: ActewAGL Distribution | C11: ActewAGL Distribution | D11: 76670568688 | E11: ACT | F11: Electricity | G11: Distribution | H11: Revenue cap | I11: Financial | J11: June | K11: 5 | L11: 5 | M11: 5 | N11: 2014-19 Distribution Determination | O11: 40 Bunda Street | Q11: CANBERRA | R11: ACT | S11: 2600 | T11: GPO BOX 366 | V11: CANBERRA | W11: ACT | X11: 2601 | Y11: Robert Walker | Z11: 02 6248 3847 | AA11: robert.walker@actewagle.com.au | AB11: NO | AC11: YES | AD11: YES | AE11: NO | AF11: NO | AH11: CBD | AI11: Urban | AJ11: Short rural | AK11: Long rural | AM11: NO | AN11: ActewAGL Distribution
B12: ActewAGL Distribution (Tx Assets) | C12: ActewAGL Distribution (Tx Assets) | D12: 76670568688 | E12: ACT | F12: Electricity | G12: Distribution | H12: Revenue cap | I12: Financial | J12: June | K12: 5 | L12: 5 | M12: 5 | N12: distribution determination | O12: 40 Bunda Street | Q12: CANBERRA | R12: ACT | S12: 2600 | T12: GPO BOX 366 | V12: CANBERRA | W12: ACT | X12: 2601 | Y12: Robert Walker | Z12: 02 6248 3847 | AA12: robert.walker@actewagle.com.au | AB12: NO | AC12: YES | AD12: YES | AE12: NO | AF12: NO | AH12: CBD | AI12: Urban | AJ12: Short rural | AK12: Long rural | AM12: NO | AN12: ActewAGL Distribution (Tx Assets)
B13: ActewAGL Gas | C13: ActewAGL Gas | D13: 76670568688 | E13: ACT | F13: Gas | G13: Distribution | H13: Weighted average price cap | I13: Financial | J13: June | K13: 5 | L13: 5 | M13: x | O13: 40 Bunda Street | Q13: CANBERRA | R13: ACT | S13: 2600 | T13: GPO BOX 366 | V13: CANBERRA | W13: ACT | X13: 2601 | Y13: Philip Deamer | Z13: 02 6248 3438 | AA13: GasAAReview@actewagl.com.au | AB13: NO | AC13: NO | AD13: NO | AE13: NO | AF13: NO | AH13: CBD | AI13: Urban | AJ13: Short rural | AK13: Long rural | AM13: NO | AN13: ActewAGL Gas
B14: AEMO | C14: Australian Energy Market Operator Ltd | D14: 94072010327 | E14: Vic | F14: Electricity | G14: Transmission | H14: - | I14: Financial | J14: March | K14: 5 | L14: 5 | M14: x | N14: - | O14: Level 22 | P14: 530 Collins Street | Q14: MELBOURNE | R14: VIC | S14: 3000 | T14: GPO Box 2008 | V14: MELBOURNE | W14: VIC | X14: 3001 | AB14: NO | AC14: NO | AD14: NO | AE14: NO | AF14: NO | AH14: CBD | AI14: Urban | AJ14: Short rural | AK14: Long rural | AM14: NO | AN14: AEMO
B15: AGN (Albury and Victoria) | C15: Australian Gas Networks Limited (reporting data for Albury and Victoria) | D15: 19078551685 | E15: Vic | F15: Gas | G15: Distribution | H15: Weighted average price cap | I15: Calendar | J15: December | K15: 5 | L15: 5 | M15: x | O15: Level 6 | P15: 400 King William Street | Q15: ADELAIDE | R15: SA | S15: 5000 | T15: PO Box 6468 | U15: Halifax Street | V15: ADELAIDE | W15: SA | X15: 5000 | Y15: Craig de Laine | Z15: 08 8418 1129 | AA15: craig.delaine@agn.com.au | AB15: NO | AC15: NO | AD15: NO | AE15: NO | AF15: NO | AH15: CBD | AI15: Urban | AJ15: Short rural | AK15: Long rural | AM15: NO | AN15: AGN (Albury)
B16: AGN (Albury) | C16: Australian Gas Networks Limited (reporting data for Albury) | D16: 19078551685 | E16: Vic | F16: Gas | G16: Distribution | H16: Weighted average price cap | I16: Calendar | J16: December | K16: 5 | L16: 5 | M16: x | O16: Level 6 | P16: 400 King William Street | Q16: ADELAIDE | R16: SA | S16: 5000 | T16: PO Box 6468 | U16: Halifax Street | V16: ADELAIDE | W16: SA | X16: 5000 | Y16: Craig de Laine | Z16: 08 8418 1129 | AA16: craig.delaine@agn.com.au | AB16: NO | AC16: NO | AD16: NO | AE16: NO | AF16: NO | AH16: CBD | AI16: Urban | AJ16: Short rural | AK16: Long rural | AM16: NO
B17: AGN (SA) | C17: Australian Gas Networks Limited (reporting data for SA) | D17: 19078551685 | E17: SA | F17: Gas | G17: Distribution | H17: Weighted average price cap | I17: Financial | J17: June | K17: 5 | L17: 5 | M17: 5 | N17: distribution determination | O17: Level 6 | P17: 400 King William Street | Q17: ADELAIDE | R17: SA | S17: 5000 | T17: PO Box 6468 | U17: Halifax Street | V17: ADELAIDE | W17: SA | X17: 5000 | Y17: Craig de Laine | Z17: 08 8418 1129 | AA17: craig.delaine@agn.com.au | AB17: NO | AC17: NO | AD17: NO | AE17: NO | AF17: NO | AH17: CBD | AI17: Urban | AJ17: Short rural | AK17: Long rural | AM17: NO | AN17: AGN (SA)
B18: AGN (Victoria) | C18: Australian Gas Networks Limited (reporting data for Victoria) | D18: 19078551685 | E18: Vic | F18: Gas | G18: Distribution | H18: Weighted average price cap | I18: Calendar | J18: December | K18: 5 | L18: 5 | M18: x | O18: Level 6 | P18: 400 King William Street | Q18: ADELAIDE | R18: SA | S18: 5000 | T18: PO Box 6468 | U18: Halifax Street | V18: ADELAIDE | W18: SA | X18: 5000 | Y18: Craig de Laine | Z18: 08 8418 1129 | AA18: craig.delaine@agn.com.au | AB18: NO | AC18: NO | AD18: NO | AE18: NO | AF18: NO | AH18: CBD | AI18: Urban | AJ18: Short rural | AK18: Long rural | AM18: NO | AN18: AGN (Victoria)
B19: Amadeus | C19: APT Pipelines (NT) Pty Ltd | D19: 39009737393 | E19: NT | F19: Gas | G19: Transmission | H19: Weighted average price cap | I19: Financial | J19: June | K19: 5 | L19: 5 | M19: x | N19: n/a | O19: Level 19, HSBC Building | P19: 580 George Street | Q19: SYDNEY | R19: NSW | S19: 2000 | T19: Level 19, HSBC Building | U19: 580 George Street | V19: SYDNEY | W19: NSW | X19: 2000 | Y19: Alexandra Curran | Z19: 02 9275 0020 | AA19: alexandra.curran@apa.com.au | AB19: NO | AC19: NO | AD19: NO | AE19: NO | AF19: NO | AH19: CBD | AI19: Urban | AJ19: Short rural | AK19: Long rural | AM19: NO | AN19: Amadeus
B20: APA GasNet | C20: APA GasNet Australia (Operations) Pty Ltd | D20: 065083009 | E20: Vic | F20: Gas | G20: Transmission | H20: Weighted average price cap | I20: Calendar | J20: December | K20: 5 | L20: 5 | M20: x | O20: Level 19, HSBC Building | P20: 580 George Street | Q20: SYDNEY | R20: NSW | S20: 2000 | T20: PO Box R41 | V20: ROYAL EXCHANGE | W20: NSW | X20: 1225 | Y20: Alexandra Curran | Z20: 02 9275 0020 | AA20: alexandra.curran@apa.com.au | AB20: NO | AC20: NO | AD20: NO | AE20: NO | AF20: NO | AH20: CBD | AI20: Urban | AJ20: Short rural | AK20: Long rural | AM20: NO | AN20: APA GasNet
B21: Ausgrid | C21: Ausgrid | D21: 78508211731 | E21: NSW | F21: Electricity | G21: Distribution | H21: Revenue cap | I21: Financial | J21: June | K21: 5 | L21: 5 | M21: 5 | N21: 2014-19 Distribution Determination | O21: 570 George St | Q21: SYDNEY | R21: NSW | S21: 2000 | T21: GPO Box 4009 | V21: SYDNEY | W21: NSW | X21: 2001 | Y21: John Thomson | Z21: 02 9269 2312 | AA21: john.thomson@ausgrid.com.au | AB21: YES | AC21: YES | AD21: YES | AE21: YES | AF21: NO | AH21: CBD | AI21: Urban | AJ21: Short rural | AK21: Long rural | AM21: YES | AN21: Ausgrid
B22: Ausgrid (Tx Assets) | C22: Ausgrid (Tx Assets) | D22: 67505337385 | E22: NSW | F22: Electricity | G22: Distribution | H22: Revenue cap | I22: Financial | J22: June | K22: 5 | L22: 5 | M22: 5 | N22: distribution determination | O22: 570 George St | Q22: SYDNEY | R22: NSW | S22: 2000 | T22: GPO Box 4009 | V22: SYDNEY | W22: NSW | X22: 2001 | Y22: John Thomson | Z22: 02 9269 2312 | AA22: john.thomson@ausgrid.com.au | AB22: YES | AC22: YES | AD22: YES | AE22: YES | AF22: NO | AH22: CBD | AI22: Urban | AJ22: Short rural | AK22: Long rural | AM22: NO | AN22: Ausgrid (Tx Assets)
B23: AusNet (D) | C23: AusNet Electricity Services Pty Ltd | D23: 91064651118 | E23: Vic | F23: Electricity | G23: Distribution | H23: Revenue cap | I23: Calendar | J23: December | K23: 5 | L23: 5 | M23: 2 | N23: 2016-20 Distribution Determination | O23: Level 32 | P23: 2 Southbank Boulevard | Q23: SOUTHBANK | R23: Vic | S23: 3006 | T23: Locked Bag 14051 | V23: MELBOURNE CITY MAIL CENTRE | W23: VIC | X23: 8001 | Y23: please provide contact details | AB23: NO | AC23: YES | AD23: YES | AE23: YES | AF23: NO | AH23: CBD | AI23: Urban | AJ23: Short rural | AK23: Long rural | AM23: YES | AN23: AusNet (D)
B24: AusNet (Gas) | C24: AusNet Gas Services | D24: 086015036 | E24: Vic | F24: Gas | G24: Distribution | H24: Weighted average price cap | I24: Calendar | J24: December | K24: 5 | L24: 5 | M24: X | O24: Level 19, HSBC Building | P24: 580 George Street | Q24: SYDNEY | R24: NSW | S24: 2000 | T24: PO Box R41 | V24: ROYAL EXCHANGE | W24: NSW | X24: 1225 | Y24: Alexandra Curran | Z24: 02 9275 0020 | AA24: alexandra.curran@apa.com.au | AB24: NO | AC24: NO | AD24: NO | AE24: NO | AF24: NO | AH24: CBD | AI24: Urban | AJ24: Short rural | AK24: Long rural | AM24: NO | AN24: AusNet (Gas)
B25: AusNet (T) | C25: Ausnet Services (Transmission) Ltd | D25: 48116124362 | E25: Vic | F25: Electricity | G25: Transmission | H25: Revenue cap | I25: Financial | J25: March | K25: 5 | L25: 5 | M25: 2 | N25: transmission determination | O25: Level 32 | P25: 2 Southbank Boulevard | Q25: SOUTHBANK | R25: Vic | S25: 3006 | T25: Locked Bag 14051 | V25: MELBOURNE CITY MAIL CENTRE | W25: Vic | X25: 8001 | Y25: Clare Thompson | Z25: 03 9695 6670 | AA25: clare.e.thompson@ausnetservices.com.au | AB25: NO | AC25: NO | AD25: NO | AE25: NO | AF25: NO | AH25: CBD | AI25: Urban | AJ25: Short rural | AK25: Long rural | AM25: NO | AN25: AusNet (T)
B26: Australian Distribution Co. | C26: Australian Distribution Co. | D26: 11222333444 | E26: - | F26: Electricity | G26: Distribution | H26: Revenue cap | I26: Financial | J26: June | K26: 5 | L26: 5 | M26: 2 | N26: distribution determination | O26: 123 Straight Street | Q26: SYDNEY | R26: NSW | S26: 2000 | T26: PO Box 123 | V26: SYDNEY | W26: NSW | X26: 2000 | Y26: Bob Smith | Z26: 02 1234 5678 | AA26: bob@auselec.net.au | AB26: YES | AC26: YES | AD26: YES | AE26: YES | AF26: NO | AH26: CBD | AI26: Urban | AJ26: Short rural | AK26: Long rural | AM26: YES | AN26: Australian Distribution Co.
B27: Australian Distribution Co. (Vic) | C27: Australian Distribution Co. (Victoria) | D27: 11222333444 | E27: Vic | F27: Electricity | G27: Distribution | H27: Revenue cap | I27: Calendar | J27: December | K27: 5 | L27: 5 | M27: 2 | N27: distribution determination | O27: 123 Straight Street | Q27: MELBOURNE | R27: Vic | S27: 3000 | T27: PO Box 123 | V27: MELBOURNE | W27: VIC | X27: 3000 | Y27: Bob Smith | Z27: 02 1234 5678 | AA27: bob@auselec.net.au | AB27: NO | AC27: NO | AD27: NO | AE27: NO | AF27: NO | AH27: CBD | AI27: Urban | AJ27: Short rural | AK27: Long rural | AM27: YES | AN27: Australian Distribution Co. (Vic)
B28: Australian Transmission Co. | C28: Australian Transmission Co. | D28: 11222333444 | E28: - | F28: Electricity | G28: Transmission | H28: Revenue cap | I28: Financial | J28: June | K28: 5 | L28: 5 | M28: 5 | N28: transmission determination | O28: 123 Straight Street | Q28: SYDNEY | R28: NSW | S28: 2000 | T28: PO Box 123 | V28: SYDNEY | W28: NSW | X28: 2000 | Y28: Bob Smith | Z28: 02 1234 5678 | AA28: bob@auselec.net.au | AB28: NO | AC28: NO | AD28: NO | AE28: NO | AF28: NO | AH28: CBD | AI28: Urban | AJ28: Short rural | AK28: Long rural | AM28: NO | AN28: Australian Transmission Co.
B29: Central Ranges Pipeline (D) | C29: Central Ranges Pipeline Pty Ltd | D29: 108218355 | E29: NSW | F29: Gas | G29: Distribution | H29: Weighted average price cap | I29: Financial | J29: June | K29: 15 | L29: 5 | M29: 5 | N29: distribution determination | O29: Level 19 | P29: 580 George Street | Q29: SYDNEY | R29: NSW | S29: 2000 | T29: PO Box R41 | V29: ROYAL EXCHANGE | W29: NSW | X29: 1225 | Y29: Scott Young | Z29: 02 9275 0031 | AA29: scott.young@apa.com.au | AB29: NO | AC29: NO | AD29: NO | AE29: NO | AF29: NO | AH29: CBD | AI29: Urban | AJ29: Short rural | AK29: Long rural | AM29: NO
B30: Central Ranges Pipeline (T) | C30: Central Ranges Pipeline Pty Ltd | D30: 108218355 | E30: NSW | F30: Gas | G30: Distribution | H30: Weighted average price cap | I30: Financial | J30: June | K30: 14 | L30: 5 | M30: 5 | N30: transmission determination | O30: Level 19 | P30: 580 George Street | Q30: SYDNEY | R30: NSW | S30: 2000 | T30: PO Box R41 | V30: ROYAL EXCHANGE | W30: NSW | X30: 1225 | Y30: Scott Young | Z30: 02 9275 0031 | AA30: scott.young@apa.com.au | AB30: NO | AC30: NO | AD30: NO | AE30: NO | AF30: NO | AH30: CBD | AI30: Urban | AJ30: Short rural | AK30: Long rural | AM30: NO
B31: CitiPower | C31: CitiPower | D31: 76064651056 | E31: Vic | F31: Electricity | G31: Distribution | H31: Revenue cap | I31: Calendar | J31: December | K31: 5 | L31: 5 | M31: 2 | N31: 2016-20 Distribution Determination | O31: 40 Market Street | Q31: MELBOURNE | R31: Vic | S31: 3000 | T31: Locked Bag 14090 | V31: MELBOURNE | W31: VIC | X31: 8001 | Y31: Hannah Williams | Z31: 03 9683 4088 | AA31: hwilliams@powercor.com.au | AB31: YES | AC31: YES | AD31: NO | AE31: NO | AF31: NO | AH31: CBD | AI31: Urban | AJ31: Short rural | AK31: Long rural | AM31: YES | AN31: CitiPower
B32: Directlink | C32: Directlink | D32: 16779340889 | E32: Qld | F32: Electricity | G32: Transmission | H32: Revenue cap | I32: Financial | J32: June | K32: 9 | L32: 5 | M32: 5 | N32: transmission determination | O32: Level 19, HSBC Building | P32: 580 George Street | Q32: SYDNEY | R32: NSW | S32: 2000 | T32: PO Box R41 | V32: ROYAL EXCHANGE | W32: NSW | X32: 1225 | Y32: Scott Young | Z32: 02 9275 0031 | AA32: scott.young@apa.com.au | AB32: NO | AC32: NO | AD32: NO | AE32: NO | AF32: NO | AH32: CBD | AI32: Urban | AJ32: Short rural | AK32: Long rural | AM32: NO | AN32: Directlink
B33: ElectraNet | C33: ElectraNet | D33: 41094482416 | E33: SA | F33: Electricity | G33: Transmission | H33: Revenue cap | I33: Financial | J33: June | K33: 5 | L33: 5 | M33: 5 | N33: transmission determination | O33: 52-55 East Terrace | P33: Rymill Park | Q33: ADELAIDE | R33: SA | S33: 5000 | T33: PO Box 7096 | U33: Hutt Street Post Office | V33: ADELAIDE | W33: SA | X33: 5000 | Y33: Bill Jackson | Z33: 08 8404 7969 | AA33: jackson.bill@electranet.com.au | AB33: NO | AC33: NO | AD33: NO | AE33: NO | AF33: NO | AH33: CBD | AI33: Urban | AJ33: Short rural | AK33: Long rural | AM33: NO | AN33: ElectraNet
B34: Endeavour Energy | C34: Endeavour Energy | D34: 11247365823 | E34: NSW | F34: Electricity | G34: Distribution | H34: Revenue cap | I34: Financial | J34: June | K34: 5 | L34: 5 | M34: 5 | N34: 2014-19 Distribution Determination | O34: 51 Huntingwood Drive | Q34: HUNTINGWOOD | R34: NSW | S34: 2148 | T34: PO Box 811 | V34: SEVEN HILLS | W34: NSW | X34: 1730 | Y34: Jon Hocking | Z34: 02 9853 4386 / 0407 348 156 | AA34: Jon.Hocking@Endeavourenergy.com.au | AB34: NO | AC34: YES | AD34: YES | AE34: YES | AF34: NO | AH34: CBD | AI34: Urban | AJ34: Short rural | AK34: Long rural | AM34: YES | AN34: Endeavour Energy
B35: Energex | C35: Energex | D35: 40078849055 | E35: Qld | F35: Electricity | G35: Distribution | H35: Revenue cap | I35: Financial | J35: June | K35: 5 | L35: 5 | M35: 5 | N35: 2015-20 Distribution Determination | O35: 26 Reddacliff Street | Q35: NEWSTEAD | R35: Qld | S35: 4006 | T35: 26 Reddacliff Street | V35: NEWSTEAD | W35: QLD | X35: 4006 | Y35: Nicola Roscoe | Z35: 07 3664 5891 | AA35: nicolaroscoe@energex.com.au | AB35: YES | AC35: YES | AD35: YES | AE35: NO | AF35: NO | AH35: CBD | AI35: Urban | AJ35: Short rural | AK35: Long rural | AM35: YES | AN35: Energex
B36: Ergon Energy | C36: Ergon Energy | D36: 50087646062 | E36: Qld | F36: Electricity | G36: Distribution | H36: Revenue cap | I36: Financial | J36: June | K36: 5 | L36: 5 | M36: 5 | N36: 2015-20 Distribution Determination | O36: 22 Walker Street | Q36: TOWNSVILLE | R36: Qld | S36: 4810 | T36: Po Box 264 | V36: FORTITUDE VALLEY | W36: QLD | X36: 4006 | Y36: Jenny Doyle, Group Manager Regulatory Affairs | Z36: (07) 3851 6416 | AA36: jenny.doyle@ergon.com.au | AB36: NO | AC36: YES | AD36: YES | AE36: YES | AF36: NO | AH36: CBD | AI36: Urban | AJ36: Short rural | AK36: Long rural | AM36: YES | AN36: Ergon Energy
B37: Essential Energy | C37: Essential Energy | D37: 37428185226 | E37: NSW | F37: Electricity | G37: Distribution | H37: Revenue cap | I37: Financial | J37: June | K37: 5 | L37: 5 | M37: 5 | N37: 2014-19 Distribution Determination | O37: 8 Buller Street | Q37: PORT MACQUARIE | R37: NSW | S37: 2444 | T37: PO Box 5730 | V37: PORT MACQUARIE | W37: NSW | X37: 2444 | Y37: Catherine Waddell | Z37: 02 6338 3553 | AA37: catherine.waddell@essentialenergy.com.au | AB37: NO | AC37: NO | AD37: YES | AE37: YES | AF37: NO | AH37: CBD | AI37: Urban | AJ37: Short rural | AK37: Long rural | AM37: YES | AN37: Essential Energy
B38: Jemena Electricity | C38: Jemena Electricity | D38: 82064651083 | E38: Vic | F38: Electricity | G38: Distribution | H38: Revenue cap | I38: Calendar | J38: December | K38: 5 | L38: 5 | M38: 2 | N38: 2016-20 Distribution Determination | O38: Level 16 | P38: 567 Collins Street | Q38: MELBOURNE | R38: VIC | S38: 3000 | T38: PO Box 16182 | V38: MELBOURNE | W38: VIC | X38: 8001 | Y38: Matthew Serpell | Z38: 03 9173 8231 | AA38: matthew.serpell@jemena.com.au | AB38: NO | AC38: NO | AD38: YES | AE38: NO | AF38: NO | AH38: CBD | AI38: Urban | AJ38: Short rural | AK38: Long rural | AM38: YES | AN38: Jemena Electricity
B39: JGN | C39: Jemena Gas Networks (NSW) Ltd | D39: 003 004 322 | E39: NSW | F39: Gas | G39: Distribution | H39: Weighted average price cap | I39: Financial | J39: June | K39: 5 | L39: 5 | Y39: please provide contact details | AB39: NO | AC39: NO | AD39: NO | AE39: NO | AF39: NO | AH39: CBD | AI39: Urban | AJ39: Short rural | AK39: Long rural | AM39: NO | AN39: JGN
B40: Multinet Gas | C40: Multinet Gas (DB No.1) Pty Ltd (ACN 086 026 986), Multinet Gas (DB No.2) Pty Ltd (ACN 086 230 122) | D40: 086026986 | E40: Vic | F40: Gas | G40: Distribution | H40: Weighted average price cap | I40: Calendar | J40: December | K40: 5 | L40: 5 | M40: x | O40: 43-45 Centreway | Q40: MT WAVERLEY | R40: Vic | S40: 3149 | Y40: Andrew Schille | Z40: 03 8846 9860 | AA40: andrew.schille@ue.com.au | AB40: NO | AC40: NO | AD40: NO | AE40: NO | AF40: NO | AH40: CBD | AI40: Urban | AJ40: Short rural | AK40: Long rural | AM40: NO | AN40: Multinet Gas
B41: Murraylink | C41: Murraylink | D41: 79181207909 | E41: SA | F41: Electricity | G41: Transmission | H41: Revenue cap | I41: Financial | J41: June | K41: 5 | L41: 5 | M41: 5 | N41: transmission determination | O41: Level 19 | P41: 580 George Street | Q41: SYDNEY | R41: NSW | S41: 2000 | T41: PO Box R41 | V41: ROYAL EXCHANGE | W41: NSW | X41: 1225 | Y41: Scott Young | Z41: 02 9275 0031 | AA41: scott.young@apa.com.au | AB41: NO | AC41: NO | AD41: NO | AE41: NO | AF41: NO | AH41: CBD | AI41: Urban | AJ41: Short rural | AK41: Long rural | AM41: NO | AN41: Murraylink
B42: Power and Water | C42: Power and Water Corporation | D42: 15947352360 | E42: NT | F42: Electricity | G42: Distribution | H42: Revenue cap | I42: Financial | J42: June | K42: 5 | L42: 5 | M42: x | N42: distribution determination | O42: GPO Box 1921 | Q42: DARWIN | R42: NT | S42: 801 | T42: GPO Box 1921 | V42: DARWIN | W42: NT | X42: 801 | Y42: Lucy Moon | Z42: 08 8924 5822 | AA42: Lucy.Moon@powerwater.com.au | AB42: YES | AC42: YES | AD42: YES | AE42: YES | AF42: NO | AH42: CBD | AI42: Urban | AJ42: Short rural | AK42: Long rural | AM42: NO | AN42: Power and Water
B43: Powercor Australia | C43: Powercor Australia | D43: 89064651109 | E43: Vic | F43: Electricity | G43: Distribution | H43: Revenue cap | I43: Calendar | J43: December | K43: 5 | L43: 5 | M43: 2 | N43: 2016-20 Distribution Determination | O43: 40 Market Street | Q43: MELBOURNE | R43: Vic | S43: 3000 | T43: Locked bag 14090 | V43: MELBOURNE | W43: VIC | X43: 8001 | Y43: Hannah Williams | Z43: 03 9683 4088 | AA43: hwilliams@powercor.com.au | AB43: NO | AC43: NO | AD43: YES | AE43: YES | AF43: NO | AH43: CBD | AI43: Urban | AJ43: Short rural | AK43: Long rural | AM43: YES | AN43: Powercor Australia
B44: Powerlink | C44: Queensland Electricity Transmission Corporation Limited trading as Powerlink Queensland | D44: 82078849233 | E44: Qld | F44: Electricity | G44: Transmission | H44: Revenue cap | I44: Financial | J44: June | K44: 5 | L44: 5 | M44: 5 | N44: transmission determination | O44: 33 Harold St | Q44: VIRGINIA | R44: Qld | S44: 4014 | T44: PO Box 1193 | V44: VIRGINIA | W44: QLD | X44: 4014 | Y44: Jennifer Harris | Z44: 07 3860 2667 | AA44: jharris@powerlink.com.au | AB44: NO | AC44: NO | AD44: NO | AE44: NO | AF44: NO | AH44: CBD | AI44: Urban | AJ44: Short rural | AK44: Long rural | AM44: NO | AN44: Powerlink
B45: Roma to Brisbane Pipeline | C45: APT Petroleum Pipelines Limited t/a Roma to Brisbane Pipeline | D45: 009 737 393 | E45: Qld | F45: Gas | G45: Transmission | H45: Weighted average price cap | I45: Financial | J45: June | K45: 5 | L45: 5 | M45: x | N45: n/a | O45: 580 George Street | Q45: SYDNEY | R45: NSW | S45: 2000 | T45: PO Box R41 | V45: ROYAL EXCHANGE | W45: NSW | X45: 1225 | Y45: Mark Allen | Z45: 02 9275 0010 | AA45: mark.allen@apa.com.au | AB45: NO | AC45: NO | AD45: NO | AE45: NO | AF45: NO | AH45: CBD | AI45: Urban | AJ45: Short rural | AK45: Long rural | AM45: NO | AN45: Roma to Brisbane Pipeline
B46: SA Power Networks | C46: SA Power Networks | D46: 13332330749 | E46: SA | F46: Electricity | G46: Distribution | H46: Revenue cap | I46: Financial | J46: June | K46: 5 | L46: 5 | M46: 5 | N46: 2015-20 Distribution Determination | O46: 1 Anzac Highway | Q46: KESWICK | R46: SA | S46: 5035 | T46: GPO Box 77 | V46: ADELAIDE | W46: SA | X46: 5000 | Y46: Richard Sibly | Z46: 08 8404 5613 | AA46: richard.sibly@sapowernetworks.com.au | AB46: NO | AC46: NO | AD46: YES | AE46: YES | AF46: NO | AH46: CBD | AI46: Urban | AJ46: Short rural | AK46: Long rural | AM46: NO | AN46: SA Power Networks
B47: TasNetworks (D) | C47: TasNetworks (D) | D47: 24167357299 | E47: Tas | F47: Electricity | G47: Distribution | H47: Revenue cap | I47: Financial | J47: June | K47: 5 | L47: 5 | M47: 5 | N47: distribution determination | O47: 1-7 Maria Street | Q47: LENAH VALLEY | R47: Tas | S47: 7008 | T47: PO Box 606 | V47: MOONAH | W47: Tas | X47: 7009 | Y47: John Sayers | Z47: 03 6271 6469 | AA47: john.sayers@tasnetworks.com.au | AB47: YES | AC47: YES | AD47: YES | AE47: YES | AF47: YES | AH47: Critical Infrastructure | AI47: High density commercial | AJ47: Urban | AK47: High density rural | AL47: Low density rural | AM47: YES | AN47: TasNetworks (D)
B48: TasNetworks (T) | C48: TasNetworks (T) | D48: 24167357299 | E48: Tas | F48: Electricity | G48: Transmission | H48: Revenue cap | I48: Financial | J48: June | K48: 5 | L48: 5 | M48: 5 | N48: transmission determination | O48: 1-7 Maria Street | Q48: LENAH VALLEY | R48: Tas | S48: 7008 | T48: PO Box 606 | V48: MOONAH | W48: Tas | X48: 7009 | Y48: John Sayers | Z48: 03 6271 6469 | AA48: john.sayers@tasnetworks.com.au | AB48: NO | AC48: NO | AD48: NO | AE48: NO | AF48: NO | AH48: CBD | AI48: Urban | AJ48: Short rural | AK48: Long rural | AM48: NO | AN48: TasNetworks (T)
B49: TransGrid | C49: NSW Electricity Networks Operations Pty Ltd trading as TransGrid | D49: 70 250 995 390 | E49: NSW | F49: Electricity | G49: Transmission | H49: Revenue cap | I49: Financial | J49: June | K49: 4 | L49: 5 | M49: 5 | N49: transmission determination | O49: 180 Thomas Street | Q49: SYDNEY | R49: NSW | S49: 2000 | T49: PO Box A1000 | V49: SYDNEY SOUTH | W49: NSW | X49: 1235 | Y49: Garrie Chubb | Z49: 0408 210 221 | AA49: garrie.chubb@transgrid.com.au | AB49: NO | AC49: NO | AD49: NO | AE49: NO | AF49: NO | AH49: CBD | AI49: Urban | AJ49: Short rural | AK49: Long rural | AM49: NO | AN49: TransGrid
B50: United Energy | C50: United Energy | D50: 70064651029 | E50: Vic | F50: Electricity | G50: Distribution | H50: Revenue cap | I50: Calendar | J50: December | K50: 5 | L50: 5 | M50: 2 | N50: 2016-20 Distribution Determination | O50: Level 3 | P50: 6 Nexus Court | Q50: MULGRAVE | R50: Vic | S50: 3149 | T50: PO Box 449 | V50: MOUNT WAVERLEY | W50: VIC | X50: 3170 | Y50: Mathew Abraham | Z50: 03 8846 9758 | AA50: mathew.abraham@ue.com.au | AB50: NO | AC50: NO | AD50: YES | AE50: NO | AF50: NO | AH50: CBD | AI50: Urban | AJ50: Short rural | AK50: Long rural | AM50: YES | AN50: United Energy
Y53: For EB & Reset RINs only | AD53: For AARs only
B54: The Reg Year Ending (dms_RYE) must be set to the last year of the regulatory period. For forecast data is is usually (FRCP_y5) for actual it is a single year (CRY). For historical actual data the RYE will need to be set manually in the business details sheet by setting the dms_Multiyear_flag to 1 and putting the correct value in 'dms_Specified_FinalYear. See cells C67:C68 | G54: =IF(dms_RPT="financial",VALUE(LEFT(CRCP_y1,4)-1)&"-"&TEXT(VALUE(RIGHT(CRCP_y1,2)-1),"00"),VALUE(LEFT(CRCP_y1,4)-1)) ->  | N54: Drop down selector box for CA & Reset RINs. | O54: For CA & Reset RINs only | Y54: for DNSP only | AD54: For DNSPs only
B55: dms_Model_List | C55: dms_Worksheet_List | E55: dms_RYE_Formula_Result | N55: dms_0203_ProjectType | O55: dms_020303_01_UOM | P55: dms_020501_01_UOM | Q55: dms_020501_02_UOM | R55: dms_020501_03_UOM | S55: dms_020501_04_UOM | T55: dms_020603_01_UOM | U55: dms_020701_01_UOM | V55: dms_020701_02_UOM | W55: dms_040102_01_UOM | X55: dms_040102_04_UOM | Y55: dms_030601_01_UOM | Z55: dms_030601_02_UOM | AA55: dms_030701_01_UOM | AB55: dms_030702_01_UOM | AC55: dms_030703_01_UOM | AD55: dms_030605_UOM | AE55: dms_03060703_UOM
B56: ARR | C56: ANNUAL REPORTING STATEMENT | E56: =LEFT(dms_SingleYear_FinalYear_Result,2)&RIGHT(dms_SingleYear_FinalYear_Result,2) ->  | F56: =LEFT(dms_SingleYear_FinalYear_Result,2)&RIGHT(dms_SingleYear_FinalYear_Result,2) | H56: Formula errors are OK | N56: New line on new route - single circuit | O56: Circuit line length in km | P56: 0's | Q56: 0's | R56: 0's | S56: 0's | T56: 0's | U56: km | V56: km | W56: 0's | X56: days | Y56: minutes/customer | Z56: minutes/customer | AA56: Customer / km | AB56: % | AC56: km | AD56: number | AE56: number
B57: CA | C57: CATEGORY ANALYSIS | E57: =LEFT(dms_SingleYear_FinalYear_Result,2)&RIGHT(dms_SingleYear_FinalYear_Result,2) ->  | F57: =LEFT(dms_SingleYear_FinalYear_Result,2)&RIGHT(dms_SingleYear_FinalYear_Result,2) | H57: Formula errors are OK | N57: New line on new route - dual circuit | O57: Circuit line length in km | P57: 0's | Q57: 0's | R57: 0's | S57: 0's | T57: 0's | U57: 0's | V57: 0's | W57: 0's | X57: 0's | Y57: minutes/customer | Z57: minutes/customer | AA57: MWh/customer | AB57: Number of spans | AD57: number | AE57: number
B58: CPI | C58: CPI | N58: New line on new route - other | O58: Circuit line length in km | P58: MVA added | Q58: MVA added | R58: MVA added | S58: MVA added | T58: 0's | U58: km | V58: km | W58: 0's | X58: $0s | Y58: interruptions/customer | Z58: interruptions/customer | AA58: kVA / customer | AB58: Number of spans | AD58: number | AE58: number
B59: EB | C59: ECONOMIC BENCHMARKING | E59: =LEFT(dms_SingleYear_FinalYear_Result,2)&RIGHT(dms_SingleYear_FinalYear_Result,2) ->  | F59: =LEFT(dms_SingleYear_FinalYear_Result,2)&RIGHT(dms_SingleYear_FinalYear_Result,2) | H59: Formula errors are OK | N59: Line rebuild over existing route - single circuit | O59: Circuit line length in km | P59: 0's | Q59: 0's | R59: 0's | S59: 0's | T59: 0's | U59: km | V59: km | W59: $0s | X59: 0's | Y59: interruptions/customer | Z59: interruptions/customer | AB59: Number of spans | AD59: number | AE59: number
B60: PTRM | C60: POST TAX REVENUE MODEL | E60: =LEFT(dms_MultiYear_FinalYear_Result,2)&RIGHT(dms_MultiYear_FinalYear_Result,2) ->  | F60: =LEFT(dms_MultiYear_FinalYear_Result,2)&RIGHT(dms_MultiYear_FinalYear_Result,2) | N60: Line rebuild over existing route - dual circuit | O60: Number | P60: total spend $0s | Q60: total spend $0s | R60: total spend $0s | S60: total spend $0s | T60: (per cent) | U60: 0's | V60: 0's | AB60: Number of spans | AD60: number | AE60: (per cent)
B61: Reset | C61: REGULATORY REPORTING STATEMENT | E61: =LEFT(dms_MultiYear_FinalYear_Result,2)&RIGHT(dms_MultiYear_FinalYear_Result,2) ->  | F61: =LEFT(dms_MultiYear_FinalYear_Result,2)&RIGHT(dms_MultiYear_FinalYear_Result,2) | H61: Formula errors are OK | N61: Reconductor - Single circuit | O61: Number | P61: net circuit km added | Q61: net circuit km added | R61: net circuit km added | S61: net circuit km added | U61: years | V61: years | AB61: Years | AD61: number
B62: RFM | C62: ROLL FORWARD MODEL | E62: =LEFT(dms_CRCP_FinalYear_Result,2)&RIGHT(dms_CRCP_FinalYear_Result,2) ->  | F62: =LEFT(dms_CRCP_FinalYear_Result,2)&RIGHT(dms_CRCP_FinalYear_Result,2) | N62: Reconductor - Dual circuit | O62: Number | P62: total spend $0s | Q62: total spend $0s | R62: total spend $0s | S62: total spend $0s | AB62: Years | AD62: number
B63: WACC | C63: WEIGHTED AVERAGE COST OF CAPITAL | E63: =LEFT(dms_MultiYear_FinalYear_Result,2)&RIGHT(dms_MultiYear_FinalYear_Result,2) ->  | F63: =LEFT(dms_MultiYear_FinalYear_Result,2)&RIGHT(dms_MultiYear_FinalYear_Result,2) | N63: Other | P63: net circuit km added | Q63: net circuit km added | R63: net circuit km added | S63: net circuit km added | AB63: Trees | AD63: number
P64: total spend $0s | Q64: total spend $0s | R64: total spend $0s | S64: total spend $0s | AB64: Trees | AD64: number
B65: dms_DataQuality_List | P65: 0's | R65: $0s | AB65: Defects | AD65: number
B66: Actual | P66: 0's | AB66: Defects | AD66: number
B67: Estimate | P67: 0's | AB67: Spans | AD67: number
B68: Consolidated | P68: $0s | AB68: km | AD68: (per cent)
B69: Recast | AB69: Spans | AD69: (per cent)
B70: Public
B72: For all files either AER or business needs to be able to specify the type of submission | C72: For PTRM & RFM templates we must provide a choice in case they change their form of control - otherwise it is drawn from the business specific lookup table above. | O72: For PTRM files - this field set the text for the named range "DMS_Xfactor" which in all cases is simply the text "x factors" - this saves putting in each old gas PTRM file | Y72: for TNSP only
B73: dms_SourceList | C73: dms_FormControl_Choices | O73: DMS_Xfactor | Y73: dms_030601_01_UOM | AA73: dms_030701_01_UOM | AB73: dms_030702_01_UOM
B74: After appeal | C74: Revenue cap | O74: x factors | Y74: % | AA74: Number of spans | AB74: km
B75: Draft decision | C75: Revenue yield | Y75: number | AA75: Years | AB75: %
B76: Final decision | C76: Weighted average price cap | Y76: number | AA76: Trees | AB76: km
B77: PTRM update 1 | Y77: % | AA77: Defects | AB77: number
B78: PTRM update 2 | Y78: number | AA78: Number of spans
B79: PTRM update 3 | Y79: number | AA79: km
B80: PTRM update 4 | Y80: % | AA80: km
B81: PTRM update 5 | Y81: number | AA81: Number of spans
B82: PTRM update 6 | Y82: number
B83: PTRM update 7 | Y83: %
B84: Regulatory proposal | Y84: number
B85: Start year for 5.2 in Multi year RINS | C85: =IF(dms_MultiYear_Flag=1,FRY,CRY) ->  | D85: dms_0502_Inst_Year | E85: =IF(dms_MultiYear_Flag=1,FRY,CRY) | G85: For single year RINS this is CRY - multi year RINS need to start a the end of the span of years (ie. FRY)
B86: Reporting | Y86: %
B87: Revised regulatory proposal | Y87: number
Y88: %
Y89: number
B93: Reason for interruption | C93: dms_Reason_Interruption_Detailed | D93: dms_Reason_Interruption | E93: dms_STPIS_Exclusion_List | F93: dms_020301_ProjectType_List | G93: dms_020302_ProjectType_List
B94: Animal | C94: Animal impact | D94: Animal | E94: Weather | F94: New substation establishment | G94: New line on new route - single circuit
C95: Animal nesting/burrowing, etc and other | D95: Asset failure | E95: Equipment failure | F95: Capacity upgrade | G95: New line on new route - dual circuit
C96: Other | D96: Other | E96: Operational error | F96: Voltage upgrade | G96: New line on new route - other
B97: Asset failure | C97: LV | D97: Overloads | E97: Vegetation | F97: Other | G97: Line rebuild over existing route - single circuit
C98: Distribution substation | D98: Planned | E98: Animals | G98: Line rebuild over existing route - dual circuit
C99: HV | D99: Network business | E99: Third party impacts | G99: Reconductor - Single circuit
C100: Zone substation | D100: Third party | E100: Transmission failure | G100: Reconductor - Dual circuit
C101: Subtransmission | D101: Unknown | E101: Load shedding | G101: Reconductor - Other
B102: Other | C102: insert description of 'other' | D102: Vegetation | E102: Inter-distributor connection failure | G102: Line upgrade - raising/retensoring
B103: Overloads | C103: - | D103: Weather | E103: Other | G103: Line upgrade - voltage upgrade
B104: Planned | C104: - | D104: 2 - STPIS Exclusion (3.3)(a) | G104: Line upgrade - capacity
B105: Network business | C105: Network error | D105: 3 - STPIS Exclusion (3.3)(a) | G105: String spare circuit
C106: Switching and protection error | D106: 4 - STPIS Exclusion (3.3)(a) | G106: Other
B107: Third party | C107: Fire | D107: 5 - STPIS Exclusion (3.3)(a)
C108: Other | D108: 6 - STPIS Exclusion (3.3)(a)
C109: Dig-in | D109: 7 - STPIS Exclusion (3.3)(a)
C110: Unauthorised access
C111: Vehicle impact
B112: Unknown | C112: Unknown
B113: Vegetation | C113: Blow-in/Fall-in - NSP responsibility
C114: Grow-in - NSP responsibility
C115: Blow-in/Fall-in - Other responsible party
C116: Grow-in - Other responsible party
B117: Weather
B118: 2 - STPIS Exclusion (3.3)(a)
B119: 3 - STPIS Exclusion (3.3)(a)
B120: 4 - STPIS Exclusion (3.3)(a)
B121: 5 - STPIS Exclusion (3.3)(a)
B122: 6 - STPIS Exclusion (3.3)(a)
B123: 7 - STPIS Exclusion (3.3)(a)
B136: These are indeces and lookup values for various dates. All step from the value placed in FRCP_y1 on the business and other details worksheet | C136: =IF(dms_FifthFeeder_flag_NSP="NO","This NSP has only 4 feeder categories","This NSP has 5 feeder categories") ->  | O136: These date tables are currently used in the Recast templates to provide column headings and conditional formatting
B137: dms_FRCPlength_Num_List | C137: dms_FinalYear_List | D137: dms_CRCPlength_Num_List | E137: dms_CFinalYear_List | F137: dms_FRCP_years | H137: dms_CRCP_years | J137: dms_CRCP_index | L137: These are static values for cut / paste purposes only | O137: CRY from input cell on business sheet | P137: CRY - financial | Q137: dms_FinYears | R137: CRY calendar | S137: dms_CalYears
B138: 1 | C138: dms_FRCP_y1 | D138: 1 | E138: CRCP_y1 | F138: =FRCP_y1 -> 2020-21 | G138: dms_FRCP_y1 | H138: =IF(dms_RPT="financial",VALUE(LEFT(dms_FRCP_y1,4)-1)&"-"&TEXT(VALUE(MID(dms_FRCP_y1,3,2)),"00"),VALUE(LEFT(dms_FRCP_y1,4)-1)) ->  | I138: dms_CRCP_yZ | J138: 1 | L138: 2005-06 | M138: 2006 | O138: =CRY -> 2016-17 | P138: =VALUE(LEFT(CRY,4))&"-"&TEXT(MID(CRY,3,2)+1,"00") -> 2016-17 | Q138: dms_CRYf_y1 | R138: =VALUE(LEFT(CRY,4)+1) -> 2017 | S138: dms_CRYc_y1
B139: 2 | C139: dms_FRCP_y2 | D139: 2 | E139: CRCP_y2 | F139: =IF(dms_RPT="financial",VALUE(LEFT(dms_FRCP_y1,4)+1)&"-"&TEXT(VALUE(RIGHT(dms_FRCP_y1,2)+1),"00"),VALUE(LEFT(dms_FRCP_y1,4)+1)) ->  | G139: dms_FRCP_y2 | H139: =IF(dms_RPT="financial",VALUE(LEFT(dms_CRCP_yZ,4)-1)&"-"&TEXT(VALUE(MID(dms_CRCP_yZ,3,2)),"00"),VALUE(LEFT(dms_CRCP_yZ,4)-1)) ->  | I139: dms_CRCP_yY | J139: 2 | L139: 2006-07 | M139: 2007 | P139: =VALUE(LEFT(dms_CRYf_y1,4)+1)&"-"&TEXT(MID(dms_CRYf_y1,3,2)+2,"00") -> 2017-18 | Q139: dms_CRYf_y2 | R139: =VALUE(LEFT(dms_CRYc_y1,4)+1) -> 2018 | S139: dms_CRYc_y2
B140: 3 | C140: dms_FRCP_y3 | D140: 3 | E140: CRCP_y3 | F140: =IF(dms_RPT="financial",VALUE(LEFT(dms_FRCP_y2,4)+1)&"-"&TEXT(VALUE(RIGHT(dms_FRCP_y2,2)+1),"00"),VALUE(LEFT(dms_FRCP_y2,4)+1)) ->  | G140: dms_FRCP_y3 | H140: =IF(dms_RPT="financial",VALUE(LEFT(dms_CRCP_yY,4)-1)&"-"&TEXT(VALUE(MID(dms_CRCP_yY,3,2)),"00"),VALUE(LEFT(dms_CRCP_yY,4)-1)) ->  | I140: dms_CRCP_yX | J140: 3 | L140: 2007-08 | M140: 2008 | P140: =VALUE(LEFT(dms_CRYf_y2,4)+1)&"-"&TEXT(MID(dms_CRYf_y2,3,2)+2,"00") -> 2018-19 | Q140: dms_CRYf_y3 | R140: =VALUE(LEFT(dms_CRYc_y2,4)+1) -> 2019 | S140: dms_CRYc_y3
B141: 4 | C141: dms_FRCP_y4 | D141: 4 | E141: CRCP_y4 | F141: =IF(dms_RPT="financial",VALUE(LEFT(dms_FRCP_y3,4)+1)&"-"&TEXT(VALUE(RIGHT(dms_FRCP_y3,2)+1),"00"),VALUE(LEFT(dms_FRCP_y3,4)+1)) ->  | G141: dms_FRCP_y4 | H141: =IF(dms_RPT="financial",VALUE(LEFT(dms_CRCP_yX,4)-1)&"-"&TEXT(VALUE(MID(dms_CRCP_yX,3,2)),"00"),VALUE(LEFT(dms_CRCP_yX,4)-1)) ->  | I141: dms_CRCP_yW | J141: 4 | L141: 2008-09 | M141: 2009 | P141: =VALUE(LEFT(dms_CRYf_y3,4)+1)&"-"&TEXT(MID(dms_CRYf_y3,3,2)+2,"00") -> 2019-20 | Q141: dms_CRYf_y4 | R141: =VALUE(LEFT(dms_CRYc_y3,4)+1) -> 2020 | S141: dms_CRYc_y4
B142: 5 | C142: dms_FRCP_y5 | D142: 5 | E142: CRCP_y5 | F142: =IF(dms_RPT="financial",VALUE(LEFT(dms_FRCP_y4,4)+1)&"-"&TEXT(VALUE(RIGHT(dms_FRCP_y4,2)+1),"00"),VALUE(LEFT(dms_FRCP_y4,4)+1)) ->  | G142: dms_FRCP_y5 | H142: =IF(dms_RPT="financial",VALUE(LEFT(dms_CRCP_yW,4)-1)&"-"&TEXT(VALUE(MID(dms_CRCP_yW,3,2)),"00"),VALUE(LEFT(dms_CRCP_yW,4)-1)) ->  | I142: dms_CRCP_yV | J142: 5 | L142: 2009-10 | M142: 2010 | P142: =VALUE(LEFT(dms_CRYf_y4,4)+1)&"-"&TEXT(MID(dms_CRYf_y4,3,2)+2,"00") -> 2020-21 | Q142: dms_CRYf_y5 | R142: =VALUE(LEFT(dms_CRYc_y4,4)+1) -> 2021 | S142: dms_CRYc_y5
B143: 6 | C143: dms_FRCP_y6 | D143: 6 | E143: CRCP_y6 | F143: =IF(dms_RPT="financial",VALUE(LEFT(dms_FRCP_y5,4)+1)&"-"&TEXT(VALUE(RIGHT(dms_FRCP_y5,2)+1),"00"),VALUE(LEFT(dms_FRCP_y5,4)+1)) ->  | G143: dms_FRCP_y6 | H143: =IF(dms_RPT="financial",VALUE(LEFT(dms_CRCP_yV,4)-1)&"-"&TEXT(VALUE(MID(dms_CRCP_yV,3,2)),"00"),VALUE(LEFT(dms_CRCP_yV,4)-1)) ->  | I143: dms_CRCP_yU | J143: 6 | L143: 2010-11 | M143: 2011 | P143: =VALUE(LEFT(dms_CRYf_y5,4)+1)&"-"&TEXT(MID(dms_CRYf_y5,3,2)+2,"00") -> 2021-22 | Q143: dms_CRYf_y6 | R143: =VALUE(LEFT(dms_CRYc_y5,4)+1) -> 2022 | S143: dms_CRYc_y6
B144: 7 | C144: dms_FRCP_y7 | D144: 7 | E144: CRCP_y7 | F144: =IF(dms_RPT="financial",VALUE(LEFT(dms_FRCP_y6,4)+1)&"-"&TEXT(VALUE(RIGHT(dms_FRCP_y6,2)+1),"00"),VALUE(LEFT(dms_FRCP_y6,4)+1)) ->  | G144: dms_FRCP_y7 | H144: =IF(dms_RPT="financial",VALUE(LEFT(dms_CRCP_yU,4)-1)&"-"&TEXT(VALUE(MID(dms_CRCP_yU,3,2)),"00"),VALUE(LEFT(dms_CRCP_yU,4)-1)) ->  | I144: dms_CRCP_yT | J144: 7 | L144: 2011-12 | M144: 2012 | P144: =VALUE(LEFT(dms_CRYf_y6,4)+1)&"-"&TEXT(MID(dms_CRYf_y6,3,2)+2,"00") -> 2022-23 | Q144: dms_CRYf_y7 | R144: =VALUE(LEFT(dms_CRYc_y6,4)+1) -> 2023 | S144: dms_CRYc_y7
B145: 8 | C145: dms_FRCP_y8 | D145: 8 | E145: CRCP_y8 | F145: =IF(dms_RPT="financial",VALUE(LEFT(dms_FRCP_y7,4)+1)&"-"&TEXT(VALUE(RIGHT(dms_FRCP_y7,2)+1),"00"),VALUE(LEFT(dms_FRCP_y7,4)+1)) ->  | G145: dms_FRCP_y8 | H145: =IF(dms_RPT="financial",VALUE(LEFT(dms_CRCP_yT,4)-1)&"-"&TEXT(VALUE(MID(dms_CRCP_yT,3,2)),"00"),VALUE(LEFT(dms_CRCP_yT,4)-1)) ->  | I145: dms_CRCP_yS | J145: 8 | L145: 2012-13 | M145: 2013 | P145: =VALUE(LEFT(dms_CRYf_y7,4)+1)&"-"&TEXT(MID(dms_CRYf_y7,3,2)+2,"00") -> 2023-24 | Q145: dms_CRYf_y8 | R145: =VALUE(LEFT(dms_CRYc_y7,4)+1) -> 2024 | S145: dms_CRYc_y8
B146: 9 | C146: dms_FRCP_y9 | D146: 9 | E146: CRCP_y9 | F146: =IF(dms_RPT="financial",VALUE(LEFT(dms_FRCP_y8,4)+1)&"-"&TEXT(VALUE(RIGHT(dms_FRCP_y8,2)+1),"00"),VALUE(LEFT(dms_FRCP_y8,4)+1)) ->  | G146: dms_FRCP_y9 | H146: =IF(dms_RPT="financial",VALUE(LEFT(dms_CRCP_yS,4)-1)&"-"&TEXT(VALUE(MID(dms_CRCP_yS,3,2)),"00"),VALUE(LEFT(dms_CRCP_yS,4)-1)) ->  | I146: dms_CRCP_yR | J146: 9 | L146: 2013-14 | M146: 2014 | P146: =VALUE(LEFT(dms_CRYf_y8,4)+1)&"-"&TEXT(MID(dms_CRYf_y8,3,2)+2,"00") -> 2024-25 | Q146: dms_CRYf_y9 | R146: =VALUE(LEFT(dms_CRYc_y8,4)+1) -> 2025 | S146: dms_CRYc_y9
B147: 10 | C147: dms_FRCP_y10 | D147: 10 | E147: CRCP_y10 | F147: =IF(dms_RPT="financial",VALUE(LEFT(dms_FRCP_y9,4)+1)&"-"&TEXT(VALUE(RIGHT(dms_FRCP_y9,2)+1),"00"),VALUE(LEFT(dms_FRCP_y9,4)+1)) ->  | G147: dms_FRCP_y10 | H147: =IF(dms_RPT="financial",VALUE(LEFT(dms_CRCP_yR,4)-1)&"-"&TEXT(VALUE(MID(dms_CRCP_yR,3,2)),"00"),VALUE(LEFT(dms_CRCP_yR,4)-1)) ->  | I147: dms_CRCP_yQ | J147: 10 | L147: 2014-15 | M147: 2015 | P147: =VALUE(LEFT(dms_CRYf_y9,4)+1)&"-"&TEXT(MID(dms_CRYf_y9,3,2)+2,"00") -> 2025-26 | Q147: dms_CRYf_y10 | R147: =VALUE(LEFT(dms_CRYc_y9,4)+1) -> 2026 | S147: dms_CRYc_y10
B148: 11 | C148: dms_FRCP_y11 | D148: 11 | E148: CRCP_y11 | F148: =IF(dms_RPT="financial",VALUE(LEFT(dms_FRCP_y10,4)+1)&"-"&TEXT(VALUE(RIGHT(dms_FRCP_y10,2)+1),"00"),VALUE(LEFT(dms_FRCP_y10,4)+1)) ->  | G148: dms_FRCP_y11 | H148: =IF(dms_RPT="financial",VALUE(LEFT(dms_CRCP_yQ,4)-1)&"-"&TEXT(VALUE(MID(dms_CRCP_yQ,3,2)),"00"),VALUE(LEFT(dms_CRCP_yQ,4)-1)) ->  | I148: dms_CRCP_yP | J148: 11 | L148: 2015-16 | M148: 2016 | P148: =VALUE(LEFT(dms_CRYf_y10,4)+1)&"-"&TEXT(MID(dms_CRYf_y10,3,2)+2,"00") -> 2026-27 | Q148: dms_CRYf_y11 | R148: =VALUE(LEFT(dms_CRYc_y10,4)+1) -> 2027 | S148: dms_CRYc_y11
B149: 12 | C149: dms_FRCP_y12 | D149: 12 | E149: CRCP_y12 | F149: =IF(dms_RPT="financial",VALUE(LEFT(dms_FRCP_y11,4)+1)&"-"&TEXT(VALUE(RIGHT(dms_FRCP_y11,2)+1),"00"),VALUE(LEFT(dms_FRCP_y11,4)+1)) ->  | G149: dms_FRCP_y12 | H149: =IF(dms_RPT="financial",VALUE(LEFT(dms_CRCP_yP,4)-1)&"-"&TEXT(VALUE(MID(dms_CRCP_yP,3,2)),"00"),VALUE(LEFT(dms_CRCP_yP,4)-1)) ->  | I149: dms_CRCP_yO | J149: 12 | L149: 2016-17 | M149: 2017 | P149: =VALUE(LEFT(dms_CRYf_y11,4)+1)&"-"&TEXT(MID(dms_CRYf_y11,3,2)+2,"00") -> 2027-28 | Q149: dms_CRYf_y12 | R149: =VALUE(LEFT(dms_CRYc_y11,4)+1) -> 2028 | S149: dms_CRYc_y12
B150: 13 | C150: dms_FRCP_y13 | D150: 13 | E150: CRCP_y13 | F150: =IF(dms_RPT="financial",VALUE(LEFT(dms_FRCP_y12,4)+1)&"-"&TEXT(VALUE(RIGHT(dms_FRCP_y12,2)+1),"00"),VALUE(LEFT(dms_FRCP_y12,4)+1)) ->  | G150: dms_FRCP_y13 | H150: =IF(dms_RPT="financial",VALUE(LEFT(dms_CRCP_yO,4)-1)&"-"&TEXT(VALUE(MID(dms_CRCP_yO,3,2)),"00"),VALUE(LEFT(dms_CRCP_yO,4)-1)) ->  | I150: dms_CRCP_yN | J150: 13 | L150: 2017-18 | M150: 2018 | P150: =VALUE(LEFT(dms_CRYf_y12,4)+1)&"-"&TEXT(MID(dms_CRYf_y12,3,2)+2,"00") -> 2028-29 | Q150: dms_CRYf_y13 | R150: =VALUE(LEFT(dms_CRYc_y12,4)+1) -> 2029 | S150: dms_CRYc_y13
B151: 14 | C151: dms_FRCP_y14 | D151: 14 | E151: CRCP_y14 | F151: =IF(dms_RPT="financial",VALUE(LEFT(dms_FRCP_y13,4)+1)&"-"&TEXT(VALUE(RIGHT(dms_FRCP_y13,2)+1),"00"),VALUE(LEFT(dms_FRCP_y13,4)+1)) ->  | G151: dms_FRCP_y14 | H151: =IF(dms_RPT="financial",VALUE(LEFT(dms_CRCP_yN,4)-1)&"-"&TEXT(VALUE(MID(dms_CRCP_yN,3,2)),"00"),VALUE(LEFT(dms_CRCP_yN,4)-1)) ->  | I151: dms_CRCP_yM | J151: 14 | L151: 2018-19 | M151: 2019 | P151: =VALUE(LEFT(dms_CRYf_y13,4)+1)&"-"&TEXT(MID(dms_CRYf_y13,3,2)+2,"00") -> 2029-30 | Q151: dms_CRYf_y14 | R151: =VALUE(LEFT(dms_CRYc_y13,4)+1) -> 2030 | S151: dms_CRYc_y14
B152: 15 | C152: dms_FRCP_y15 | D152: 15 | E152: CRCP_y15 | F152: =IF(dms_RPT="financial",VALUE(LEFT(dms_FRCP_y14,4)+1)&"-"&TEXT(VALUE(RIGHT(dms_FRCP_y14,2)+1),"00"),VALUE(LEFT(dms_FRCP_y14,4)+1)) ->  | G152: dms_FRCP_y15 | H152: =IF(dms_RPT="financial",VALUE(LEFT(dms_CRCP_yM,4)-1)&"-"&TEXT(VALUE(MID(dms_CRCP_yM,3,2)),"00"),VALUE(LEFT(dms_CRCP_yM,4)-1)) ->  | I152: dms_CRCP_yL | J152: 15 | L152: 2019-20 | M152: 2020 | P152: =VALUE(LEFT(dms_CRYf_y14,4)+1)&"-"&TEXT(MID(dms_CRYf_y14,3,2)+2,"00") -> 2030-31 | Q152: dms_CRYf_y15 | R152: =VALUE(LEFT(dms_CRYc_y14,4)+1) -> 2031 | S152: dms_CRYc_y15
L153: 2020-21 | M153: 2021 | P153: =VALUE(LEFT(dms_CRYf_y15,4)+1)&"-"&TEXT(MID(dms_CRYf_y15,3,2)+2,"00") -> 2031-32 | Q153: dms_CRYf_y16 | R153: =VALUE(LEFT(dms_CRYc_y15,4)+1) -> 2032 | S153: dms_CRYc_y16
B154: These are drop down lists for businesses to select the correct FRCP_y1 on the business and other details worksheet. This also populates the column headings in the worksheets | L154: 2021-22 | M154: 2022 | P154: =VALUE(LEFT(dms_CRYf_y16,4)+1)&"-"&TEXT(MID(dms_CRYf_y16,3,2)+2,"00") -> 2032-33 | Q154: dms_CRYf_y17 | R154: =VALUE(LEFT(dms_CRYc_y16,4)+1) -> 2033 | S154: dms_CRYc_y17
B155: dms_RCP_fyear_list | C155: dms_CRY_ListF | D155: dms_CRY_ListC | E155: dms_RCP_cyear_list | F155: dms_FRCP_fyear_list | G155: dms_FRCP_ListF | H155: dms_FRCP_ListC | I155: dms_FRCP_cyear_list | L155: 2022-23 | M155: 2023 | P155: =VALUE(LEFT(dms_CRYf_y17,4)+1)&"-"&TEXT(MID(dms_CRYf_y17,3,2)+2,"00") -> 2033-34 | Q155: dms_CRYf_y18 | R155: =VALUE(LEFT(dms_CRYc_y17,4)+1) -> 2034 | S155: dms_CRYc_y18
B156: dms_fy1 | C156: 2005-06 | D156: 2006 | E156: dms_cy1 | F156: dms_frcp_fy1 | G156: 2010-11 | H156: 2011 | I156: dms_crcp_cy1 | L156: 2023-24 | M156: 2024 | P156: =VALUE(LEFT(dms_CRYf_y18,4)+1)&"-"&TEXT(MID(dms_CRYf_y18,3,2)+2,"00") -> 2034-35 | Q156: dms_CRYf_y19 | R156: =VALUE(LEFT(dms_CRYc_y18,4)+1) -> 2035 | S156: dms_CRYc_y19
B157: dms_fy2 | C157: 2006-07 | D157: 2007 | E157: dms_cy2 | F157: dms_frcp_fy2 | G157: 2011-12 | H157: 2012 | I157: dms_crcp_cy2 | L157: 2024-25 | M157: 2025 | P157: =VALUE(LEFT(dms_CRYf_y19,4)+1)&"-"&TEXT(MID(dms_CRYf_y19,3,2)+2,"00") -> 2035-36 | Q157: dms_CRYf_y20 | R157: =VALUE(LEFT(dms_CRYc_y19,4)+1) -> 2036 | S157: dms_CRYc_y20
B158: dms_fy3 | C158: 2007-08 | D158: 2008 | E158: dms_cy3 | F158: dms_frcp_fy3 | G158: 2012-13 | H158: 2013 | I158: dms_crcp_cy3 | L158: 2025-26 | M158: 2026
B159: dms_fy4 | C159: 2008-09 | D159: 2009 | E159: dms_cy4 | F159: dms_frcp_fy4 | G159: 2013-14 | H159: 2014 | I159: dms_crcp_cy4 | L159: 2026-27 | M159: 2027
B160: dms_fy5 | C160: 2009-10 | D160: 2010 | E160: dms_cy5 | F160: dms_frcp_fy5 | G160: 2014-15 | H160: 2015 | I160: dms_crcp_cy5 | L160: 2027-28 | M160: 2028
B161: dms_fy6 | C161: 2010-11 | D161: 2011 | E161: dms_cy6 | F161: dms_frcp_fy6 | G161: 2015-16 | H161: 2016 | I161: dms_crcp_cy6 | L161: 2028-29 | M161: 2029
B162: dms_fy7 | C162: 2011-12 | D162: 2012 | E162: dms_cy7 | F162: dms_frcp_fy7 | G162: 2016-17 | H162: 2017 | I162: dms_crcp_cy7 | L162: 2029-30 | M162: 2030
B163: dms_fy8 | C163: 2012-13 | D163: 2013 | E163: dms_cy8 | F163: dms_frcp_fy8 | G163: 2017-18 | H163: 2018 | I163: dms_crcp_cy8 | L163: 2030-31 | M163: 2031
B164: dms_fy9 | C164: 2013-14 | D164: 2014 | E164: dms_cy9 | F164: dms_frcp_fy9 | G164: 2018-19 | H164: 2019 | I164: dms_crcp_cy9 | L164: 2031-32 | M164: 2032
B165: dms_fy10 | C165: 2014-15 | D165: 2015 | E165: dms_cy10 | F165: dms_frcp_fy10 | G165: 2019-20 | H165: 2020 | I165: dms_crcp_cy10 | L165: 2032-33 | M165: 2033
B166: dms_fy11 | C166: 2015-16 | D166: 2016 | E166: dms_cy11 | F166: dms_frcp_fy11 | G166: 2020-21 | H166: 2021 | I166: dms_crcp_cy11 | L166: 2033-34 | M166: 2034
B167: dms_fy12 | C167: 2016-17 | D167: 2017 | E167: dms_cy12 | F167: dms_frcp_fy12 | G167: 2021-22 | H167: 2022 | I167: dms_crcp_cy12 | L167: 2034-35 | M167: 2035
B168: dms_fy13 | C168: 2017-18 | D168: 2018 | E168: dms_cy13 | F168: dms_frcp_fy13 | G168: 2022-23 | H168: 2023 | I168: dms_crcp_cy13 | L168: 2035-36 | M168: 2036
B169: dms_fy14 | C169: 2018-19 | D169: 2019 | E169: dms_cy14 | F169: dms_frcp_fy14 | G169: 2023-24 | H169: 2024 | I169: dms_crcp_cy14
B170: dms_fy15 | C170: 2019-20 | D170: 2020 | E170: dms_cy15 | F170: dms_frcp_fy15 | G170: 2024-25 | H170: 2025 | I170: dms_crcp_cy15
B171: dms_fy16 | C171: 2020-21 | D171: 2021 | E171: dms_cy16
B172: dms_fy17 | C172: 2021-22 | D172: 2022 | E172: dms_cy17
B173: dms_fy18 | C173: 2022-23 | D173: 2023 | E173: dms_cy18
B174: dms_fy19 | C174: 2023-24 | D174: 2024 | E174: dms_cy19
B175: dms_fy20 | C175: 2024-25 | D175: 2025 | E175: dms_cy20
B187: These "row descriptions" are the column headings in the various templates but become row descriptions in the ETL process
C188: Table 6.3 sustained interruptions - row descriptions
C189: dms_060301_CustNo_Affected_Row | D189: dms_060301_Avg_Duration_Sustained_Int_Row | E189: dms_060301_Effect_unplanned_SAIDI_Row | F189: dms_060301_Effect_unplanned_SAIFI_Row
C190: Number of customers affected by the interruption | D190: Average duration of sustained customer interruption | E190: Effect on unplanned SAIDI | F190: Effect on unplanned SAIFI
C194: Table 6.1 telephone answering - row descriptions and start date
C195: dms_060101_Rows | D195: dms_060102_Rows | E195: dms_060101_StartDateTxt
C196: Total number of calls (after removing excluded events) | D196: Number of calls answered within 30 seconds (after excluding excluded events) | E196: =dms_060701_StartDateTxt -> 
H200: dms_0603_FeederList | I200: =INDEX(dms_FeederName_1,MATCH(dms_TradingName,dms_TradingName_List)) -> CBD | J200: =INDEX(dms_FeederName_2,MATCH(dms_TradingName,dms_TradingName_List)) -> Urban | K200: =INDEX(dms_FeederName_3,MATCH(dms_TradingName,dms_TradingName_List)) -> Short rural | L200: =INDEX(dms_FeederName_4,MATCH(dms_TradingName,dms_TradingName_List)) -> Long rural
C201: Table 6.7.1 - daily performance data - unplanned - MAIFI -- row descriptions and header named range values
C202: These headings (Lists) are determined from the INDEX/MATCH function on the NSP selected on the Business & other details sheet
B203: dms_060701_Feeder_Header_Lvl4 | C203: =INDEX(dms_FeederName_1,MATCH(dms_TradingName,dms_TradingName_List)) -> CBD | D203: =INDEX(dms_FeederName_1,MATCH(dms_TradingName,dms_TradingName_List)) -> CBD | E203: =INDEX(dms_FeederName_2,MATCH(dms_TradingName,dms_TradingName_List)) -> Urban | F203: =INDEX(dms_FeederName_2,MATCH(dms_TradingName,dms_TradingName_List)) -> Urban | G203: =INDEX(dms_FeederName_3,MATCH(dms_TradingName,dms_TradingName_List)) -> Short rural | H203: =INDEX(dms_FeederName_3,MATCH(dms_TradingName,dms_TradingName_List)) -> Short rural | I203: =INDEX(dms_FeederName_4,MATCH(dms_TradingName,dms_TradingName_List)) -> Long rural | J203: =INDEX(dms_FeederName_4,MATCH(dms_TradingName,dms_TradingName_List)) -> Long rural | K203: =IF((INDEX(dms_FeederName_5,MATCH(dms_TradingName,dms_TradingName_List))=0),"Network",(INDEX(dms_FeederName_5,MATCH(dms_TradingName,dms_TradingName_List)))) -> Network | L203: =IF((INDEX(dms_FeederName_5,MATCH(dms_TradingName,dms_TradingName_List))=0),"Network",(INDEX(dms_FeederName_5,MATCH(dms_TradingName,dms_TradingName_List)))) -> Network | M203: Network | N203: Network
B205: dms_060701_Rows | C205: All events | D205: After removing excluded events | E205: All events | F205: After removing excluded events | G205: All events | H205: After removing excluded events | I205: All events | J205: After removing excluded events | K205: All events | L205: After removing excluded events | M205: All events | N205: After removing excluded events
C206: the number of column headings changes from 10 to 12 depending on the number of feeder categories for the NSP
C211: Table 6.8.1 - row descriptions
C212: dms_060801_01_Rows | D212: dms_060801_02_Rows | E212: dms_060801_03_Rows | F212: dms_060801_04_Rows
C213: Number of interruptions | D213: Duration of interruptions | E213: Total unplanned minutes off supply | F213: Effect on unplanned MAIFI
C218: Table 7.9.4 - market impact component - row descriptions
B219: dms_070904_01_Rows | C219: without exclusions | D219: with exclusions
C225: Use this to add to existing files
C226: ARRs 6.7 STPIS daily performance
C227: dms_060101_Values | D227: dms_060102_Values | E227: dms_060701_Values
C229: ARR's 6.8 STPIS exclusions
C230: dms_060801_Event_Date | D230: dms_060801_OutageID | E230: dms_060801_FeederID | F230: dms_060801_FeederClass | G230: dms_060801_CauseID | H230: dms_060801_01_Values | I230: dms_060801_02_Values | J230: dms_060801_03_Values | K230: dms_060801_Excl_Cat | L230: dms_060801_04_Values
C232: CA 6.3 sustained interruptions
C233: dms_060301_Event_Date | D233: dms_060301_Event_Time | E233: dms_060301_AssetID | F233: dms_060301_FeederClass | G233: dms_060301_Reason | H233: dms_060301_DetailedReason | I233: dms_060301_CustNo_Affected_Values | J233: dms_060301_Avg_Duration_Sustained_Int_Values | K233: dms_060301_Effect_unplanned_SAIDI_Values | L233: dms_060301_Effect_unplanned_SAIFI_Values | M233: dms_060301_MED

Sheet Business & other details
B2: =INDEX(dms_TradingNameFull_List,MATCH(dms_TradingName,dms_TradingName_List)) -> Ausgrid
B4: BUSINESS & OTHER DETAILS
B7: Instructions
B8: Complete the following business details regulatory template before entering data or values in any other regulatory template. This regulatory template is linked to other cells within the spreadsheet and automatically generates column headings and conditional formatting to distinguish business specific input and non-input cells.
B10: SUBMISSION PARTICULARS INPUT SHEETS
B12: ENTITY DETAILS
B14: Short name | C14: Ausgrid | F14: Select business name from drop down list first
B15: ACN / ABN | C15: =INDEX(dms_ABN_List,MATCH(dms_TradingName,dms_TradingName_List)) -> 78508211731
B18: Business address | C18: Address 1 | E18: =INDEX(dms_Addr1_List,MATCH(dms_TradingName,dms_TradingName_List)) -> 570 George St
D19: Address 2 | E19: =IF(ISBLANK(INDEX(dms_Addr2_List,MATCH(dms_TradingName,dms_TradingName_List))),"",(INDEX(dms_Addr2_List,MATCH(dms_TradingName,dms_TradingName_List)))) -> 
C20: Suburb | E20: =INDEX(dms_Suburb_List,MATCH(dms_TradingName,dms_TradingName_List)) -> SYDNEY
D21: State | E21: =INDEX(dms_State_List,MATCH(dms_TradingName,dms_TradingName_List)) -> NSW | F21: p/code | G21: =INDEX(dms_PostCode_List,MATCH(dms_TradingName,dms_TradingName_List)) -> 2000
B23: Postal address | C23: Address 1 | E23: =INDEX(dms_PAddr1_List,MATCH(dms_TradingName,dms_TradingName_List)) -> GPO Box 4009
D24: Address 2 | E24: =IF(ISBLANK(INDEX(dms_PAddr2_List,MATCH(dms_TradingName,dms_TradingName_List))),"",(INDEX(dms_PAddr2_List,MATCH(dms_TradingName,dms_TradingName_List)))) -> 
C25: Suburb | E25: =INDEX(dms_PSuburb_List,MATCH(dms_TradingName,dms_TradingName_List)) -> SYDNEY
D26: State | E26: =INDEX(dms_PState_List,MATCH(dms_TradingName,dms_TradingName_List)) -> NSW | F26: p/code | G26: =INDEX(dms_PPostCode_List,MATCH(dms_TradingName,dms_TradingName_List)) -> 2001
B29: Contact name/s | C29: =INDEX(dms_ContactName1_List,MATCH(dms_TradingName,dms_TradingName_List)) -> John Thomson
B30: Contact phone/s
B31: Contact email address/s
B33: REGULATORY CONTROL PERIODS
B35: Forthcoming regulatory control period | C35: 2020-21
B39: Current regulatory control period
B44: Previous regulatory control period
B48: Commencing regulatory year | C48: 2016-17 | D48: CRY
B50: Last completed regulatory year | C50: 2016-17 | D50: dms_FinalYear

Sheet Contents
B4: Annual Reporting RIN Template
B5: Table of Contents
C8: Instructions
C9: Business & other details
B12: CATEGORY ANALYSIS | C12: STPIS | D12: STATUTORY ACCOUNTS
B14: 2.11 Labour | C14: 6.2 STPIS Reliability | D14: 8.1 Income
C15: 6.6 STPIS Customer Service | D15: 8.2 Capex
C16: 6.7 STPIS Daily Performance
C17: 6.8 STPIS Exclusions | D17: 8.4 Opex
C18: 6.9 STPIS GSL
B22: NETWORK PERFORMANCE | C22: OTHER INFORMATION | D22: PRICING PROPOSAL
D23: Victorian Businesses Only
B24: 3.6 Quality of services | C24: 7.8 Avoided Cost Payments
B25: 3.6.8 Network-feeders | C25: 7.10 Juris Scheme | D25: 9.5 TUoS
B26: 3.6.9 Network-reliability | C26: 7.11 DMIS-DMIA
C27: 7.12 Safety and Bushfire
C28: 7.13 TARC
B29: PUBLIC LIGHTING
B31: 4.1 Public lighting tariffs

Sheet Instructions
B9: Annual Reporting RIN Template
C11: =CONCATENATE("This template is to be used by ",dms_TradingName, " to fulfil its annual reporting obligations to the AER.") -> This template is to be used by Ausgrid to fulfil its annual reporting obligations to the AER.
F12: Amendments made December 2015
F13: Click here for details.
C14: INSTRUCTIONS
C15: Complete the Business & other details worksheet before entering data or values in any other worksheets. The Business & other details worksheet is linked to other cells within the workbook and automatically generates certain column headings and conditional formatting.
C17: Identifying CONFIDENTIAL INFORMATION: Please use the macro at the top of each worksheet to identify confidential information.
C18: -Do this by selecting the cell or cells that contain confidential information and then run the Mark selected cells as CONFIDENTIAL macro. This will format the cells a specific colour that is identified by the AER's database which in turn marks that information as confidential. -To reverse this, select the cell or cells and run the Return cells to NON-CONFIDENTIAL macro
C20: All amounts are to be unrounded and reported in nominal terms on a one for one basis: that is 1000 is to be entered as '1000' not '1' as in previous templates. Colour coding of input sheets:
D21: Yellow = Input cells
D22: Grey = Not applicable/No inputs required
D23: Leave coloured cells blank if no information exists. PLEASE DO NOT ENTER TEXT into cells that are to contain numeric data.
C26: Returning completed responses Please return two (2) files to the AER: 1. A confidential version which must contain a complete set of all responses with confidential information marked using the Mark selected cells CONFIDENTIAL macro and which has been completed using the locked template file provided by the AER. 2. A public version with confidential information either removed completely or aggregated in some form together with writtten consent to disclose the public version of the response. Use the drop down box on the Business and other details worksheet to identify the file as either confidential ('consolidated') or public.

Sheet 2.11 Labour
B2: =dms_TradingName -> Ausgrid
B3: =CONCATENATE("Annual Reporting RIN Response ",CRY) -> Annual Reporting RIN Response 2016-17
B4: 2.11 LABOUR
B6: Tables 2.11.1 and 2.11.2 deliberately omitted.
B8: 2.11.3 - LABOUR / NON-LABOUR EXPENDITURE SPLIT
B9: 2.11.3.1 - Opex
C10: =CRY -> 2016-17
C11: $0's, nominal
C12: Opex
B13: In-house labour expenditure | C13: 334740920.9
B14: Labour expenditure outsourced to related parties | C14: 0
B15: Labour expenditure outsourced to unrelated parties | C15: 0
B16: Controllable non-labour expenditure | C16: 168180747.9
B17: Uncontrollable non-labour expenditure | C17: 28215559.92
B18: Total | C18: =SUM(C13:C17) -> 531137228.7
B20: Reconciliation with Opex worksheets - SCS | C20: Opex
B21: Total including margins | C21: =dms_Total_Actual_Opex -> 531137228.7 | D21: =IF(C18=dms_Total_Actual_Opex,"OK","Error") -> OK
B24: 2.11.3.2 - Capex
C25: =CRY -> 2016-17
C26: $0's, nominal
C27: Capex
B28: In-house labour expenditure | C28: 208648393.4
B29: Labour expenditure outsourced to related parties | C29: 0
B30: Labour expenditure outsourced to unrelated parties | C30: 0
B31: Controllable non-labour expenditure | C31: 249433078.2
B32: Uncontrollable non-labour expenditure | C32: 0
B33: Total | C33: =SUM(C28:C32) -> 458081471.7
B35: Reconciliation with Capex & Opex worksheets - SCS | C35: Capex
B36: Total including margins | C36: =dms_Total_Actual_Capex -> 574018873.6 | D36: =IF(C33=dms_Total_Actual_Capex,"OK","Error") -> Error

Sheet 3.6 Quality of services
B2: =dms_TradingName -> Ausgrid
B3: =CONCATENATE("Annual Reporting RIN Response ",CRY) -> Annual Reporting RIN Response 2016-17
B4: 3.6 QUALITY OF SERVICES
B6: 3.6.5 - QUALITY OF SUPPLY METRICS
C7: Unit | D7: Volume
D8: =CRY -> 2016-17
B9: Over voltage events - due to high voltage injection | C9: number
B10: Customers receiving over-voltage - due to high voltage injection | C10: number
B11: Over voltage events - due to lightning | C11: number
B12: Customers receiving over-voltage - due to lightning | C12: number
B13: Over voltage events - due to voltage regulation or other cause | C13: number
B14: Customers receiving over-voltage - due to voltage regulation or other cause | C14: number
B15: Voltage variations - steady state (zone sub) | C15: number
B16: Voltage variations - one minute (zone sub) | C16: number
B17: Voltage variations - 10 seconds (zone sub) Min<0.7 | C17: number
B18: Voltage variations - 10 seconds (zone sub) Min<0.8 | C18: number
B19: Voltage variations - 10 seconds (zone sub) Min<0.9 | C19: number
B20: Voltage variations - steady state (feeder) | C20: number
B21: Voltage variations - % zone subs monitored | C21: (per cent)
B22: Voltage variations - % feeders monitored | C22: (per cent)
B24: 3.6.6 - COMPLAINTS - TECHNICAL QUALITY OF SUPPLY
C25: Unit | D25: Volume
D26: =CRY -> 2016-17
B27: 3.6.6.1 - TECHNICAL QUALITY OF SUPPLY
B28: Number of complaints - technical quality of supply | C28: number | D28: 110
B29: 3.6.6.2 - PERCENTAGE OF COMPLAINTS BY CATEGORY
B30: Low voltage supply | C30: (per cent)
B31: Voltage dips | C31: (per cent)
B32: Voltage swell | C32: (per cent)
B33: Voltage spike (impulsive transient) | C33: (per cent)
B34: Waveform distortion | C34: (per cent)
B35: TV or radio interference | C35: (per cent)
B36: Solar related | C36: (per cent)
B37: Noise from appliances | C37: (per cent)
B38: Other | C38: (per cent)
B39: 3.6.6.3 - PERCENTAGE OF COMPLAINTS BY LIKELY CAUSE
B40: Network equipment faulty | C40: (per cent)
B41: Network interference by NSP equipment | C41: (per cent)
B42: Network interference by another customer | C42: (per cent)
B43: Network limitation | C43: (per cent)
B44: Customer internal problem | C44: (per cent)
B45: No problem identified | C45: (per cent)
B46: Environmental | C46: (per cent)
B47: Other | C47: (per cent)
B49: 3.6.7 - CUSTOMER SERVICE METRICS
C50: Unit | D50: =CRY -> 2016-17
B51: 3.6.7.1 - TIMELY PROVISIONS OF SERVICES
B52: Number of connections made | C52: number | D52: 132
B53: Number of connections not made on or before agreed date | C53: number | D53: 0
B54: 3.6.7.2 - TIMELY REPAIR OF FAULTY STREET LIGHTS
B55: Street lights - average monthly number "out" | C55: number | D55: 1546.7
B56: Street lights - not repaired by "fix by" date | C56: number | D56: 5752
B57: Street lights - average number of days to repair | C57: number | D57: 7
B58: Total number of street lights | C58: number | D58: 251461
B59: 3.6.7.3 - CALL CENTRE PERFORMANCE
B60: Calls to call centre fault line | C60: number | D60: 182890
B61: Calls to fault line answered within 30 seconds | C61: number | D61: 14300
B62: Calls to fault line - average waiting time before call answered | C62: number | D62: 26
B63: Call centre - number of overload events | C63: number | D63: 0
B64: Percentage of calls abandoned | C64: (per cent) | D64: 6.2
B65: 3.6.7.4 - NUMBER OF CUSTOMER COMPLAINTS
B66: Complaint - reliability of supply | C66: number
B67: Complaint - technical quality of supply | C67: number | D67: =IF(ISBLANK(D28),"",D28) -> 110
B68: Complaint - administrative process or customer service | C68: number
B69: Complaint - connection or augmentation | C69: number
B70: Complaint - other | C70: number
B71: Total number of complaints | C71: number

Sheet 3.6.8 Network-feeders
G1: =CONCATENATE("1-Jan-",LEFT(CRY,4)) -> 1-Jan-2016
B2: =dms_TradingName -> Ausgrid
B3: =CONCATENATE("Annual Reporting RIN Response ",CRY) -> Annual Reporting RIN Response 2016-17
B4: 3.6 QUALITY OF SERVICES
B6: Did the MAIFI parameter of the STPIS apply during the period? | F6: No | G6: ** IMPORTANT Please ensure this question is answered correctly. Your response will affect other tables throughout this workbook and will determine which cells are grey and which are input cells.
B10: 3.6.8 - NETWORK FEEDER RELIABILITY
B11: Feeder ID / name | C11: Description of the service area for the feeder | D11: Feeder classification (drop down) | E11: Number of distribution customers | F11: Length of high voltage distribution lines | H11: Maximum demand (MVA) | I11: Energy not supplied (MWh) | K11: Unplanned Outages | P11: Planned Outages | U11: Momentary feeder outages
F12: Overhead | G12: Underground | I12: Unplanned | J12: Planned | K12: Total number of unplanned outages | L12: Unplanned customer minutes off-supply (SAIDI) | N12: Unplanned interruptions (SAIFI) | P12: Total number of planned outages | Q12: Planned customer minutes off-supply (SAIDI) | S12: Planned interruptions (SAIFI) | U12: Total number of momentary feeder outages | V12: Momentary interruptions due to feeder outages (MAIFI)
L13: Including excluded events and MEDs | M13: After removing excluded events and MED | N13: Including excluded events and MEDs | O13: After removing excluded events and MED | Q13: Including MEDs | R13: After removing MED | S13: Including MEDs | T13: After removing MED | V13: Including excluded events and MEDs | W13: After removing excluded events and MED
B14: 202:34231 37 42 | C14: NEWCASTLE CBD 33 | D14: URBAN | E14: 392 | F14: 0 | G14: 4779.295125 | H14: 3.093776 | I14: 432.7748185 | J14: 260.9216676 | K14: 5 | L14: 19090.93333 | M14: 19090.93333 | N14: 23.46938776 | O14: 23.46938776 | P14: 3 | Q14: 11510 | R14: 11510 | S14: 10.20408163 | T14: 10.20408163
B15: 202:34232 | C15: NEWCASTLE CBD 33 | D15: URBAN | E15: 809 | F15: 2554.728193 | G15: 1541.464895 | H15: 3.295025744 | I15: 0.482875047 | J15: 0.2414375235 | K15: 1 | L15: 20 | M15: 20 | N15: 0.2472187886 | O15: 0.2472187886 | P15: 1 | Q15: 10 | R15: 10 | S15: 0.1236093943 | T15: 0.1236093943
B16: 202:34239 | C16: NEWCASTLE CBD 33 | D16: SHORT RURAL | E16: 58 | F16: 0 | G16: 3997.381924 | H16: 0.1647512872 | I16: 0 | J16: 35.8474363 | K16: 0 | L16: 0 | M16: 0 | N16: 0 | O16: 0 | P16: 3 | Q16: 29695 | R16: 29695 | S16: 96.55172414 | T16: 96.55172414
B17: 202:34240 | C17: NEWCASTLE CBD 33 | D17: URBAN | E17: 930 | F17: 0 | G17: 4892.802294 | H17: 5.107289902 | I17: 4.547495875 | J17: 0 | K17: 1 | L17: 121.5166667 | M17: 121.5166667 | N17: 0.1075268817 | O17: 0.1075268817 | P17: 0 | Q17: 0 | R17: 0 | S17: 0 | T17: 0
B18: 202:34245 | C18: NEWCASTLE CBD 33 | D18: URBAN | E18: 963 | F18: 3446.46846 | G18: 3578.390667 | H18: 4.155393577 | I18: 272.6756403 | J18: 0 | K18: 3 | L18: 8955.466667 | M18: 8955.466667 | N18: 15.68016615 | O18: 15.68016615 | P18: 0 | Q18: 0 | R18: 0 | S18: 0 | T18: 0
B19: 202:34249 | C19: NEWCASTLE CBD 33 | D19: URBAN | E19: 401 | F19: 0 | G19: 5813.433729 | H19: 3.185191552 | I19: 9.084690415 | J19: 723.7411683 | K19: 2 | L19: 389.25 | M19: 389.25 | N19: 0.4987531172 | O19: 0.4987531172 | P19: 5 | Q19: 31010 | R19: 31010 | S19: 35.66084788 | T19: 35.66084788
B20: 202:34250 | C20: NEWCASTLE CBD 33 | D20: URBAN | E20: 1195 | F20: 2708.594975 | G20: 1814.152898 | H20: 2.928911772 | I20: 3.703472768 | J20: 1168.986836 | K20: 2 | L20: 172.5666667 | M20: 172.5666667 | N20: 0.1673640167 | O20: 0.1673640167 | P20: 2 | Q20: 54470 | R20: 54470 | S20: 15.48117155 | T20: 15.48117155
B21: 202:34253 | C21: NEWCASTLE CBD 33 | D21: URBAN | E21: 570 | F21: 781.363816 | G21: 2811.222869 | H21: 2.1781336 | I21: 38.44742605 | J21: 4.756053533 | K21: 1 | L21: 2409 | M21: 2409 | N21: 5.789473684 | O21: 5.789473684 | P21: 1 | Q21: 298 | R21: 298 | S21: 0.1754385965 | T21: 0.1754385965
B22: 202:34254 | C22: NEWCASTLE CBD 33 | D22: URBAN | E22: 1917 | F22: 3661.695606 | G22: 5298.655453 | H22: 6.370104 | I22: 995.3381644 | J22: 12311.92922 | K22: 9 | L22: 21324.46667 | M22: 21324.46667 | N22: 6.468440271 | O22: 6.468440271 | P22: 4 | Q22: 263775 | R22: 263775 | S22: 28.79499218 | T22: 28.79499218
B23: 202:34256 | C23: NEWCASTLE CBD 33 | D23: URBAN | E23: 952 | F23: 0 | G23: 1723.852073 | H23: 2.30651802 | I23: 3.587439682 | J23: 0 | K23: 1 | L23: 212.2666667 | M23: 212.2666667 | N23: 0.1050420168 | O23: 0.1050420168 | P23: 0 | Q23: 0 | R23: 0 | S23: 0 | T23: 0
B24: 202:34259 | C24: NEWCASTLE CBD 33 | D24: URBAN | E24: 388 | F24: 0 | G24: 2797.929774 | H24: 2.416412 | I24: 317.8555355 | J24: 142.3550861 | K24: 1 | L24: 17952 | M24: 17952 | N24: 96.39175258 | O24: 96.39175258 | P24: 1 | Q24: 8040 | R24: 8040 | S24: 34.53608247 | T24: 34.53608247
B25: 202:34260 | C25: NEWCASTLE CBD 33 | D25: URBAN | E25: 2492 | F25: 5307.386046 | G25: 2593.866802 | H25: 4.137087878 | I25: 9183.927671 | J25: 0 | K25: 12 | L25: 302961.7167 | M25: 302961.7167 | N25: 164.4863563 | O25: 164.4863563 | P25: 0 | Q25: 0 | R25: 0 | S25: 0 | T25: 0
B26: 202:34261 | C26: NEWCASTLE CBD 33 | D26: URBAN | E26: 521 | F26: 0 | G26: 3801.705636 | H26: 1.8120688 | I26: 0.5576605579 | J26: 782.318097 | K26: 1 | L26: 42 | M26: 42 | N26: 0.1919385797 | O26: 0.1919385797 | P26: 7 | Q26: 58920 | R26: 58920 | S26: 27.25527831 | T26: 27.25527831
B27: 202:34262 | C27: NEWCASTLE CBD 33 | D27: URBAN | E27: 882 | F27: 0 | G27: 5776.08493 | H27: 4.6128008 | I27: 709.621124 | J27: 79.42889456 | K27: 1 | L27: 20995 | M27: 20995 | N27: 7.369614512 | O27: 7.369614512 | P27: 2 | Q27: 2350 | R27: 2350 | S27: 0.4535147392 | T27: 0.4535147392
B28: 203:8082 | C28: CARRINGTON 33 | D28: URBAN | E28: 22 | F28: 1554.556499 | G28: 512.5000577 | H28: 2.764160485 | I28: 27.03899065 | J28: 79.51691183 | K28: 1 | L28: 1335 | M28: 1335 | N28: 59.09090909 | O28: 59.09090909 | P28: 1 | Q28: 3926 | R28: 3926 | S28: 59.09090909 | T28: 59.09090909
B29: 203:8084 | C29: CARRINGTON 33 | D29: URBAN | E29: 1017 | F29: 7104.781551 | G29: 2014.531119 | H29: 3.972336591 | I29: 1015.807971 | J29: 23.28530782 | K29: 4 | L29: 34899.53333 | M29: 34899.53333 | N29: 25.36873156 | O29: 25.36873156 | P29: 1 | Q29: 800 | R29: 800 | S29: 0.1966568338 | T29: 0.1966568338
B30: 203:8085 | C30: CARRINGTON 33 | D30: URBAN | E30: 1403 | F30: 3846.641816 | G30: 4655.667894 | H30: 4.320144864 | I30: 309.9386605 | J30: 0 | K30: 4 | L30: 9791.1 | M30: 9791.1 | N30: 5.274411974 | O30: 5.274411974 | P30: 0 | Q30: 0 | R30: 0 | S30: 0 | T30: 0
B31: 203:8086 | C31: CARRINGTON 33 | D31: URBAN | E31: 2818 | F31: 8806.158616 | G31: 1139.182471 | H31: 4.667953137 | I31: 110.0776041 | J31: 2284.119691 | K31: 6 | L31: 3218.3 | M31: 3218.3 | N31: 1.738821859 | O31: 1.738821859 | P31: 1 | Q31: 66780 | R31: 66780 | S31: 4.47125621 | T31: 4.47125621
B32: 203:8088 | C32: CARRINGTON 33 | D32: URBAN | E32: 641 | F32: 3153.870899 | G32: 1046.779026 | H32: 2.471269308 | I32: 3.005293574 | J32: 0 | K32: 2 | L32: 165.9666667 | M32: 165.9666667 | N32: 0.3120124805 | O32: 0.3120124805 | P32: 0 | Q32: 0 | R32: 0 | S32: 0 | T32: 0
B33: 203:8089 | C33: CARRINGTON 33 | D33: URBAN | E33: 247 | F33: 1532.968228 | G33: 759.5423834 | H33: 2.489575006 | I33: 0 | J33: 103.1582059 | K33: 0 | L33: 0 | M33: 0 | N33: 0 | O33: 0 | P33: 2 | Q33: 5655 | R33: 1155 | S33: 7.287449393 | T33: 1.214574899
B34: 205:12203 | C34: KOTARA 33 | D34: URBAN | E34: 656 | F34: 3641.942993 | G34: 1846.563398 | H34: 4.008947988 | I34: 74.63965925 | J34: 5541.574638 | K34: 2 | L34: 2540.933333 | M34: 2540.933333 | N34: 10.06097561 | O34: 10.06097561 | P34: 1 | Q34: 188650 | R34: 188650 | S34: 52.28658537 | T34: 52.28658537
B35: 205:12205 | C35: KOTARA 33 | D35: SHORT RURAL | E35: 1676 | F35: 10202.19872 | G35: 2867.85542 | H35: 5.070678505 | I35: 4094.413697 | J35: 3156.279212 | K35: 10 | L35: 110199.5167 | M35: 110199.5167 | N35: 107.3389021 | O35: 107.3389021 | P35: 2 | Q35: 84950 | R35: 84950 | S35: 16.46778043 | T35: 16.46778043
B36: 205:12206 | C36: KOTARA 33 | D36: URBAN | E36: 887 | F36: 3171.221595 | G36: 948.3056718 | H36: 2.324823719 | I36: 239.4820182 | J36: 52.60333456 | K36: 5 | L36: 14058.43333 | M36: 14058.43333 | N36: 11.95039459 | O36: 11.95039459 | P36: 1 | Q36: 3088 | R36: 3088 | S36: 0.1127395716 | T36: 0.1127395716
B37: 205:12210 | C37: KOTARA 33 | D37: URBAN | E37: 1502 | F37: 6572.179777 | G37: 929.8872646 | H37: 4.832704424 | I37: 507.4290285 | J37: 747.8768728 | K37: 4 | L37: 14329.76667 | M37: 14329.76667 | N37: 13.91478029 | O37: 13.91478029 | P37: 1 | Q37: 21120 | R37: 21120 | S37: 12.78295606 | T37: 12.78295606
B38: 205:12213 | C38: KOTARA 33 | D38: SHORT RURAL | E38: 883 | F38: 5377.690055 | G38: 903.8572443 | H38: 1.775652762 | I38: 122.133029 | J38: 50.10459033 | K38: 5 | L38: 9387.05 | M38: 9387.05 | N38: 7.927519819 | O38: 7.927519819 | P38: 2 | Q38: 3851 | R38: 3851 | S38: 3.397508494 | T38: 3.397508494
B39: 206:34432 | C39: CROUDACE BAY 33 11 | D39: URBAN | E39: 1158 | F39: 4824.763993 | G39: 4347.307817 | H39: 5.546626668 | I39: 2921.078187 | J39: 41.86124261 | K39: 5 | L39: 71873.41667 | M39: 71873.41667 | N39: 100.2590674 | O39: 100.2590674 | P39: 2 | Q39: 1030 | R39: 1030 | S39: 0.1727115717 | T39: 0.1727115717
B40: 206:34434 | C40: CROUDACE BAY 33 11 | D40: URBAN | E40: 1519 | F40: 4817.974858 | G40: 3774.542441 | H40: 5.510015271 | I40: 2.516628497 | J40: 2423.230627 | K40: 1 | L40: 62.33333333 | M40: 62.33333333 | N40: 0.06583278473 | O40: 0.06583278473 | P40: 4 | Q40: 60020 | R40: 60020 | S40: 23.30480579 | T40: 23.30480579
B41: 206:34437 | C41: CROUDACE BAY 33 11 | D41: SHORT RURAL | E41: 29 | F41: 2587.56511 | G41: 158.4884145 | H41: 0.1647512872 | I41: 2.856205903 | J41: 0 | K41: 1 | L41: 2366 | M41: 2366 | N41: 48.27586207 | O41: 48.27586207 | P41: 0 | Q41: 0 | R41: 0 | S41: 0 | T41: 0
B42: 206:34438 | C42: CROUDACE BAY 33 11 | D42: URBAN | E42: 610 | F42: 3759.683808 | G42: 2026.638921 | H42: 2.269906623 | I42: 154.6327395 | J42: 158.3234608 | K42: 2 | L42: 9297.1 | M42: 9297.1 | N42: 8.524590164 | O42: 8.524590164 | P42: 1 | Q42: 9519 | R42: 9519 | S42: 9.344262295 | T42: 9.344262295
B43: 206:34440 | C43: CROUDACE BAY 33 11 | D43: URBAN | E43: 1626 | F43: 8310.608756 | G43: 2738.410183 | H43: 5.894434941 | I43: 12435.30735 | J43: 2643.387579 | K43: 8 | L43: 287917.7167 | M43: 287917.7167 | N43: 105.6580566 | O43: 105.6580566 | P43: 2 | Q43: 61203 | R43: 61203 | S43: 12.60762608 | T43: 12.60762608
B44: 206:34441 | C44: CROUDACE BAY 33 11 | D44: URBAN | E44: 1341 | F44: 8025.449033 | G44: 1373.584044 | H44: 5.217124094 | I44: 39.1883951 | J44: 4.969589025 | K44: 6 | L44: 1025.133333 | M44: 1025.133333 | N44: 0.4474272931 | O44: 0.4474272931 | P44: 1 | Q44: 130 | R44: 130 | S44: 0.07457121551 | T44: 0.07457121551
B45: 210:83465 | C45: NEW LAMBTON 33 | D45: URBAN | E45: 911 | F45: 6453.500808 | G45: 566.3805502 | H45: 4.265227768 | I45: 3337.558887 | J45: 1162.914682 | K45: 9 | L45: 106792.5 | M45: 106792.5 | N45: 84.19319429 | O45: 84.19319429 | P45: 2 | Q45: 37210 | R45: 37210 | S45: 27.00329308 | T45: 27.00329308
B46: 210:83466 | C46: NEW LAMBTON 33 | D46: URBAN | E46: 891 | F46: 3092.045365 | G46: 158.6266141 | H46: 1.995321145 | I46: 0.5321819546 | J46: 866.2577145 | K46: 1 | L46: 36.4 | M46: 36.4 | N46: 0.1122334456 | O46: 0.1122334456 | P46: 1 | Q46: 59250 | R46: 59250 | S46: 16.83501684 | T46: 16.83501684
B47: 210:83472 | C47: NEW LAMBTON 33 | D47: URBAN | E47: 364 | F47: 1491.848058 | G47: 1893.860553 | H47: 0.7505336416 | I47: 0 | J47: 620.5534534 | K47: 0 | L47: 0 | M47: 0 | N47: 0 | O47: 0 | P47: 1 | Q47: 112840 | R47: 112840 | S47: 100 | T47: 100
B48: 210:83473 | C48: NEW LAMBTON 33 | D48: URBAN | E48: 556 | F48: 2317.608405 | G48: 319.6746966 | H48: 1.830569858 | I48: 117.6585411 | J48: 0 | K48: 1 | L48: 8771.85 | M48: 8771.85 | N48: 18.16546763 | O48: 18.16546763 | P48: 0 | Q48: 0 | R48: 0 | S48: 0 | T48: 0
B49: 210:83474 | C49: NEW LAMBTON 33 | D49: URBAN | E49: 874 | F49: 2832.036112 | G49: 1233.624419 | H49: 2.489575006 | I49: 2.163190789 | J49: 0 | K49: 2 | L49: 118.5833333 | M49: 118.5833333 | N49: 0.2288329519 | O49: 0.2288329519 | P49: 0 | Q49: 0 | R49: 0 | S49: 0 | T49: 0
B50: 213:33769 | C50: MARYLAND 132 | D50: URBAN | E50: 1040 | F50: 0 | G50: 8302.504838 | H50: 4.814398725 | I50: 7.320504195 | J50: 1558.842309 | K50: 1 | L50: 207.5166667 | M50: 207.5166667 | N50: 0.09615384615 | O50: 0.09615384615 | P50: 2 | Q50: 44189 | R50: 44189 | S50: 9.711538462 | T50: 9.711538462
B51: 213:33771 | C51: MARYLAND 132 | D51: URBAN | E51: 1558 | F51: 8762.167001 | G51: 1667.186525 | H51: 4.503201849 | I51: 1474.973178 | J51: 2233.431493 | K51: 9 | L51: 44700.95 | M51: 1184.95 | N51: 32.99101412 | O51: 0.513478819 | P51: 3 | Q51: 67687 | R51: 67687 | S51: 17.90757381 | T51: 17.90757381
B52: 213:33773 | C52: MARYLAND 132 | D52: URBAN | E52: 919 | F52: 935.2205997 | G52: 11624.72911 | H52: 3.697751112 | I52: 0 | J52: 503.8251174 | K52: 0 | L52: 0 | M52: 0 | N52: 0 | O52: 0 | P52: 5 | Q52: 18595 | R52: 18595 | S52: 4.78781284 | T52: 4.78781284
B53: 213:33774 | C53: MARYLAND 132 | D53: URBAN | E53: 1347 | F53: 2891.134483 | G53: 5577.012509 | H53: 4.265227768 | I53: 139.1684784 | J53: 2714.238493 | K53: 1 | L53: 4453 | M53: 4453 | N53: 4.528582034 | O53: 4.528582034 | P53: 5 | Q53: 86848 | R53: 86848 | S53: 23.68225687 | T53: 23.68225687
B54: 213:33775 | C54: MARYLAND 132 | D54: URBAN | E54: 1120 | F54: 5935.082548 | G54: 2478.177829 | H54: 3.423165634 | I54: 752.9096133 | J54: 7317.068092 | K54: 7 | L54: 30017.11667 | M54: 30009.45 | N54: 23.92857143 | O54: 23.83928571 | P54: 4 | Q54: 291718 | R54: 291718 | S54: 48.39285714 | T54: 48.39285714
B55: 213:33777 | C55: MARYLAND 132 | D55: SHORT RURAL | E55: 534 | F55: 15075.87986 | G55: 21743.75964 | H55: 2.599409198 | I55: 1.279940791 | J55: 445.0270325 | K55: 1 | L55: 67.2 | M55: 67.2 | N55: 0.1872659176 | O55: 0.1872659176 | P55: 3 | Q55: 23365 | R55: 23365 | S55: 25.65543071 | T55: 25.65543071
B56: 214:8665 | C56: CARDIFF 33 | D56: URBAN | E56: 1382 | F56: 5517.822473 | G56: 1069.06413 | H56: 4.320144864 | I56: 134.1639882 | J56: 16030.41713 | K56: 6 | L56: 4238.3 | M56: 4238.3 | N56: 6.946454414 | O56: 6.946454414 | P56: 4 | Q56: 506408 | R56: 506408 | S56: 78.43704776 | T56: 78.43704776
B57: 214:8666 | C57: CARDIFF 33 | D57: URBAN | E57: 1479 | F57: 5942.256805 | G57: 1132.458257 | H57: 4.521507548 | I57: 307.9102142 | J57: 400.0519165 | K57: 5 | L57: 9293.833333 | M57: 9293.833333 | N57: 10.48005409 | O57: 10.48005409 | P57: 1 | Q57: 12075 | R57: 12075 | S57: 2.366463827 | T57: 2.366463827
B58: 214:8667 | C58: CARDIFF 33 | D58: URBAN | E58: 879 | F58: 5827.721545 | G58: 4234.631033 | H58: 3.404859935 | I58: 3099.852861 | J58: 1449.585257 | K58: 2 | L58: 124249.85 | M58: 124249.85 | N58: 98.407281 | O58: 98.407281 | P58: 2 | Q58: 58103 | R58: 58103 | S58: 12.96928328 | T58: 12.96928328
B59: 214:8669 | C59: CARDIFF 33 | D59: URBAN | E59: 700 | F59: 3407.394249 | G59: 1597.633923 | H59: 2.800771882 | I59: 85.58710722 | J59: 0 | K59: 6 | L59: 4170.466667 | M59: 4170.466667 | N59: 13.57142857 | O59: 13.57142857 | P59: 0 | Q59: 0 | R59: 0 | S59: 0 | T59: 0
B60: 214:8670 | C60: CARDIFF 33 | D60: URBAN | E60: 979 | F60: 4527.646039 | G60: 3863.979366 | H60: 4.027253687 | I60: 14.86173147 | J60: 1749.000247 | K60: 2 | L60: 503.6333333 | M60: 503.6333333 | N60: 0.2042900919 | O60: 0.2042900919 | P60: 3 | Q60: 59270 | R60: 59270 | S60: 24.92339122 | T60: 24.92339122
B61: 214:8671 | C61: CARDIFF 33 | D61: URBAN | E61: 74 | F61: 1275.229104 | G61: 442.1635811 | H61: 1.098341915 | I61: 0.7853426111 | J61: 261.3963588 | K61: 1 | L61: 97.58333333 | M61: 97.58333333 | N61: 1.351351351 | O61: 1.351351351 | P61: 2 | Q61: 32480 | R61: 32480 | S61: 75.67567568 | T61: 75.67567568
B62: 216:10722 | C62: EDGEWORTH 33 | D62: URBAN | E62: 518 | F62: 1382.671489 | G62: 4594.210466 | H62: 2.031932542 | I62: 0 | J62: 470.7790271 | K62: 0 | L62: 0 | M62: 0 | N62: 0 | O62: 0 | P62: 1 | Q62: 31620 | R62: 31620 | S62: 11.96911197 | T62: 11.96911197
B63: 216:10723 | C63: EDGEWORTH 33 | D63: URBAN | E63: 716 | F63: 2618.913952 | G63: 2233.746186 | H63: 1.574290077 | I63: 0 | J63: 1.441918543 | K63: 0 | L63: 0 | M63: 0 | N63: 0 | O63: 0 | P63: 1 | Q63: 125 | R63: 125 | S63: 0.1396648045 | T63: 0.1396648045
B64: 216:10724 | C64: EDGEWORTH 33 | D64: URBAN | E64: 885 | F64: 7090.654703 | G64: 3507.697706 | H64: 3.441471332 | I64: 13.26193961 | J64: 0 | K64: 2 | L64: 525.9166667 | M64: 525.9166667 | N64: 0.4519774011 | O64: 0.4519774011 | P64: 0 | Q64: 0 | R64: 0 | S64: 0 | T64: 0
B65: 216:10726 | C65: EDGEWORTH 33 | D65: URBAN | E65: 764 | F65: 3494.824877 | G65: 762.2638235 | H65: 2.947217471 | I65: 156.3063844 | J65: 1036.571768 | K65: 1 | L65: 7238 | M65: 7238 | N65: 10.07853403 | O65: 10.07853403 | P65: 1 | Q65: 48000 | R65: 48000 | S65: 12.56544503 | T65: 12.56544503
B66: 216:10727 | C66: EDGEWORTH 33 | D66: SHORT RURAL | E66: 1613 | F66: 16991.90034 | G66: 6736.045126 | H66: 5.583238065 | I66: 23.89294794 | J66: 4766.861985 | K66: 5 | L66: 584.0333333 | M66: 584.0333333 | N66: 0.4339739616 | O66: 0.4339739616 | P66: 4 | Q66: 116520 | R66: 116520 | S66: 15.87104774 | T66: 15.87104774
B67: 216:10728 | C67: EDGEWORTH 33 | D67: SHORT RURAL | E67: 1422 | F67: 7556.585176 | G67: 9702.607219 | H67: 5.418486778 | I67: 158.7983416 | J67: 3403.941799 | K67: 5 | L67: 3999.65 | M67: 3999.65 | N67: 4.219409283 | O67: 4.219409283 | P67: 4 | Q67: 85735 | R67: 85735 | S67: 17.08860759 | T67: 17.08860759
B68: 216:10729 | C68: EDGEWORTH 33 | D68: URBAN | E68: 1121 | F68: 177.2426823 | G68: 7744.312312 | H68: 5.583238065 | I68: 11.95397418 | J68: 0 | K68: 3 | L68: 292.2 | M68: 292.2 | N68: 0.267618198 | O68: 0.267618198 | P68: 0 | Q68: 0 | R68: 0 | S68: 0 | T68: 0
B69: 217:33610 | C69: MOUNT HUTTON 33 | D69: URBAN | E69: 1919 | F69: 7092.015176 | G69: 1603.370982 | H69: 5.6379744 | I69: 12253.34189 | J69: 3155.854236 | K69: 10 | L69: 296609.8 | M69: 294373.8 | N69: 270.766024 | O69: 266.2845232 | P69: 2 | Q69: 76392 | R69: 76392 | S69: 12.29807191 | T69: 12.29807191
B70: 217:33611 | C70: MOUNT HUTTON 33 | D70: URBAN | E70: 1354 | F70: 6443.729261 | G70: 2821.582984 | H70: 5.052372807 | I70: 2708.965551 | J70: 8433.621941 | K70: 9 | L70: 73174.9 | M70: 73174.9 | N70: 78.13884786 | O70: 78.13884786 | P70: 5 | Q70: 227810 | R70: 227810 | S70: 45.34711965 | T70: 45.34711965
B71: 217:33612 | C71: MOUNT HUTTON 33 | D71: URBAN | E71: 1921 | F71: 10206.81054 | G71: 3654.224656 | H71: 6.3335936 | I71: 5722.576015 | J71: 6746.382166 | K71: 9 | L71: 123309.1833 | M71: 123309.1833 | N71: 58.19885476 | O71: 58.19885476 | P71: 4 | Q71: 145370 | R71: 145370 | S71: 20.82248829 | T71: 20.82248829
B72: 220:8687 | C72: JEWELLS 33 | D72: URBAN | E72: 1525 | F72: 7232.702791 | G72: 406.8921306 | H72: 3.807585304 | I72: 25.34013787 | J72: 174.0925503 | K72: 5 | L72: 908.2666667 | M72: 908.2666667 | N72: 0.393442623 | O72: 0.393442623 | P72: 1 | Q72: 6240 | R72: 6240 | S72: 1.704918033 | T72: 1.704918033
B73: 220:8688 | C73: JEWELLS 33 | D73: URBAN | E73: 452 | F73: 3679.86886 | G73: 502.3290499 | H73: 1.647512872 | I73: 492.1281401 | J73: 0 | K73: 2 | L73: 40766.5 | M73: 40766.5 | N73: 100.2212389 | O73: 100.2212389 | P73: 0 | Q73: 0 | R73: 0 | S73: 0 | T73: 0
B74: 220:8689 | C74: JEWELLS 33 | D74: URBAN | E74: 1510 | F74: 6160.916838 | G74: 1427.792509 | H74: 3.807585304 | I74: 863.1768107 | J74: 11.15977886 | K74: 14 | L74: 30938.85 | M74: 30938.85 | N74: 13.70860927 | O74: 13.70860927 | P74: 1 | Q74: 400 | R74: 400 | S74: 0.06622516556 | T74: 0.06622516556
B75: 220:8691 | C75: JEWELLS 33 | D75: URBAN | E75: 1179 | F75: 8461.531997 | G75: 2651.378209 | H75: 4.265227768 | I75: 55.6012397 | J75: 24.84593315 | K75: 4 | L75: 1779.083333 | M75: 1779.083333 | N75: 0.3392705683 | O75: 0.3392705683 | P75: 2 | Q75: 795 | R75: 795 | S75: 0.1696352841 | T75: 0.1696352841
B76: 220:8692 | C76: JEWELLS 33 | D76: URBAN | E76: 884 | F76: 2876.333063 | G76: 3082.035 | H76: 3.166885853 | I76: 2.297278036 | J76: 0 | K76: 1 | L76: 99 | M76: 99 | N76: 0.1131221719 | O76: 0.1131221719 | P76: 0 | Q76: 0 | R76: 0 | S76: 0 | T76: 0
B77: 221:11893 | C77: GATESHEAD 33 | D77: URBAN | E77: 731 | F77: 2332.46398 | G77: 2500.138739 | H77: 1.501067283 | I77: 177.1761501 | J77: 2215.712393 | K77: 5 | L77: 16108.65 | M77: 16108.65 | N77: 15.86867305 | O77: 15.86867305 | P77: 2 | Q77: 201450 | R77: 201450 | S77: 65.66347469 | T77: 65.66347469
B78: 221:11894 | C78: GATESHEAD 33 | D78: URBAN | E78: 922 | F78: 4382.749463 | G78: 298.9593933 | H78: 1.720735666 | I78: 191.842961 | J78: 73.683513 | K78: 5 | L78: 15215.48333 | M78: 15215.48333 | N78: 24.72885033 | O78: 24.72885033 | P78: 1 | Q78: 5844 | R78: 5844 | S78: 1.301518438 | T78: 1.301518438
B79: 221:11895 | C79: GATESHEAD 33 | D79: URBAN | E79: 939 | F79: 5301.526186 | G79: 1723.884559 | H79: 2.764160485 | I79: 11.59402213 | J79: 1703.841236 | K79: 4 | L79: 572.4333333 | M79: 572.4333333 | N79: 0.4259850905 | O79: 0.4259850905 | P79: 4 | Q79: 84124 | R79: 84124 | S79: 24.70713525 | T79: 24.70713525
B80: 221:11897 | C80: GATESHEAD 33 | D80: URBAN | E80: 848 | F80: 5468.185116 | G80: 1224.928061 | H80: 3.258414346 | I80: 195.5509942 | J80: 1387.309131 | K80: 5 | L80: 8190.45 | M80: 8190.45 | N80: 13.08962264 | O80: 13.08962264 | P80: 2 | Q80: 58106 | R80: 58106 | S80: 17.45283019 | T80: 17.45283019
B81: 221:11898 | C81: GATESHEAD 33 | D81: URBAN | E81: 352 | F81: 6004.109817 | G81: 3843.532447 | H81: 3.020440265 | I81: 72.72500603 | J81: 2384.964121 | K81: 1 | L81: 3286 | M81: 3286 | N81: 8.806818182 | O81: 8.806818182 | P81: 3 | Q81: 107762 | R81: 107762 | S81: 50.56818182 | T81: 50.56818182
B82: 221:11899 | C82: GATESHEAD 33 | D82: SHORT RURAL | E82: 1322 | F82: 10645.09658 | G82: 1431.326455 | H82: 3.404859935 | I82: 11.0322462 | J82: 12127.11306 | K82: 6 | L82: 442.2 | M82: 442.2 | N82: 0.4538577912 | O82: 0.4538577912 | P82: 9 | Q82: 486085 | R82: 486085 | S82: 107.6399395 | T82: 107.6399395
B83: 221:11900 | C83: GATESHEAD 33 | D83: SHORT RURAL | E83: 1205 | F83: 5717.147176 | G83: 1892.737531 | H83: 2.17837813 | I83: 1341.722127 | J83: 0 | K83: 5 | L83: 84058.83333 | M83: 84058.83333 | N83: 106.0580913 | O83: 106.0580913 | P83: 0 | Q83: 0 | R83: 0 | S83: 0 | T83: 0
B84: 222:33596 | C84: PELICAN 33 | D84: URBAN | E84: 1197 | F84: 6401.977074 | G84: 300.165729 | H84: 3.203497251 | I84: 42.73941572 | J84: 321.9334645 | K84: 3 | L84: 1820.783333 | M84: 1820.783333 | N84: 0.8354218881 | O84: 0.8354218881 | P84: 2 | Q84: 13715 | R84: 13715 | S84: 9.356725146 | T84: 9.356725146
B85: 222:33597 | C85: PELICAN 33 | D85: SHORT RURAL | E85: 657 | F85: 3472.636411 | G85: 4747.479471 | H85: 2.617714896 | I85: 109.9955757 | J85: 0 | K85: 2 | L85: 5734.65 | M85: 5734.65 | N85: 16.13394216 | O85: 16.13394216 | P85: 0 | Q85: 0 | R85: 0 | S85: 0 | T85: 0
B86: 222:33600 | C86: PELICAN 33 | D86: URBAN | E86: 1039 | F86: 4535.781821 | G86: 568.9839232 | H86: 2.17837813 | I86: 12.62065249 | J86: 212.2906491 | K86: 6 | L86: 790.6833333 | M86: 790.6833333 | N86: 0.5774783446 | O86: 0.5774783446 | P86: 1 | Q86: 13300 | R86: 13300 | S86: 7.314725698 | T86: 7.314725698
B87: 222:33601 | C87: PELICAN 33 | D87: SHORT RURAL | E87: 780 | F87: 5902.729062 | G87: 524.1449141 | H87: 1.53767868 | I87: 162.3141816 | J87: 1411.540337 | K87: 7 | L87: 14406.05 | M87: 14406.05 | N87: 17.05128205 | O87: 17.05128205 | P87: 4 | Q87: 125280 | R87: 125280 | S87: 29.23076923 | T87: 29.23076923
B88: 222:33602 | C88: PELICAN 33 | D88: URBAN | E88: 945 | F88: 4672.745665 | G88: 660.9606904 | H88: 3.386554236 | I88: 1716.600236 | J88: 448.8927155 | K88: 4 | L88: 69177.55 | M88: 69177.55 | N88: 12.38095238 | O88: 12.38095238 | P88: 3 | Q88: 18090 | R88: 18090 | S88: 8.888888889 | T88: 8.888888889
B89: 223:14393 | C89: SWANSEA 33 | D89: URBAN | E89: 1066 | F89: 3310.340046 | G89: 1124.846047 | H89: 2.05023824 | I89: 2.164281729 | J89: 3134.623071 | K89: 2 | L89: 144.0666667 | M89: 144.0666667 | N89: 0.1876172608 | O89: 0.1876172608 | P89: 2 | Q89: 208658 | R89: 208658 | S89: 60.60037523 | T89: 60.60037523
B90: 223:14394 | C90: SWANSEA 33 | D90: URBAN | E90: 1515 | F90: 5306.095308 | G90: 477.4869579 | H90: 3.990642289 | I90: 392.935474 | J90: 0 | K90: 7 | L90: 13437.93333 | M90: 13437.93333 | N90: 12.87128713 | O90: 12.87128713 | P90: 0 | Q90: 0 | R90: 0 | S90: 0 | T90: 0
B91: 223:14395 | C91: SWANSEA 33 | D91: SHORT RURAL | E91: 933 | F91: 12691.20007 | G91: 8619.735809 | H91: 2.599409198 | I91: 0.9739232012 | J91: 4081.715946 | K91: 1 | L91: 51.13333333 | M91: 51.13333333 | N91: 0.1071811361 | O91: 0.1071811361 | P91: 12 | Q91: 214300 | R91: 214300 | S91: 80.49303323 | T91: 80.49303323
B92: 223:14397 | C92: SWANSEA 33 | D92: URBAN | E92: 1210 | F92: 4344.615077 | G92: 4116.774901 | H92: 2.819077581 | I92: 242.5158863 | J92: 1685.163361 | K92: 3 | L92: 11740.51667 | M92: 11740.51667 | N92: 5.619834711 | O92: 5.619834711 | P92: 4 | Q92: 81581 | R92: 81581 | S92: 25.53719008 | T92: 25.53719008
B93: 223:14398 | C93: SWANSEA 33 | D93: URBAN | E93: 847 | F93: 2689.838015 | G93: 1575.054697 | H93: 3.038745963 | I93: 1473.802514 | J93: 0 | K93: 2 | L93: 66191 | M93: 66191 | N93: 93.62455726 | O93: 93.62455726 | P93: 0 | Q93: 0 | R93: 0 | S93: 0 | T93: 0
B94: 223:14399 | C94: SWANSEA 33 | D94: SHORT RURAL | E94: 388 | F94: 5271.90443 | G94: 5245.557097 | H94: 0.2562797801 | I94: 0.157739182 | J94: 33.65853689 | K94: 1 | L94: 84 | M94: 84 | N94: 0.2577319588 | O94: 0.2577319588 | P94: 3 | Q94: 17924 | R94: 17924 | S94: 24.48453608 | T94: 24.48453608
B95: 224:80326 | C95: ARGENTON 132 11 | D95: SHORT RURAL | E95: 1023 | F95: 5919.792083 | G95: 5370.869961 | H95: 3.551305524 | I95: 431.2581412 | J95: 0 | K95: 7 | L95: 16573.08333 | M95: 7549.083333 | N95: 110.5571848 | O95: 9.677419355 | P95: 0 | Q95: 0 | R95: 0 | S95: 0 | T95: 0
B96: 224:80328 | C96: ARGENTON 132 11 | D96: SHORT RURAL | E96: 56 | F96: 1672.537076 | G96: 2866.968786 | H96: 2.910606073 | I96: 9.383871746 | J96: 95.97141559 | K96: 1 | L96: 440 | M96: 0 | N96: 98.21428571 | O96: 0 | P96: 1 | Q96: 4500 | R96: 4500 | S96: 21.42857143 | T96: 21.42857143
B97: 224:80329 | C97: ARGENTON 132 11 | D97: SHORT RURAL | E97: 421 | F97: 9775.52754 | G97: 3425.060362 | H97: 2.141766733 | I97: 54.36599615 | J97: 1040.161139 | K97: 3 | L97: 3464.25 | M97: 200.25 | N97: 97.3871734 | O97: 0.4750593824 | P97: 7 | Q97: 66280 | R97: 66280 | S97: 55.58194774 | T97: 55.58194774
B98: 224:80331 | C98: ARGENTON 132 11 | D98: URBAN | E98: 323 | F98: 2865.422142 | G98: 5118.824225 | H98: 3.569611222 | I98: 16.08621093 | J98: 3.792581098 | K98: 1 | L98: 615.0166667 | M98: 615.0166667 | N98: 0.3095975232 | O98: 0.3095975232 | P98: 1 | Q98: 145 | R98: 145 | S98: 0.3095975232 | T98: 0.3095975232
B99: 224:80332 | C99: ARGENTON 132 11 | D99: URBAN | E99: 1857 | F99: 16604.03787 | G99: 1517.250543 | H99: 5.894434941 | I99: 540.9781674 | J99: 5599.344736 | K99: 12 | L99: 12525.4 | M99: 12525.4 | N99: 11.63166397 | O99: 11.63166397 | P99: 7 | Q99: 129643 | R99: 129643 | S99: 19.11685514 | T99: 19.11685514
B100: 224:80337 | C100: ARGENTON 132 11 | D100: SHORT RURAL | E100: 1886 | F100: 14186.39847 | G100: 4362.376991 | H100: 5.766295051 | I100: 1685.283308 | J100: 5019.528365 | K100: 9 | L100: 39886.88333 | M100: 24974.88333 | N100: 115.3234358 | O100: 16.48992577 | P100: 5 | Q100: 118801 | R100: 118801 | S100: 15.747614 | T100: 15.747614
B101: 224:80340 | C101: ARGENTON 132 11 | D101: SHORT RURAL | E101: 1088 | F101: 24094.80222 | G101: 1145.851187 | H101: 3.624528318 | I101: 3266.008314 | J101: 2785.389863 | K101: 8 | L101: 122975.85 | M101: 114311.85 | N101: 212.3161765 | O101: 112.7757353 | P101: 5 | Q101: 104879 | R101: 104879 | S101: 49.17279412 | T101: 49.17279412
B102: 224:80341 | C102: ARGENTON 132 11 | D102: URBAN | E102: 1383 | F102: 6651.666922 | G102: 1628.667219 | H102: 4.118782179 | I102: 684.8435713 | J102: 1024.449592 | K102: 7 | L102: 22692.2 | M102: 11684.2 | N102: 111.9305857 | O102: 12.43673174 | P102: 1 | Q102: 33945 | R102: 33945 | S102: 6.724511931 | T102: 6.724511931
B103: 224:80344 | C103: ARGENTON 132 11 | D103: URBAN | E103: 71 | F103: 0 | G103: 3527.154636 | H103: 4.75948163 | I103: 3.347933659 | J103: 9.206817562 | K103: 1 | L103: 96 | M103: 96 | N103: 1.408450704 | O103: 1.408450704 | P103: 1 | Q103: 264 | R103: 264 | S103: 1.408450704 | T103: 1.408450704
B104: 224:80346 | C104: ARGENTON 132 11 | D104: URBAN | E104: 1610 | F104: 9023.017956 | G104: 3225.174294 | H104: 5.473403874 | I104: 507.6481688 | J104: 669.5605761 | K104: 8 | L104: 12657.83333 | M104: 12657.83333 | N104: 7.453416149 | O104: 7.453416149 | P104: 1 | Q104: 16695 | R104: 16695 | S104: 3.291925466 | T104: 3.291925466
B105: 225:13444 | C105: TORONTO 33 | D105: SHORT RURAL | E105: 189 | F105: 3412.445293 | G105: 213.6652515 | H105: 1.318010297 | I105: 176.0815126 | J105: 0 | K105: 2 | L105: 18232.61667 | M105: 18232.61667 | N105: 124.8677249 | O105: 124.8677249 | P105: 0 | Q105: 0 | R105: 0 | S105: 0 | T105: 0
B106: 225:13446 | C106: TORONTO 33 | D106: URBAN | E106: 1562 | F106: 7839.034773 | G106: 2480.558858 | H106: 5.107289902 | I106: 11226.39889 | J106: 4538.452027 | K106: 12 | L106: 299988.0833 | M106: 299988.0833 | N106: 219.1421255 | O106: 219.1421255 | P106: 5 | Q106: 121275 | R106: 103575 | S106: 29.83354673 | T106: 26.05633803
B107: 225:33670 | C107: TORONTO 33 | D107: URBAN | E107: 109 | F107: 550.8457458 | G107: 284.6669384 | H107: 2.928911772 | I107: 191.8194298 | J107: 869.1750846 | K107: 1 | L107: 8938 | M107: 8938 | N107: 100 | O107: 100 | P107: 1 | Q107: 40500 | R107: 40500 | S107: 99.08256881 | T107: 99.08256881
B108: 225:33676 | C108: TORONTO 33 | D108: URBAN | E108: 487 | F108: 6616.441818 | G108: 882.2407925 | H108: 4.118782179 | I108: 1218.954679 | J108: 2480.921452 | K108: 4 | L108: 40389.9 | M108: 40389.9 | N108: 100.6160164 | O108: 100.6160164 | P108: 3 | Q108: 82205 | R108: 82205 | S108: 48.25462012 | T108: 48.25462012
B109: 225:33679 | C109: TORONTO 33 | D109: URBAN | E109: 659 | F109: 3152.495781 | G109: 1377.285322 | H109: 3.532999825 | I109: 1390.530663 | J109: 3019.074157 | K109: 2 | L109: 53714.43333 | M109: 53714.43333 | N109: 99.39301973 | O109: 99.39301973 | P109: 5 | Q109: 116623 | R109: 116623 | S109: 46.73748103 | T109: 46.73748103
B110: 227:13014 | C110: AVONDALE 33 | D110: SHORT RURAL | E110: 62 | F110: 6957.4399 | G110: 559.9409337 | H110: 0.1098341915 | I110: 0 | J110: 0.8691750846 | K110: 0 | L110: 0 | M110: 0 | N110: 0 | O110: 0 | P110: 1 | Q110: 1080 | R110: 1080 | S110: 9.677419355 | T110: 9.677419355
B111: 227:13015 | C111: AVONDALE 33 | D111: SHORT RURAL | E111: 1924 | F111: 53260.02703 | G111: 5927.017371 | H111: 5.107289902 | I111: 18302.11348 | J111: 17169.92485 | K111: 20 | L111: 489062.9667 | M111: 489062.9667 | N111: 270.8419958 | O111: 270.8419958 | P111: 22 | Q111: 458809 | R111: 458809 | S111: 54.10602911 | T111: 54.10602911
B112: 227:13016 | C112: AVONDALE 33 | D112: SHORT RURAL | E112: 147 | F112: 4589.368587 | G112: 324.7107934 | H112: 0.4210310672 | I112: 0.1778008518 | J112: 0 | K112: 1 | L112: 57.63333333 | M112: 57.63333333 | N112: 0.6802721088 | O112: 0.6802721088 | P112: 0 | Q112: 0 | R112: 0 | S112: 0 | T112: 0
B113: 227:13018 | C113: AVONDALE 33 | D113: URBAN | E113: 605 | F113: 6805.615232 | G113: 2286.696094 | H113: 4.375061959 | I113: 271.738391 | J113: 0 | K113: 3 | L113: 8476.583333 | M113: 8476.583333 | N113: 5.619834711 | O113: 5.619834711 | P113: 0 | Q113: 0 | R113: 0 | S113: 0 | T113: 0
B114: 227:13019 | C114: AVONDALE 33 | D114: SHORT RURAL | E114: 117 | F114: 34695.6323 | G114: 989.357456 | H114: 0.4576424644 | I114: 68.83987389 | J114: 380.998472 | K114: 3 | L114: 20529 | M114: 20529 | N114: 100.8547009 | O114: 100.8547009 | P114: 11 | Q114: 113619 | R114: 113619 | S114: 250.4273504 | T114: 250.4273504
B115: 227:13020 | C115: AVONDALE 33 | D115: SHORT RURAL | E115: 838 | F115: 25299.15204 | G115: 1064.762742 | H115: 2.526186403 | I115: 2523.086329 | J115: 5213.252603 | K115: 11 | L115: 136307.8167 | M115: 136307.8167 | N115: 127.0883055 | O115: 127.0883055 | P115: 9 | Q115: 281642 | R115: 281642 | S115: 88.78281623 | T115: 88.78281623
B116: 228:7486 | C116: STOCKTON 33 | D116: URBAN | E116: 3 | F116: 2665.999787 | G116: 80.6394883 | H116: 1.299704599 | I116: 7.066339785 | J116: 0 | K116: 1 | L116: 742 | M116: 0 | N116: 66.66666667 | O116: 0 | P116: 0 | Q116: 0 | R116: 0 | S116: 0 | T116: 0
B117: 228:7487 | C117: STOCKTON 33 | D117: URBAN | E117: 1081 | F117: 2945.758588 | G117: 262.7554291 | H117: 1.830569858 | I117: 419.6740806 | J117: 0 | K117: 6 | L117: 31288.15 | M117: 31288.15 | N117: 16.92876966 | O117: 16.92876966 | P117: 0 | Q117: 0 | R117: 0 | S117: 0 | T117: 0
B118: 228:7490 | C118: STOCKTON 33 | D118: SHORT RURAL | E118: 1670 | F118: 16259.61436 | G118: 8878.763804 | H118: 4.905927218 | I118: 3928.244726 | J118: 7283.295543 | K118: 13 | L118: 109277.6833 | M118: 109277.6833 | N118: 99.76047904 | O118: 99.76047904 | P118: 7 | Q118: 202610 | R118: 202610 | S118: 24.07185629 | T118: 24.07185629
B119: 228:7491 | C119: STOCKTON 33 | D119: URBAN | E119: 771 | F119: 2791.323846 | G119: 181.5035769 | H119: 1.739041365 | I119: 23.35749317 | J119: 0 | K119: 7 | L119: 1833.033333 | M119: 1833.033333 | N119: 14.39688716 | O119: 14.39688716 | P119: 0 | Q119: 0 | R119: 0 | S119: 0 | T119: 0
B120: 229:34983 | C120: WILLIAMTOWN 33 | D120: SHORT RURAL | E120: 35 | F120: 5991.268307 | G120: 3551.2615 | H120: 2.086849638 | I120: 83.65908105 | J120: 143.6899325 | K120: 2 | L120: 5471.116667 | M120: 5471.116667 | N120: 137.1428571 | O120: 137.1428571 | P120: 6 | Q120: 9397 | R120: 9397 | S120: 102.8571429 | T120: 102.8571429
B121: 229:34986 | C121: WILLIAMTOWN 33 | D121: SHORT RURAL | E121: 80 | F121: 4537.096574 | G121: 107.3664217 | H121: 0.4576424644 | I121: 6.895053275 | J121: 0 | K121: 1 | L121: 2056.2 | M121: 2056.2 | N121: 22.5 | O121: 22.5 | P121: 0 | Q121: 0 | R121: 0 | S121: 0 | T121: 0
B122: 229:34989 | C122: WILLIAMTOWN 33 | D122: SHORT RURAL | E122: 14 | F122: 4813.287558 | G122: 2330.12834 | H122: 0.1647512872 | I122: 0.3968428094 | J122: 5.317661455 | K122: 1 | L122: 328.7333333 | M122: 328.7333333 | N122: 7.142857143 | O122: 7.142857143 | P122: 2 | Q122: 4405 | R122: 4405 | S122: 100 | T122: 100
B123: 229:34992 | C123: WILLIAMTOWN 33 | D123: SHORT RURAL | E123: 39 | F123: 2170.624268 | G123: 1259.536107 | H123: 0.3661139715 | I123: 0 | J123: 1.649823077 | K123: 0 | L123: 0 | M123: 0 | N123: 0 | O123: 0 | P123: 2 | Q123: 615 | R123: 615 | S123: 7.692307692 | T123: 7.692307692
B124: 229:34995 | C124: WILLIAMTOWN 33 | D124: SHORT RURAL | E124: 687 | F124: 37038.6596 | G124: 1730.825729 | H124: 2.581103499 | I124: 158.7067094 | J124: 2963.321672 | K124: 11 | L124: 8391.583333 | M124: 8391.583333 | N124: 26.34643377 | O124: 26.34643377 | P124: 20 | Q124: 156685 | R124: 156685 | S124: 74.38136827 | T124: 74.38136827
B125: 230:81432 | C125: TANILBA BAY 33 | D125: SHORT RURAL | E125: 888 | F125: 52532.07392 | G125: 1437.398716 | H125: 2.379740815 | I125: 13078.05011 | J125: 2139.7481 | K125: 8 | L125: 750010.5667 | M125: 137166.5667 | N125: 254.3918919 | O125: 155.4054054 | P125: 26 | Q125: 122712 | R125: 122712 | S125: 55.29279279 | T125: 55.29279279
B126: 230:81434 | C126: TANILBA BAY 33 | D126: URBAN | E126: 1294 | F126: 8393.042409 | G126: 1938.593889 | H126: 3.606222619 | I126: 2220.008469 | J126: 913.2132888 | K126: 6 | L126: 84014.86667 | M126: 84014.86667 | N126: 61.90108192 | O126: 61.90108192 | P126: 2 | Q126: 34560 | R126: 34560 | S126: 11.90108192 | T126: 11.90108192
B127: 230:81438 | C127: TANILBA BAY 33 | D127: SHORT RURAL | E127: 547 | F127: 13775.09194 | G127: 2418.745899 | H127: 1.79395846 | I127: 9.749157777 | J127: 4.00920421 | K127: 5 | L127: 741.6666667 | M127: 741.6666667 | N127: 0.9140767824 | O127: 0.9140767824 | P127: 1 | Q127: 305 | R127: 305 | S127: 0.1828153565 | T127: 0.1828153565
B128: 230:81440 | C128: TANILBA BAY 33 | D128: SHORT RURAL | E128: 1638 | F128: 9612.09226 | G128: 1872.276053 | H128: 3.697751112 | I128: 2909.266046 | J128: 1776.054662 | K128: 11 | L128: 107374.1667 | M128: 107374.1667 | N128: 59.46275946 | O128: 59.46275946 | P128: 2 | Q128: 65550 | R128: 65550 | S128: 11.5995116 | T128: 11.5995116
B129: 232:11453 | C129: NELSON BAY 33 | D129: SHORT RURAL | E129: 1349 | F129: 14772.08629 | G129: 3788.239381 | H129: 3.221802949 | I129: 7374.854053 | J129: 499.1747625 | K129: 3 | L129: 312398.1833 | M129: 9166.583333 | N129: 103.2616753 | O129: 4.151223128 | P129: 3 | Q129: 21145 | R129: 21145 | S129: 15.56708673 | T129: 15.56708673
B130: 232:11454 | C130: NELSON BAY 33 | D130: SHORT RURAL | E130: 1869 | F130: 14663.62812 | G130: 2503.369659 | H130: 4.082170782 | I130: 17024.7988 | J130: 6841.04236 | K130: 18 | L130: 569173.75 | M130: 568986.2 | N130: 252.9695024 | O130: 252.9159979 | P130: 4 | Q130: 228710 | R130: 228710 | S130: 35.63402889 | T130: 35.63402889
B131: 232:11455 | C131: NELSON BAY 33 | D131: SHORT RURAL | E131: 2136 | F131: 9961.602709 | G131: 7803.471649 | H131: 4.667953137 | I131: 6199.792781 | J131: 1249.80134 | K131: 9 | L131: 181261.15 | M131: 181261.15 | N131: 136.8445693 | O131: 136.8445693 | P131: 2 | Q131: 36540 | R131: 36540 | S131: 9.269662921 | T131: 9.269662921
B132: 232:11457 | C132: NELSON BAY 33 | D132: SHORT RURAL | E132: 1399 | F132: 10794.89598 | G132: 2980.363776 | H132: 5.821212147 | I132: 1824.560923 | J132: 3451.51599 | K132: 7 | L132: 42775.88333 | M132: 42775.88333 | N132: 112.0085776 | O132: 112.0085776 | P132: 7 | Q132: 80919 | R132: 80919 | S132: 15.29664046 | T132: 15.29664046
B133: 232:11460 | C133: NELSON BAY 33 | D133: URBAN | E133: 221 | F133: 4011.843708 | G133: 669.819857 | H133: 2.947217471 | I133: 1.885624823 | J133: 778.3142307 | K133: 1 | L133: 87.31666667 | M133: 87.31666667 | N133: 0.4524886878 | O133: 0.4524886878 | P133: 3 | Q133: 36041 | R133: 36041 | S133: 71.04072398 | T133: 71.04072398
B134: 232:33407 | C134: NELSON BAY 33 | D134: SHORT RURAL | E134: 546 | F134: 32402.44887 | G134: 2136.448215 | H134: 2.452963609 | I134: 66.97952623 | J134: 1243.796789 | K134: 10 | L134: 3726.533333 | M134: 3098.533333 | N134: 9.706959707 | O134: 9.340659341 | P134: 15 | Q134: 69201 | R134: 69201 | S134: 51.64835165 | T134: 51.64835165
B135: 232:33409 | C135: NELSON BAY 33 | D135: SHORT RURAL | E135: 1738 | F135: 7529.056471 | G135: 7111.474619 | H135: 4.631341739 | I135: 2392.185054 | J135: 1594.454076 | K135: 7 | L135: 70492.35 | M135: 70492.35 | N135: 199.424626 | O135: 199.424626 | P135: 7 | Q135: 46985 | R135: 46985 | S135: 20.54085155 | T135: 20.54085155
B136: 232:33413 | C136: NELSON BAY 33 | D136: URBAN | E136: 1077 | F136: 9442.257018 | G136: 634.8475352 | H136: 0.604088053 | I136: 571.6753523 | J136: 299.6155163 | K136: 13 | L136: 129152.6333 | M136: 129152.6333 | N136: 106.1281337 | O136: 106.1281337 | P136: 8 | Q136: 67689 | R136: 67689 | S136: 22.00557103 | T136: 22.00557103
B137: 233:82812 | C137: MEDOWIE 33 | D137: SHORT RURAL | E137: 752 | F137: 22006.67406 | G137: 3794.48299 | H137: 3.093663059 | I137: 781.9305691 | J137: 683.9026356 | K137: 11 | L137: 34494.45 | M137: 34494.45 | N137: 80.18617021 | O137: 80.18617021 | P137: 3 | Q137: 30170 | R137: 30170 | S137: 10.50531915 | T137: 10.50531915
B138: 233:82815 | C138: MEDOWIE 33 | D138: SHORT RURAL | E138: 1332 | F138: 8952.077506 | G138: 5450.47042 | H138: 3.899113796 | I138: 894.2391096 | J138: 1.228514599 | K138: 7 | L138: 31299.81667 | M138: 31299.81667 | N138: 9.384384384 | O138: 9.384384384 | P138: 1 | Q138: 43 | R138: 43 | S138: 0.07507507508 | T138: 0.07507507508
B139: 233:82819 | C139: MEDOWIE 33 | D139: SHORT RURAL | E139: 952 | F139: 20047.5682 | G139: 4510.147487 | H139: 3.496388428 | I139: 336.3233577 | J139: 1312.984199 | K139: 8 | L139: 13127.78333 | M139: 11400.78333 | N139: 6.407563025 | O139: 6.302521008 | P139: 3 | Q139: 51250 | R139: 51250 | S139: 14.91596639 | T139: 14.91596639
B140: 233:82821 | C140: MEDOWIE 33 | D140: SHORT RURAL | E140: 267 | F140: 3879.052388 | G140: 1950.943253 | H140: 1.391233092 | I140: 157.143502 | J140: 0 | K140: 2 | L140: 15415.25 | M140: 15415.25 | N140: 15.73033708 | O140: 15.73033708 | P140: 0 | Q140: 0 | R140: 0 | S140: 0 | T140: 0
B141: 235:2120 | C141: TARRO 33 | D141: SHORT RURAL | E141: 708 | F141: 59260.50659 | G141: 2092.512593 | H141: 2.745854786 | I141: 129.9081422 | J141: 2894.53411 | K141: 8 | L141: 6456.733333 | M141: 6121.633333 | N141: 10.31073446 | O141: 10.02824859 | P141: 24 | Q141: 143865 | R141: 143865 | S141: 70.05649718 | T141: 70.05649718
B142: 235:2121 | C142: TARRO 33 | D142: URBAN | E142: 26 | F142: 5815.327828 | G142: 368.1319682 | H142: 2.160072432 | I142: 1.111095483 | J142: 0 | K142: 1 | L142: 70.2 | M142: 70.2 | N142: 3.846153846 | O142: 3.846153846 | P142: 0 | Q142: 0 | R142: 0 | S142: 0 | T142: 0
B143: 235:2123 | C143: TARRO 33 | D143: URBAN | E143: 1352 | F143: 8412.97971 | G143: 2064.164559 | H143: 5.65646086 | I143: 6.737864034 | J143: 1806.664916 | K143: 3 | L143: 162.5666667 | M143: 162.5666667 | N143: 0.2218934911 | O143: 0.2218934911 | P143: 3 | Q143: 43590 | R143: 43590 | S143: 12.20414201 | T143: 12.20414201
B144: 235:2124 | C144: TARRO 33 | D144: SHORT RURAL | E144: 934 | F144: 6412.270172 | G144: 1163.819472 | H144: 2.361435116 | I144: 131.9456401 | J144: 327.4597011 | K144: 9 | L144: 7625.583333 | M144: 7625.583333 | N144: 16.38115632 | O144: 16.38115632 | P144: 3 | Q144: 18925 | R144: 18925 | S144: 8.458244111 | T144: 8.458244111
B145: 235:2728 | C145: TARRO 33 | D145: URBAN | E145: 321 | F145: 2420.546074 | G145: 939.7025292 | H145: 4.686258835 | I145: 1813.378221 | J145: 701.6925572 | K145: 1 | L145: 52810 | M145: 52810 | N145: 98.13084112 | O145: 98.13084112 | P145: 1 | Q145: 20435 | R145: 20435 | S145: 19.00311526 | T145: 19.00311526
B146: 235:2857 | C146: TARRO 33 | D146: SHORT RURAL | E146: 315 | F146: 7830.027481 | G146: 740.6019715 | H146: 1.061730517 | I146: 32.28387658 | J146: 0 | K146: 4 | L146: 4149.783333 | M146: 4149.783333 | N146: 15.87301587 | O146: 15.87301587 | P146: 0 | Q146: 0 | R146: 0 | S146: 0 | T146: 0
B147: 235:8684 | C147: TARRO 33 | D147: SHORT RURAL | E147: 121 | F147: 8916.935566 | G147: 1964.609378 | H147: 2.031932542 | I147: 0 | J147: 9.75206397 | K147: 0 | L147: 0 | M147: 0 | N147: 0 | O147: 0 | P147: 2 | Q147: 655 | R147: 655 | S147: 1.652892562 | T147: 1.652892562
B148: 235:8685 | C148: TARRO 33 | D148: URBAN | E148: 108 | F148: 2111.36451 | G148: 287.0579165 | H148: 4.631341739 | I148: 1644.033108 | J148: 0 | K148: 2 | L148: 48445.98333 | M148: 48445.98333 | N148: 101.8518519 | O148: 101.8518519 | P148: 0 | Q148: 0 | R148: 0 | S148: 0 | T148: 0
B149: 238:34136 | C149: THORNTON 33 | D149: URBAN | E149: 845 | F149: 2362.841753 | G149: 3178.467432 | H149: 2.782466183 | I149: 0 | J149: 75.53775318 | K149: 0 | L149: 0 | M149: 0 | N149: 0 | O149: 0 | P149: 1 | Q149: 3705 | R149: 3705 | S149: 4.615384615 | T149: 4.615384615
B150: 238:34137 | C150: THORNTON 33 | D150: SHORT RURAL | E150: 900 | F150: 5711.695582 | G150: 7802.14195 | H150: 3.954030892 | I150: 161.3430394 | J150: 5.794500564 | K150: 3 | L150: 5568.833333 | M150: 5568.833333 | N150: 2.555555556 | O150: 2.555555556 | P150: 2 | Q150: 200 | R150: 200 | S150: 0.2222222222 | T150: 0.2222222222
B151: 238:34140 | C151: THORNTON 33 | D151: URBAN | E151: 909 | F151: 9486.351787 | G151: 5688.376747 | H151: 3.002134566 | I151: 18.68552954 | J151: 1317.152752 | K151: 5 | L151: 849.4333333 | M151: 849.4333333 | N151: 8.03080308 | O151: 8.03080308 | P151: 6 | Q151: 59877 | R151: 59877 | S151: 26.40264026 | T151: 26.40264026
B152: 238:34141 | C152: THORNTON 33 | D152: SHORT RURAL | E152: 991 | F152: 33393.56524 | G152: 7880.430458 | H152: 4.613036041 | I152: 1250.788337 | J152: 2173.623394 | K152: 15 | L152: 37004.2 | M152: 37004.2 | N152: 16.85166498 | O152: 16.85166498 | P152: 14 | Q152: 64306 | R152: 64306 | S152: 21.99798184 | T152: 21.99798184
B153: 238:34143 | C153: THORNTON 33 | D153: URBAN | E153: 912 | F153: 244.5209681 | G153: 7197.610783 | H153: 2.819077581 | I153: 298.2776261 | J153: 255.9318228 | K153: 2 | L153: 14440.01667 | M153: 14440.01667 | N153: 3.837719298 | O153: 3.837719298 | P153: 1 | Q153: 12390 | R153: 12390 | S153: 6.469298246 | T153: 6.469298246
B154: 238:34144 | C154: THORNTON 33 | D154: URBAN | E154: 435 | F154: 6825.115741 | G154: 3583.830955 | H154: 4.88762152 | I154: 8.697243549 | J154: 966.1693905 | K154: 1 | L154: 242.85 | M154: 242.85 | N154: 0.2298850575 | O154: 0.2298850575 | P154: 5 | Q154: 26978 | R154: 26978 | S154: 34.71264368 | T154: 34.71264368
B155: 238:34147 | C155: THORNTON 33 | D155: SHORT RURAL | E155: 889 | F155: 4095.341864 | G155: 5128.927676 | H155: 2.819077581 | I155: 1.049685402 | J155: 8.262528582 | K155: 1 | L155: 50.81666667 | M155: 50.81666667 | N155: 0.1124859393 | O155: 0.1124859393 | P155: 1 | Q155: 400 | R155: 400 | S155: 0.1124859393 | T155: 0.1124859393
B156: 238:34148 | C156: THORNTON 33 | D156: SHORT RURAL | E156: 666 | F156: 27895.86875 | G156: 6914.505956 | H156: 2.727549088 | I156: 1394.232401 | J156: 1070.731824 | K156: 12 | L156: 69761.63333 | M156: 69761.63333 | N156: 157.2072072 | O156: 157.2072072 | P156: 8 | Q156: 53575 | R156: 53575 | S156: 21.32132132 | T156: 21.32132132
B157: 238:34150 | C157: THORNTON 33 | D157: SHORT RURAL | E157: 739 | F157: 13359.21861 | G157: 10533.3399 | H157: 4.979150012 | I157: 18.72110134 | J157: 2053.678305 | K157: 3 | L157: 513.1333333 | M157: 513.1333333 | N157: 0.4059539919 | O157: 0.4059539919 | P157: 10 | Q157: 56290 | R157: 56290 | S157: 19.07983762 | T157: 19.07983762
B158: 238:34151 | C158: THORNTON 33 | D158: URBAN | E158: 1244 | F158: 57.16900539 | G158: 8955.46193 | H158: 5.180512697 | I158: 4517.427648 | J158: 0 | K158: 3 | L158: 119007 | M158: 119007 | N158: 100.4019293 | O158: 100.4019293 | P158: 0 | Q158: 0 | R158: 0 | S158: 0 | T158: 0
B159: 239:82127 | C159: RATHMINES 132 | D159: SHORT RURAL | E159: 540 | F159: 9896.617972 | G159: 1735.426065 | H159: 3.935725194 | I159: 1427.589718 | J159: 2036.911811 | K159: 3 | L159: 49503.13333 | M159: 49503.13333 | N159: 98.51851852 | O159: 98.51851852 | P159: 5 | Q159: 70632 | R159: 70632 | S159: 39.81481481 | T159: 39.81481481
B160: 239:82129 | C160: RATHMINES 132 | D160: SHORT RURAL | E160: 1442 | F160: 14721.69093 | G160: 1388.141314 | H160: 3.386554236 | I160: 2155.33145 | J160: 4162.493564 | K160: 8 | L160: 86858.05 | M160: 86858.05 | N160: 107.9056865 | O160: 107.9056865 | P160: 3 | Q160: 167745 | R160: 167745 | S160: 31.76144244 | T160: 31.76144244
B161: 239:82131 | C161: RATHMINES 132 | D161: SHORT RURAL | E161: 343 | F161: 27517.02057 | G161: 4259.94185 | H161: 1.208176106 | I161: 638.4112055 | J161: 246.4948348 | K161: 10 | L161: 72114.78333 | M161: 72114.78333 | N161: 168.8046647 | O161: 168.8046647 | P161: 7 | Q161: 27844 | R161: 27844 | S161: 17.20116618 | T161: 17.20116618
B162: 239:82132 | C162: RATHMINES 132 | D162: URBAN | E162: 1238 | F162: 8692.730182 | G162: 1779.489535 | H162: 4.045559385 | I162: 2166.794638 | J162: 4429.192427 | K162: 4 | L162: 73095.93333 | M162: 73095.93333 | N162: 21.48626817 | O162: 21.48626817 | P162: 3 | Q162: 149417 | R162: 149417 | S162: 30.37156704 | T162: 30.37156704
B163: 239:82133 | C163: RATHMINES 132 | D163: URBAN | E163: 1185 | F163: 9355.05878 | G163: 2037.601978 | H163: 3.880808098 | I163: 155.0618455 | J163: 1314.026404 | K163: 3 | L163: 5453.016667 | M163: 5453.016667 | N163: 7.679324895 | O163: 7.679324895 | P163: 2 | Q163: 46210 | R163: 46210 | S163: 10.71729958 | T163: 10.71729958
B164: 239:82136 | C164: RATHMINES 132 | D164: SHORT RURAL | E164: 1588 | F164: 11853.65909 | G164: 1748.308815 | H164: 4.979150012 | I164: 239.2984586 | J164: 842.7779153 | K164: 6 | L164: 6559.016667 | M164: 6559.016667 | N164: 4.282115869 | O164: 4.282115869 | P164: 1 | Q164: 23100 | R164: 23100 | S164: 3.778337531 | T164: 3.778337531
B165: 240:34835 | C165: MAYFIELD WEST 132 | D165: SHORT RURAL | E165: 933 | F165: 10469.32379 | G165: 2143.493396 | H165: 3.569611222 | I165: 530.4748571 | J165: 0 | K165: 7 | L165: 20281.4 | M165: 20281.4 | N165: 58.73526259 | O165: 58.73526259 | P165: 0 | Q165: 0 | R165: 0 | S165: 0 | T165: 0
B166: 240:34840 | C166: MAYFIELD WEST 132 | D166: URBAN | E166: 1501 | F166: 4437.511752 | G166: 1677.50208 | H166: 4.667953137 | I166: 0 | J166: 20.5221895 | K166: 0 | L166: 0 | M166: 0 | N166: 0 | O166: 0 | P166: 1 | Q166: 600 | R166: 600 | S166: 0.06662225183 | T166: 0.06662225183
B167: 240:34843 | C167: MAYFIELD WEST 132 | D167: URBAN | E167: 273 | F167: 1209.877678 | G167: 4378.003844 | H167: 2.892300375 | I167: 0 | J167: 150.0453729 | K167: 0 | L167: 0 | M167: 0 | N167: 0 | O167: 0 | P167: 3 | Q167: 7080 | R167: 7080 | S167: 2.197802198 | T167: 2.197802198
B168: 240:34846 | C168: MAYFIELD WEST 132 | D168: URBAN | E168: 836 | F168: 2217.7232 | G168: 6891.145637 | H168: 4.045559385 | I168: 900.7020612 | J168: 1125.254453 | K168: 2 | L168: 30384.81667 | M168: 30164 | N168: 100.1196172 | O168: 100 | P168: 4 | Q168: 37960 | R168: 37960 | S168: 27.63157895 | T168: 27.63157895
B169: 240:34849 | C169: MAYFIELD WEST 132 | D169: SHORT RURAL | E169: 2338 | F169: 7604.115304 | G169: 7137.914087 | H169: 5.034067108 | I169: 636.0708443 | J169: 949.0841982 | K169: 6 | L169: 17244.1 | M169: 17244.1 | N169: 8.212147134 | O169: 8.212147134 | P169: 3 | Q169: 25730 | R169: 25730 | S169: 2.694610778 | T169: 2.694610778
B170: 242:81533 | C170: TOMAREE 33 | D170: SHORT RURAL | E170: 17 | F170: 2526.846733 | G170: 105.5805151 | H170: 0.2379740815 | I170: 0 | J170: 0.4708031708 | K170: 0 | L170: 0 | M170: 0 | N170: 0 | O170: 0 | P170: 1 | Q170: 270 | R170: 270 | S170: 17.64705882 | T170: 17.64705882
B171: 242:81535 | C171: TOMAREE 33 | D171: URBAN | E171: 1577 | F171: 3647.748849 | G171: 3071.200099 | H171: 4.722870232 | I171: 731.9830272 | J171: 856.2919783 | K171: 3 | L171: 21151.88333 | M171: 21151.88333 | N171: 9.511731135 | O171: 9.511731135 | P171: 2 | Q171: 24744 | R171: 24744 | S171: 4.882688649 | T171: 4.882688649
B172: 242:81538 | C172: TOMAREE 33 | D172: URBAN | E172: 1009 | F172: 3344.432708 | G172: 2362.328705 | H172: 2.837383279 | I172: 465.9057448 | J172: 4307.885899 | K172: 2 | L172: 22409.6 | M172: 22409.6 | N172: 10.703667 | O172: 10.703667 | P172: 4 | Q172: 207205 | R172: 207205 | S172: 78.19623389 | T172: 78.19623389
B173: 242:81539 | C173: TOMAREE 33 | D173: URBAN | E173: 2166 | F173: 6678.551441 | G173: 5128.928416 | H173: 5.436792477 | I173: 7679.314461 | J173: 9485.354778 | K173: 8 | L173: 192767.4667 | M173: 192767.4667 | N173: 146.8144044 | O173: 146.8144044 | P173: 5 | Q173: 238103 | R173: 238103 | S173: 34.85687904 | T173: 34.85687904
B174: 242:81541 | C174: TOMAREE 33 | D174: URBAN | E174: 1686 | F174: 4616.263732 | G174: 3853.720093 | H174: 3.807585304 | I174: 2402.739914 | J174: 2359.093553 | K174: 9 | L174: 86121.41667 | M174: 86121.41667 | N174: 18.20877817 | O174: 18.20877817 | P174: 2 | Q174: 84557 | R174: 84557 | S174: 16.66666667 | T174: 16.66666667
B175: 243:80074 | C175: MORISSET 132 | D175: SHORT RURAL | E175: 1740 | F175: 17210.29833 | G175: 5216.82751 | H175: 5.894508 | I175: 4158.452824 | J175: 7715.083337 | K175: 4 | L175: 96280.48333 | M175: 96280.48333 | N175: 193.5632184 | O175: 193.5632184 | P175: 10 | Q175: 178627 | R175: 178627 | S175: 31.55172414 | T175: 31.55172414
B176: 243:80075 | C176: MORISSET 132 | D176: SHORT RURAL | E176: 850 | F176: 56616.3398 | G176: 2104.029346 | H176: 3.423165634 | I176: 2431.909251 | J176: 1770.28511 | K176: 12 | L176: 96955.73333 | M176: 96201.71667 | N176: 125.6470588 | O176: 125.4117647 | P176: 5 | Q176: 70578 | R176: 70578 | S176: 17.52941176 | T176: 17.52941176
B177: 243:80078 | C177: MORISSET 132 | D177: SHORT RURAL | E177: 1227 | F177: 3709.909613 | G177: 7638.625549 | H177: 3.551305524 | I177: 819.9406082 | J177: 2544.522132 | K177: 2 | L177: 31510 | M177: 31510 | N177: 13.77343113 | O177: 13.77343113 | P177: 4 | Q177: 97785 | R177: 97785 | S177: 33.17033415 | T177: 33.17033415
B178: 243:80080 | C178: MORISSET 132 | D178: SHORT RURAL | E178: 647 | F178: 16521.23006 | G178: 2573.772355 | H178: 3.313331442 | I178: 2211.380226 | J178: 332.5584592 | K178: 6 | L178: 91086.2 | M178: 91086.2 | N178: 100.309119 | O178: 100.309119 | P178: 4 | Q178: 13698 | R178: 13698 | S178: 20.40185471 | T178: 20.40185471
B179: 243:80081 | C179: MORISSET 132 | D179: SHORT RURAL | E179: 1885 | F179: 16272.12324 | G179: 6134.13905 | H179: 4.045559385 | I179: 1164.42888 | J179: 20119.11089 | K179: 11 | L179: 39281.53333 | M179: 39281.53333 | N179: 29.86737401 | O179: 29.86737401 | P179: 11 | Q179: 678710 | R179: 678710 | S179: 96.44562334 | T179: 96.44562334
B180: 243:80083 | C180: MORISSET 132 | D180: SHORT RURAL | E180: 298 | F180: 41505.68538 | G180: 1986.191644 | H180: 0.8054507373 | I180: 88.13344148 | J180: 8302.696274 | K180: 12 | L180: 14933.3 | M180: 14933.3 | N180: 14.09395973 | O180: 14.09395973 | P180: 41 | Q180: 1406806 | R180: 1384126 | S180: 253.0201342 | T180: 234.8993289
B181: 243:80084 | C181: MORISSET 132 | D181: SHORT RURAL | E181: 836 | F181: 8147.531121 | G181: 3897.002504 | H181: 2.452963609 | I181: 8.948497297 | J181: 3601.296855 | K181: 4 | L181: 497.8666667 | M181: 497.8666667 | N181: 0.4784688995 | O181: 0.4784688995 | P181: 5 | Q181: 200365 | R181: 200365 | S181: 51.9138756 | T181: 51.9138756
B182: 256:80632 | C182: ADAMSTOWN 132 | D182: URBAN | E182: 831 | F182: 7533.282195 | G182: 1652.156628 | H182: 2.928911772 | I182: 361.5056558 | J182: 304.4044296 | K182: 5 | L182: 16844.68333 | M182: 16844.68333 | N182: 5.896510229 | O182: 5.896510229 | P182: 1 | Q182: 14184 | R182: 14184 | S182: 4.332129964 | T182: 4.332129964
B183: 256:80638 | C183: ADAMSTOWN 132 | D183: URBAN | E183: 1027 | F183: 2876.348869 | G183: 947.2617135 | H183: 2.764160485 | I183: 7.836243808 | J183: 0 | K183: 3 | L183: 386.9 | M183: 275.45 | N183: 0.2921129503 | O183: 0.1947419669 | P183: 0 | Q183: 0 | R183: 0 | S183: 0 | T183: 0
B184: 256:80640 | C184: ADAMSTOWN 132 | D184: URBAN | E184: 929 | F184: 3386.790556 | G184: 1577.913956 | H184: 2.928911772 | I184: 52.3168287 | J184: 0 | K184: 1 | L184: 2437.75 | M184: 2437.75 | N184: 3.767491927 | O184: 3.767491927 | P184: 0 | Q184: 0 | R184: 0 | S184: 0 | T184: 0
B185: 256:80641 | C185: ADAMSTOWN 132 | D185: URBAN | E185: 1097 | F185: 3564.940833 | G185: 971.195869 | H185: 2.17837813 | I185: 4.513171507 | J185: 1944.454652 | K185: 2 | L185: 282.75 | M185: 282.75 | N185: 0.2734731085 | O185: 0.2734731085 | P185: 2 | Q185: 121820 | R185: 121820 | S185: 23.60984503 | T185: 23.60984503
B186: 256:80644 | C186: ADAMSTOWN 132 | D186: URBAN | E186: 1078 | F186: 3131.474178 | G186: 587.4305026 | H186: 2.160072432 | I186: 13.26007518 | J186: 0 | K186: 2 | L186: 837.7833333 | M186: 837.7833333 | N186: 0.185528757 | O186: 0.185528757 | P186: 0 | Q186: 0 | R186: 0 | S186: 0 | T186: 0
B187: 256:80646 | C187: ADAMSTOWN 132 | D187: URBAN | E187: 1685 | F187: 5179.036878 | G187: 426.9417283 | H187: 3.514694126 | I187: 10.6284017 | J187: 0 | K187: 3 | L187: 412.7 | M187: 412.7 | N187: 0.178041543 | O187: 0.178041543 | P187: 0 | Q187: 0 | R187: 0 | S187: 0 | T187: 0
B188: 256:80647 | C188: ADAMSTOWN 132 | D188: URBAN | E188: 1780 | F188: 3605.860641 | G188: 3807.35898 | H188: 5.326958285 | I188: 807.3598153 | J188: 0 | K188: 5 | L188: 20684.35 | M188: 20684.35 | N188: 33.65168539 | O188: 33.65168539 | P188: 0 | Q188: 0 | R188: 0 | S188: 0 | T188: 0
B189: 256:80650 | C189: ADAMSTOWN 132 | D189: URBAN | E189: 1203 | F189: 8031.959211 | G189: 1893.287213 | H189: 3.899113796 | I189: 428.282569 | J189: 143.993339 | K189: 5 | L189: 14990.58333 | M189: 14990.58333 | N189: 9.476309227 | O189: 9.476309227 | P189: 1 | Q189: 5040 | R189: 5040 | S189: 1.995012469 | T189: 1.995012469
B190: 256:80653 | C190: ADAMSTOWN 132 | D190: URBAN | E190: 793 | F190: 1282.748195 | G190: 1387.854569 | H190: 1.061730517 | I190: 63.48313979 | J190: 0 | K190: 2 | L190: 8160.15 | M190: 8160.15 | N190: 8.95334174 | O190: 8.95334174 | P190: 0 | Q190: 0 | R190: 0 | S190: 0 | T190: 0
B191: 257:81987 | C191: BROADMEADOW 132 | D191: URBAN | E191: 2098 | F191: 8905.954873 | G191: 2158.781472 | H191: 5.65646086 | I191: 27.25263603 | J191: 0 | K191: 5 | L191: 657.5333333 | M191: 657.5333333 | N191: 0.2383222116 | O191: 0.2383222116 | P191: 0 | Q191: 0 | R191: 0 | S191: 0 | T191: 0
B192: 257:81988 | C192: BROADMEADOW 132 | D192: URBAN | E192: 982 | F192: 4846.331045 | G192: 1931.301098 | H192: 3.587916921 | I192: 2.588675243 | J192: 31.15348845 | K192: 1 | L192: 98.46666667 | M192: 98.46666667 | N192: 0.1018329939 | O192: 0.1018329939 | P192: 1 | Q192: 1185 | R192: 1185 | S192: 0.3054989817 | T192: 0.3054989817
B193: 257:81991 | C193: BROADMEADOW 132 | D193: URBAN | E193: 462 | F193: 0 | G193: 4288.481671 | H193: 2.782466183 | I193: 355.3638429 | J193: 0 | K193: 1 | L193: 17430 | M193: 17430 | N193: 89.82683983 | O193: 89.82683983 | P193: 0 | Q193: 0 | R193: 0 | S193: 0 | T193: 0
B194: 257:81994 | C194: BROADMEADOW 132 | D194: URBAN | E194: 758 | F194: 2190.965495 | G194: 4861.321645 | H194: 4.283533467 | I194: 2086.744033 | J194: 0 | K194: 2 | L194: 66484.6 | M194: 66484.6 | N194: 109.3667546 | O194: 109.3667546 | P194: 0 | Q194: 0 | R194: 0 | S194: 0 | T194: 0
B195: 257:81997 | C195: BROADMEADOW 132 | D195: URBAN | E195: 342 | F195: 2070.366748 | G195: 1753.962722 | H195: 2.928911772 | I195: 0 | J195: 4.184917074 | K195: 0 | L195: 0 | M195: 0 | N195: 0 | O195: 0 | P195: 1 | Q195: 195 | R195: 195 | S195: 0.2923976608 | T195: 0.2923976608
B196: 257:81999 | C196: BROADMEADOW 132 | D196: URBAN | E196: 938 | F196: 4269.885152 | G196: 987.84785 | H196: 4.558118945 | I196: 234.5128606 | J196: 64.12580624 | K196: 5 | L196: 7021.583333 | M196: 7021.583333 | N196: 11.51385928 | O196: 11.51385928 | P196: 2 | Q196: 1920 | R196: 1920 | S196: 1.599147122 | T196: 1.599147122
B197: 257:82000 | C197: BROADMEADOW 132 | D197: SHORT RURAL | E197: 502 | F197: 555.7788719 | G197: 3959.687172 | H197: 1.244787503 | I197: 5.057275557 | J197: 0 | K197: 2 | L197: 554.4666667 | M197: 554.4666667 | N197: 0.3984063745 | O197: 0.3984063745 | P197: 0 | Q197: 0 | R197: 0 | S197: 0 | T197: 0
B198: 257:82006 | C198: BROADMEADOW 132 | D198: URBAN | E198: 224 | F198: 1571.721783 | G198: 1041.736545 | H198: 1.720735666 | I198: 859.577943 | J198: 8.510672703 | K198: 1 | L198: 68175 | M198: 68175 | N198: 60.26785714 | O198: 60.26785714 | P198: 1 | Q198: 675 | R198: 675 | S198: 1.339285714 | T198: 1.339285714
B199: 258:80773 | C199: JESMOND 132 | D199: URBAN | E199: 385 | F199: 1137.088705 | G199: 1503.80333 | H199: 3.111968758 | I199: 53.92775351 | J199: 0 | K199: 1 | L199: 2365 | M199: 2365 | N199: 11.16883117 | O199: 11.16883117 | P199: 0 | Q199: 0 | R199: 0 | S199: 0 | T199: 0
B200: 258:80775 | C200: JESMOND 132 | D200: URBAN | E200: 2012 | F200: 7628.56011 | G200: 1644.224727 | H200: 3.972336591 | I200: 2681.926563 | J200: 673.5275287 | K200: 7 | L200: 92141.41667 | M200: 92141.41667 | N200: 107.306163 | O200: 107.306163 | P200: 1 | Q200: 23140 | R200: 23140 | S200: 4.423459245 | T200: 4.423459245
B201: 258:80776 | C201: JESMOND 132 | D201: URBAN | E201: 332 | F201: 1021.01044 | G201: 579.4251142 | H201: 1.208176106 | I201: 1.978285415 | J201: 0 | K201: 1 | L201: 223.4666667 | M201: 223.4666667 | N201: 0.3012048193 | O201: 0.3012048193 | P201: 0 | Q201: 0 | R201: 0 | S201: 0 | T201: 0
B202: 258:80778 | C202: JESMOND 132 | D202: URBAN | E202: 1194 | F202: 4106.388997 | G202: 1805.231971 | H202: 2.086849638 | I202: 177.4263062 | J202: 7.033879851 | K202: 5 | L202: 11603.28333 | M202: 11603.28333 | N202: 12.89782245 | O202: 12.89782245 | P202: 2 | Q202: 460 | R202: 460 | S202: 0.1675041876 | T202: 0.1675041876
B203: 258:80779 | C203: JESMOND 132 | D203: URBAN | E203: 1087 | F203: 4910.463584 | G203: 2147.677175 | H203: 4.814398725 | I203: 619.0432595 | J203: 837.6100793 | K203: 7 | L203: 17548.21667 | M203: 17548.21667 | N203: 29.71481141 | O203: 29.71481141 | P203: 1 | Q203: 23744 | R203: 23744 | S203: 5.151793928 | T203: 5.151793928
B204: 258:80781 | C204: JESMOND 132 | D204: URBAN | E204: 1523 | F204: 9332.787571 | G204: 2608.982612 | H204: 4.851010122 | I204: 1.871442604 | J204: 0 | K204: 1 | L204: 52.65 | M204: 52.65 | N204: 0.06565988181 | O204: 0.06565988181 | P204: 0 | Q204: 0 | R204: 0 | S204: 0 | T204: 0
... 1539 more rows

Sheet 3.6.9 Network-reliability
G1: =CONCATENATE("1-Jan-",LEFT(CRY,4)) -> 1-Jan-2016
B2: =dms_TradingName -> Ausgrid
B3: =CONCATENATE("Annual Reporting RIN Response ",CRY) -> Annual Reporting RIN Response 2016-17
B4: 3.6 QUALITY OF SERVICES
B7: 3.6.9 - NETWORK FEEDER RELIABILITY - PLANNED OUTAGES
B10: 3.6.9.1 - PLANNED MINUTES OFF SUPPLY (SAIDI)
C11: =CRY -> 2016-17
B12: =INDEX(dms_FeederName_1,MATCH(dms_TradingName,dms_TradingName_List)) -> CBD | C12: 30.01733747
B13: =INDEX(dms_FeederName_2,MATCH(dms_TradingName,dms_TradingName_List)) -> Urban | C13: 20.53648021
B14: =INDEX(dms_FeederName_3,MATCH(dms_TradingName,dms_TradingName_List)) -> Short rural | C14: 99.40330423
B15: =INDEX(dms_FeederName_4,MATCH(dms_TradingName,dms_TradingName_List)) -> Long rural | C15: 875.214502
B16: =IF((INDEX(dms_FeederName_5,MATCH(dms_TradingName,dms_TradingName_List))=0),"",(INDEX(dms_FeederName_5,MATCH(dms_TradingName,dms_TradingName_List)))) -> 
B18: 3.6.9.2 - PLANNED INTERRUPTIONS TO SUPPLY (SAIFI)
C19: =CRY -> 2016-17
B20: =INDEX(dms_FeederName_1,MATCH(dms_TradingName,dms_TradingName_List)) -> CBD | C20: 7.414739991
B21: =INDEX(dms_FeederName_2,MATCH(dms_TradingName,dms_TradingName_List)) -> Urban | C21: 5.559310592
B22: =INDEX(dms_FeederName_3,MATCH(dms_TradingName,dms_TradingName_List)) -> Short rural | C22: 25.82302259
B23: =INDEX(dms_FeederName_4,MATCH(dms_TradingName,dms_TradingName_List)) -> Long rural | C23: 227.7392078
B24: =IF((INDEX(dms_FeederName_5,MATCH(dms_TradingName,dms_TradingName_List))=0),"",(INDEX(dms_FeederName_5,MATCH(dms_TradingName,dms_TradingName_List)))) -> 

Sheet 4.1 Public lighting
B2: =dms_TradingName -> Ausgrid
B3: =CONCATENATE("Annual Reporting RIN Response ",CRY) -> Annual Reporting RIN Response 2016-17
B4: 4.1 PUBLIC LIGHTING
B6: Tables 4.1.1 - 4.1.3 deliberately omitted.
B8: 4.1.4 - PUBLIC LIGHTING METRICS BY TARIFF
B10: Tariff categories | C10: Number of Lights | D10: Public Lighting Revenue
B11: <insert tariff category> | C11: 0's | D11: $0's, nominal
B22: To enter further tariff categories - please insert new lines above this line.
B23: Total | C23: =SUM(C12:C21) -> 0 | D23: =SUM(D12:D21) -> 0

Sheet 6.2 STPIS Reliability
B2: =dms_TradingName -> Ausgrid
B3: =CONCATENATE("Annual Reporting RIN Response ",CRY) -> Annual Reporting RIN Response 2016-17
B4: 6.2 RELIABILITY AND CUSTOMER SERVICE PERFORMANCE
B6: Did the MAIFI parameter of the STPIS apply during the period? This flag is set from the response on worksheet 3.6.8 Network feeders | D6: =dms_MAIFI_Flag -> No
B9: 6.2.1 - UNPLANNED MINUTES OFF SUPPLY (SAIDI)
D10: =CRY -> 2016-17
B11: Total sustained minutes off supply | C11: =INDEX(dms_FeederName_1,MATCH(dms_TradingName,dms_TradingName_List)) -> CBD | D11: 15.82778998
C12: =INDEX(dms_FeederName_2,MATCH(dms_TradingName,dms_TradingName_List)) -> Urban | D12: 83.38387963
C13: =INDEX(dms_FeederName_3,MATCH(dms_TradingName,dms_TradingName_List)) -> Short rural | D13: 155.4160463
C14: =INDEX(dms_FeederName_4,MATCH(dms_TradingName,dms_TradingName_List)) -> Long rural | D14: 856.0443805
C15: =IF((INDEX(dms_FeederName_5,MATCH(dms_TradingName,dms_TradingName_List))=0),"",(INDEX(dms_FeederName_5,MATCH(dms_TradingName,dms_TradingName_List)))) -> 
C16: Whole Network | D16: 92.8432628
B17: Total of excluded events* *see 3.3 of STPIS | C17: =INDEX(dms_FeederName_1,MATCH(dms_TradingName,dms_TradingName_List)) -> CBD | D17: 0
C18: =INDEX(dms_FeederName_2,MATCH(dms_TradingName,dms_TradingName_List)) -> Urban | D18: 10.692171
C19: =INDEX(dms_FeederName_3,MATCH(dms_TradingName,dms_TradingName_List)) -> Short rural | D19: 36.40199344
C20: =INDEX(dms_FeederName_4,MATCH(dms_TradingName,dms_TradingName_List)) -> Long rural | D20: 17.82674501
C21: =IF((INDEX(dms_FeederName_5,MATCH(dms_TradingName,dms_TradingName_List))=0),"",(INDEX(dms_FeederName_5,MATCH(dms_TradingName,dms_TradingName_List)))) -> 
C22: Whole Network | D22: 13.87986249
B23: Total sustained minutes off supply after removing excluded events | C23: =INDEX(dms_FeederName_1,MATCH(dms_TradingName,dms_TradingName_List)) -> CBD | D23: 15.82778998
C24: =INDEX(dms_FeederName_2,MATCH(dms_TradingName,dms_TradingName_List)) -> Urban | D24: 72.69170863
C25: =INDEX(dms_FeederName_3,MATCH(dms_TradingName,dms_TradingName_List)) -> Short rural | D25: 119.0140529
C26: =INDEX(dms_FeederName_4,MATCH(dms_TradingName,dms_TradingName_List)) -> Long rural | D26: 838.2176355
C27: =IF((INDEX(dms_FeederName_5,MATCH(dms_TradingName,dms_TradingName_List))=0),"",(INDEX(dms_FeederName_5,MATCH(dms_TradingName,dms_TradingName_List)))) -> 
C28: Whole Network | D28: 78.96340031
B31: 6.2.2 - UNPLANNED INTERRUPTIONS TO SUPPLY (SAIFI)
D32: =CRY -> 2016-17
B33: Total sustained interruptions | C33: =INDEX(dms_FeederName_1,MATCH(dms_TradingName,dms_TradingName_List)) -> CBD | D33: 0.03740906224 | F33: see D18/61797 - email dated 30/4/2018
C34: =INDEX(dms_FeederName_2,MATCH(dms_TradingName,dms_TradingName_List)) -> Urban | D34: 0.7553444888
C35: =INDEX(dms_FeederName_3,MATCH(dms_TradingName,dms_TradingName_List)) -> Short rural | D35: 1.321258289
C36: =INDEX(dms_FeederName_4,MATCH(dms_TradingName,dms_TradingName_List)) -> Long rural | D36: 3.919022814
C37: =IF((INDEX(dms_FeederName_5,MATCH(dms_TradingName,dms_TradingName_List))=0),"",(INDEX(dms_FeederName_5,MATCH(dms_TradingName,dms_TradingName_List)))) -> 
C38: Whole Network | D38: 0.8213766696
B39: Total of excluded events* *see 3.3 of STPIS | C39: =INDEX(dms_FeederName_1,MATCH(dms_TradingName,dms_TradingName_List)) -> CBD | D39: 0
C40: =INDEX(dms_FeederName_2,MATCH(dms_TradingName,dms_TradingName_List)) -> Urban | D40: 0.1032968271
C41: =INDEX(dms_FeederName_3,MATCH(dms_TradingName,dms_TradingName_List)) -> Short rural | D41: 0.153559263
C42: =INDEX(dms_FeederName_4,MATCH(dms_TradingName,dms_TradingName_List)) -> Long rural | D42: 0.06054131054
C43: =IF((INDEX(dms_FeederName_5,MATCH(dms_TradingName,dms_TradingName_List))=0),"",(INDEX(dms_FeederName_5,MATCH(dms_TradingName,dms_TradingName_List)))) -> 
C44: Whole Network | D44: 0.1079763729
B45: Total sustained interruptions after removing excluded events | C45: =INDEX(dms_FeederName_1,MATCH(dms_TradingName,dms_TradingName_List)) -> CBD | D45: 0.03740906224
C46: =INDEX(dms_FeederName_2,MATCH(dms_TradingName,dms_TradingName_List)) -> Urban | D46: 0.6520476617
C47: =INDEX(dms_FeederName_3,MATCH(dms_TradingName,dms_TradingName_List)) -> Short rural | D47: 1.167699026
C48: =INDEX(dms_FeederName_4,MATCH(dms_TradingName,dms_TradingName_List)) -> Long rural | D48: 3.858481504
C49: =IF((INDEX(dms_FeederName_5,MATCH(dms_TradingName,dms_TradingName_List))=0),"",(INDEX(dms_FeederName_5,MATCH(dms_TradingName,dms_TradingName_List)))) -> 
C50: Whole Network | D50: 0.7134002966
B55: 6.2.3 - UNPLANNED MOMENTARY INTERRUPTIONS TO SUPPLY (MAIFI)
D56: =CRY -> 2016-17
B57: Total momentary interruptions | C57: =INDEX(dms_FeederName_1,MATCH(dms_TradingName,dms_TradingName_List)) -> CBD
C58: =INDEX(dms_FeederName_2,MATCH(dms_TradingName,dms_TradingName_List)) -> Urban
C59: =INDEX(dms_FeederName_3,MATCH(dms_TradingName,dms_TradingName_List)) -> Short rural
C60: =INDEX(dms_FeederName_4,MATCH(dms_TradingName,dms_TradingName_List)) -> Long rural
C61: =IF((INDEX(dms_FeederName_5,MATCH(dms_TradingName,dms_TradingName_List))=0),"",(INDEX(dms_FeederName_5,MATCH(dms_TradingName,dms_TradingName_List)))) -> 
C62: Whole Network
B63: Total of excluded events* *see 3.3 of STPIS | C63: =INDEX(dms_FeederName_1,MATCH(dms_TradingName,dms_TradingName_List)) -> CBD
C64: =INDEX(dms_FeederName_2,MATCH(dms_TradingName,dms_TradingName_List)) -> Urban
C65: =INDEX(dms_FeederName_3,MATCH(dms_TradingName,dms_TradingName_List)) -> Short rural
C66: =INDEX(dms_FeederName_4,MATCH(dms_TradingName,dms_TradingName_List)) -> Long rural
C67: =IF((INDEX(dms_FeederName_5,MATCH(dms_TradingName,dms_TradingName_List))=0),"",(INDEX(dms_FeederName_5,MATCH(dms_TradingName,dms_TradingName_List)))) -> 
C68: Whole Network
B69: Total momentary interruptions after removing excluded events | C69: =INDEX(dms_FeederName_1,MATCH(dms_TradingName,dms_TradingName_List)) -> CBD
C70: =INDEX(dms_FeederName_2,MATCH(dms_TradingName,dms_TradingName_List)) -> Urban
C71: =INDEX(dms_FeederName_3,MATCH(dms_TradingName,dms_TradingName_List)) -> Short rural
C72: =INDEX(dms_FeederName_4,MATCH(dms_TradingName,dms_TradingName_List)) -> Long rural
C73: =IF((INDEX(dms_FeederName_5,MATCH(dms_TradingName,dms_TradingName_List))=0),"",(INDEX(dms_FeederName_5,MATCH(dms_TradingName,dms_TradingName_List)))) -> 
C74: Whole Network
B79: 6.2.4 - DISTRIBUTION CUSTOMER NUMBERS
D80: =CRY -> 2016-17
B81: Customer numbers at the start of the period | C81: =INDEX(dms_FeederName_1,MATCH(dms_TradingName,dms_TradingName_List)) -> CBD | D81: 31049
C82: =INDEX(dms_FeederName_2,MATCH(dms_TradingName,dms_TradingName_List)) -> Urban | D82: 1443888
C83: =INDEX(dms_FeederName_3,MATCH(dms_TradingName,dms_TradingName_List)) -> Short rural | D83: 219655
C84: =INDEX(dms_FeederName_4,MATCH(dms_TradingName,dms_TradingName_List)) -> Long rural | D84: 2804
C85: =IF((INDEX(dms_FeederName_5,MATCH(dms_TradingName,dms_TradingName_List))=0),"",(INDEX(dms_FeederName_5,MATCH(dms_TradingName,dms_TradingName_List)))) -> 
C86: Whole Network | D86: 1697396
B87: Customer numbers at the end of the period | C87: =INDEX(dms_FeederName_1,MATCH(dms_TradingName,dms_TradingName_List)) -> CBD | D87: 31279
C88: =INDEX(dms_FeederName_2,MATCH(dms_TradingName,dms_TradingName_List)) -> Urban | D88: 1456827
C89: =INDEX(dms_FeederName_3,MATCH(dms_TradingName,dms_TradingName_List)) -> Short rural | D89: 223412
C90: =INDEX(dms_FeederName_4,MATCH(dms_TradingName,dms_TradingName_List)) -> Long rural | D90: 2803
C91: =IF((INDEX(dms_FeederName_5,MATCH(dms_TradingName,dms_TradingName_List))=0),"",(INDEX(dms_FeederName_5,MATCH(dms_TradingName,dms_TradingName_List)))) -> 
C92: Whole Network | D92: 1714321
B93: Average customer numbers | C93: =INDEX(dms_FeederName_1,MATCH(dms_TradingName,dms_TradingName_List)) -> CBD | D93: =ROUND(SUM(D81+D87)/2,0) -> 31164
C94: =INDEX(dms_FeederName_2,MATCH(dms_TradingName,dms_TradingName_List)) -> Urban | D94: =ROUND(SUM(D82+D88)/2,0) -> 1450358
C95: =INDEX(dms_FeederName_3,MATCH(dms_TradingName,dms_TradingName_List)) -> Short rural | D95: =ROUND(SUM(D83+D89)/2,0) -> 221534
C96: =INDEX(dms_FeederName_4,MATCH(dms_TradingName,dms_TradingName_List)) -> Long rural | D96: =ROUND(SUM(D84+D90)/2,0) -> 2804
C97: =IF((INDEX(dms_FeederName_5,MATCH(dms_TradingName,dms_TradingName_List))=0),"",(INDEX(dms_FeederName_5,MATCH(dms_TradingName,dms_TradingName_List)))) ->  | D97: =ROUND(SUM(D85+D91)/2,0) -> 0
C98: Whole Network | D98: 1705859

Sheet 6.6 STPIS Customer Service
B2: =dms_TradingName -> Ausgrid
B3: =CONCATENATE("Annual Reporting RIN Response ",CRY) -> Annual Reporting RIN Response 2016-17
B4: 6.6 STPIS CUSTOMER SERVICE
B7: 6.6.1 - TELEPHONE ANSWERING
C9: Number of calls after removing excluded events | D9: Total number of calls
C10: =CRY -> 2016-17 | D10: =CRY -> 2016-17
B11: Number of calls received | C11: 174685 | D11: 182890
B12: Number of calls answered within 30 seconds | C12: 138777
B13: Percentage of calls answered within 30 seconds | C13: =C12/C11 -> 0.7944414231

Sheet 6.7 STPIS Daily Performance
I1: =CONCATENATE(IF(LEN(CRY)=4,"1-Jan-","1-Jul-"),LEFT(CRY,4)) -> 1-Jul-2016
B2: =dms_TradingName -> Ausgrid
B3: =CONCATENATE("Annual Reporting RIN Response ",CRY) -> Annual Reporting RIN Response 2016-17
B4: 6.7 STPIS DAILY PERFORMANCE
B7: Did the MAIFI parameter of the STPIS apply during the period? This flag is set from the response on worksheet 3.6.8 Network feeders | G7: =dms_MAIFI_Flag -> No
B9: The excluded events to be removed from the data refer only to events listed in clause 3.3(a) of the STPIS, with respect to reliability data, and in clause 5.4 of the STPIS with respect to customer service parameters. *Customer service information must be reported as per the definitions in the STPIS, that is excluding: • calls to payment lines and automated interactive services • calls abandoned by the customer within 30 seconds of the call being queued for response by a human operator (where the time in which a telephone call is abandoned is not measured, then an estimate of the number of calls abandoned within 30 seconds will be determined by taking 20 per cent of all calls abandoned).
B11: 6.7.1 - DAILY PERFORMANCE DATA - UNPLANNED
B13: Date | C13: Customer service* | E13: MAIFI
C14: Number of calls received (after removing excluded events) | D14: Number of calls answered in 30 seconds (after removing excluded events) | E14: =INDEX(dms_FeederName_1,MATCH(dms_TradingName,dms_TradingName_List)) -> CBD | G14: =INDEX(dms_FeederName_2,MATCH(dms_TradingName,dms_TradingName_List)) -> Urban | I14: =INDEX(dms_FeederName_3,MATCH(dms_TradingName,dms_TradingName_List)) -> Short rural | K14: =INDEX(dms_FeederName_4,MATCH(dms_TradingName,dms_TradingName_List)) -> Long rural | M14: =IF((INDEX(dms_FeederName_5,MATCH(dms_TradingName,dms_TradingName_List))=0),"Network",(INDEX(dms_FeederName_5,MATCH(dms_TradingName,dms_TradingName_List)))) -> Network | O14: Network
E15: All events | F15: After removing excluded events | G15: All events | H15: After removing excluded events | I15: All events | J15: After removing excluded events | K15: All events | L15: After removing excluded events | M15: All events | N15: After removing excluded events | O15: All events | P15: After removing excluded events
B16: =CONCATENATE(IF(LEN(CRY)=4,"1-Jan-","1-Jul-"),LEFT(CRY,4)) -> 1-Jul-2016 | C16: 528 | D16: 401
B17: =B16+1 -> 2016-07-02 | C17: 314 | D17: 242
B18: 2016-07-03 | C18: 239 | D18: 193
B19: 2016-07-04 | C19: 666 | D19: 498
B20: 2016-07-05 | C20: 604 | D20: 456
B21: 2016-07-06 | C21: 691 | D21: 538
B22: 2016-07-07 | C22: 689 | D22: 471
B23: 2016-07-08 | C23: 648 | D23: 540
B24: 2016-07-09 | C24: 294 | D24: 254
B25: 2016-07-10 | C25: 272 | D25: 237
B26: 2016-07-11 | C26: 478 | D26: 436
B27: 2016-07-12 | C27: 572 | D27: 501
B28: 2016-07-13 | C28: 770 | D28: 674
B29: 2016-07-14 | C29: 479 | D29: 439
B30: 2016-07-15 | C30: 475 | D30: 417
B31: 2016-07-16 | C31: 404 | D31: 273
B32: 2016-07-17 | C32: 258 | D32: 207
B33: 2016-07-18 | C33: 539 | D33: 470
B34: 2016-07-19 | C34: 552 | D34: 464
B35: 2016-07-20 | C35: 454 | D35: 425
B36: 2016-07-21 | C36: 473 | D36: 416
B37: 2016-07-22 | C37: 477 | D37: 402
B38: 2016-07-23 | C38: 696 | D38: 429
B39: 2016-07-24 | C39: 378 | D39: 267
B40: 2016-07-25 | C40: 552 | D40: 525
B41: 2016-07-26 | C41: 447 | D41: 399
B42: 2016-07-27 | C42: 596 | D42: 499
B43: 2016-07-28 | C43: 564 | D43: 460
B44: 2016-07-29 | C44: 382 | D44: 371
B45: 2016-07-30 | C45: 238 | D45: 213
B46: 2016-07-31 | C46: 201 | D46: 182
B47: 2016-08-01 | C47: 421 | D47: 407
B48: 2016-08-02 | C48: 409 | D48: 363
B49: 2016-08-03 | C49: 578 | D49: 518
B50: 2016-08-04 | C50: 619 | D50: 555
B51: 2016-08-05 | C51: 488 | D51: 425
B52: 2016-08-06 | C52: 261 | D52: 211
B53: 2016-08-07 | C53: 283 | D53: 201
B54: 2016-08-08 | C54: 504 | D54: 476
B55: 2016-08-09 | C55: 407 | D55: 377
B56: 2016-08-10 | C56: 425 | D56: 402
B57: 2016-08-11 | C57: 376 | D57: 350
B58: 2016-08-12 | C58: 305 | D58: 282
B59: 2016-08-13 | C59: 252 | D59: 179
B60: 2016-08-14 | C60: 192 | D60: 178
B61: 2016-08-15 | C61: 448 | D61: 395
B62: 2016-08-16 | C62: 396 | D62: 358
B63: 2016-08-17 | C63: 421 | D63: 386
B64: 2016-08-18 | C64: 347 | D64: 325
B65: 2016-08-19 | C65: 443 | D65: 360
B66: 2016-08-20 | C66: 228 | D66: 210
B67: 2016-08-21 | C67: 189 | D67: 166
B68: 2016-08-22 | C68: 470 | D68: 363
B69: 2016-08-23 | C69: 344 | D69: 250
B70: 2016-08-24 | C70: 454 | D70: 276
B71: 2016-08-25 | C71: 864 | D71: 549
B72: 2016-08-26 | C72: 430 | D72: 399
B73: 2016-08-27 | C73: 248 | D73: 201
B74: 2016-08-28 | C74: 239 | D74: 194
B75: 2016-08-29 | C75: 470 | D75: 436
B76: 2016-08-30 | C76: 461 | D76: 428
B77: 2016-08-31 | C77: 409 | D77: 388
B78: 2016-09-01 | C78: 440 | D78: 390
B79: 2016-09-02 | C79: 449 | D79: 401
B80: 2016-09-03 | C80: 665 | D80: 427
B81: =B80+1 -> 2016-09-04 | C81: 248 | D81: 202
B82: 2016-09-05 | C82: 420 | D82: 398
B83: 2016-09-06 | C83: 388 | D83: 342
B84: 2016-09-07 | C84: 433 | D84: 402
B85: 2016-09-08 | C85: 389 | D85: 352
B86: 2016-09-09 | C86: 320 | D86: 308
B87: 2016-09-10 | C87: 340 | D87: 286
B88: 2016-09-11 | C88: 224 | D88: 152
B89: 2016-09-12 | C89: 395 | D89: 389
B90: 2016-09-13 | C90: 621 | D90: 514
B91: 2016-09-14 | C91: 393 | D91: 366
B92: 2016-09-15 | C92: 683 | D92: 631
B93: 2016-09-16 | C93: 368 | D93: 348
B94: 2016-09-17 | C94: 204 | D94: 156
B95: 2016-09-18 | C95: 178 | D95: 152
B96: 2016-09-19 | C96: 536 | D96: 497
B97: 2016-09-20 | C97: 398 | D97: 361
B98: 2016-09-21 | C98: 341 | D98: 296
B99: 2016-09-22 | C99: 335 | D99: 295
B100: 2016-09-23 | C100: 355 | D100: 341
B101: 2016-09-24 | C101: 198 | D101: 170
B102: 2016-09-25 | C102: 298 | D102: 242
B103: 2016-09-26 | C103: 361 | D103: 343
B104: 2016-09-27 | C104: 493 | D104: 422
B105: 2016-09-28 | C105: 407 | D105: 303
B106: 2016-09-29 | C106: 433 | D106: 390
B107: 2016-09-30 | C107: 459 | D107: 410
B108: 2016-10-01 | C108: 405 | D108: 262
B109: 2016-10-02 | C109: 196 | D109: 155
B110: 2016-10-03 | C110: 362 | D110: 285
B111: 2016-10-04 | C111: 741 | D111: 578
B112: 2016-10-05 | C112: 485 | D112: 413
B113: 2016-10-06 | C113: 410 | D113: 379
B114: 2016-10-07 | C114: 515 | D114: 441
B115: 2016-10-08 | C115: 251 | D115: 179
B116: 2016-10-09 | C116: 223 | D116: 200
B117: 2016-10-10 | C117: 598 | D117: 541
B118: 2016-10-11 | C118: 556 | D118: 510
B119: 2016-10-12 | C119: 386 | D119: 362
B120: 2016-10-13 | C120: 580 | D120: 522
B121: 2016-10-14 | C121: 408 | D121: 388
B122: 2016-10-15 | C122: 185 | D122: 170
B123: 2016-10-16 | C123: 197 | D123: 172
B124: 2016-10-17 | C124: 531 | D124: 420
B125: 2016-10-18 | C125: 457 | D125: 401
B126: 2016-10-19 | C126: 366 | D126: 352
B127: 2016-10-20 | C127: 457 | D127: 373
B128: 2016-10-21 | C128: 410 | D128: 389
B129: 2016-10-22 | C129: 286 | D129: 234
B130: 2016-10-23 | C130: 168 | D130: 146
B131: 2016-10-24 | C131: 497 | D131: 435
B132: 2016-10-25 | C132: 387 | D132: 369
B133: 2016-10-26 | C133: 470 | D133: 401
B134: 2016-10-27 | C134: 393 | D134: 328
B135: 2016-10-28 | C135: 459 | D135: 425
B136: 2016-10-29 | C136: 320 | D136: 254
B137: 2016-10-30 | C137: 223 | D137: 194
B138: 2016-10-31 | C138: 459 | D138: 393
B139: 2016-11-01 | C139: 408 | D139: 361
B140: 2016-11-02 | C140: 363 | D140: 324
B141: 2016-11-03 | C141: 404 | D141: 345
B142: 2016-11-04 | C142: 327 | D142: 310
B143: 2016-11-05 | C143: 566 | D143: 247
B144: 2016-11-06 | C144: 276 | D144: 232
B145: =B144+1 -> 2016-11-07 | C145: 454 | D145: 435
B146: 2016-11-08 | C146: 595 | D146: 451
B147: 2016-11-09 | C147: 543 | D147: 337
B148: 2016-11-10 | C148: 480 | D148: 389
B149: 2016-11-11 | C149: 392 | D149: 372
B150: 2016-11-12 | C150: 397 | D150: 347
B151: 2016-11-13 | C151: 424 | D151: 301
B152: 2016-11-14 | C152: 585 | D152: 501
B153: 2016-11-15 | C153: 452 | D153: 413
B154: 2016-11-16 | C154: 414 | D154: 365
B155: 2016-11-17 | C155: 433 | D155: 334
B156: 2016-11-18 | C156: 434 | D156: 359
B157: 2016-11-19 | C157: 269 | D157: 189
B158: 2016-11-20 | C158: 226 | D158: 180
B159: 2016-11-21 | C159: 652 | D159: 515
B160: 2016-11-22 | C160: 574 | D160: 530
B161: 2016-11-23 | C161: 594 | D161: 487
B162: 2016-11-24 | C162: 475 | D162: 414
B163: 2016-11-25 | C163: 929 | D163: 497
B164: 2016-11-26 | C164: 207 | D164: 177
B165: 2016-11-27 | C165: 189 | D165: 159
B166: 2016-11-28 | C166: 571 | D166: 522
B167: 2016-11-29 | C167: 452 | D167: 352
B168: 2016-11-30 | C168: 454 | D168: 422
B169: 2016-12-01 | C169: 499 | D169: 449
B170: 2016-12-02 | C170: 475 | D170: 423
B171: 2016-12-03 | C171: 212 | D171: 157
B172: 2016-12-04 | C172: 209 | D172: 170
B173: 2016-12-05 | C173: 1314 | D173: 957
B174: 2016-12-06 | C174: 717 | D174: 596
B175: 2016-12-07 | C175: 597 | D175: 466
B176: 2016-12-08 | C176: 522 | D176: 445
B177: 2016-12-09 | C177: 511 | D177: 475
B178: 2016-12-10 | C178: 369 | D178: 304
B179: 2016-12-11 | C179: 222 | D179: 193
B180: 2016-12-12 | C180: 448 | D180: 429
B181: 2016-12-13 | C181: 872 | D181: 717
B182: 2016-12-14 | C182: 859 | D182: 543
B183: 2016-12-15 | C183: 665 | D183: 548
B184: 2016-12-16 | C184: 528 | D184: 480
B185: 2016-12-17 | C185: 498 | D185: 320
B186: 2016-12-18 | C186: 578 | D186: 340
B187: 2016-12-19 | C187: 450 | D187: 393
B188: 2016-12-20 | C188: 447 | D188: 413
B189: 2016-12-21 | C189: 447 | D189: 388
B190: 2016-12-22 | C190: 572 | D190: 363
B191: 2016-12-23 | C191: 395 | D191: 336
B192: 2016-12-24 | C192: 601 | D192: 372
B193: 2016-12-25 | C193: 222 | D193: 174
B194: 2016-12-26 | C194: 297 | D194: 224
B195: 2016-12-27 | C195: 289 | D195: 198
B196: 2016-12-28 | C196: 403 | D196: 341
B197: 2016-12-29 | C197: 580 | D197: 478
B198: 2016-12-30 | C198: 574 | D198: 476
B199: 2016-12-31 | C199: 304 | D199: 214
B200: 2017-01-01 | C200: 280 | D200: 248
B201: 2017-01-02 | C201: 311 | D201: 241
B202: 2017-01-03 | C202: 495 | D202: 424
B203: 2017-01-04 | C203: 385 | D203: 362
B204: 2017-01-05 | C204: 486 | D204: 367
B205: 2017-01-06 | C205: 420 | D205: 348
... 176 more rows

Sheet 6.8 STPIS Exclusions
B2: =dms_TradingName -> Ausgrid
B3: =CONCATENATE("Annual Reporting RIN Response ",CRY) -> Annual Reporting RIN Response 2016-17
B4: 6.8 STPIS EXCLUSIONS
B7: =CONCATENATE("This information is collected to inform the application of the STPIS to ",dms_TradingName," in future regulatory periods. The information is also collected to monitor network performance, and may be used in performance reports.") -> This information is collected to inform the application of the STPIS to Ausgrid in future regulatory periods. The information is also collected to monitor network performance, and may be used in performance reports.
B9: 6.8.1 - STPIS EXCLUSIONS
B11: Date of event | C11: Outage ID | D11: Feeder ID / name | E11: Feeder classification (drop down) | F11: Cause of event (drop down) | G11: Unplanned | J11: Event category | K11: Effect on unplanned MAIFI | L11: Please provide separate explanation to confirm the outage was not due to inadequate transmission connection planning
B12: DD/MM/YYYY | G12: Number of interruptions | H12: Duration of interruption (mins) | I12: Total unplanned minutes off supply | J12: Use exclusion categories listed in section 3.3(a) of the STPIS (drop down) | K12: by feeder classification | O12: Cause of Event
O13: Weather
O14: Equipment failure
O15: Operational error
O16: Vegetation
O17: Animals
O18: Third party impacts
O19: Transmission failure
O20: Load shedding
O21: Inter-distributor connection failure
O22: Other
B44: To enter further events - please insert new lines above this line.

Sheet 6.9 STPIS - GSL
B2: =dms_TradingName -> Ausgrid
B3: =CONCATENATE("Annual Reporting RIN Response ",CRY) -> Annual Reporting RIN Response 2016-17
B4: 6.9 STPIS - GUARANTEED SERVICE LEVEL
B6: Did the AER's GSL Scheme apply at any time during the regulatory year? | D6: No | E6: **IMPORTANT Please ensure this flag is set. Conditional formatting on this worksheet is dependant on this response.
B8: Instructions: Table 6.9.1 collects information relating to jurisdiction GSL scheme parameters. These parameters can be found in the jurisdictonal scheme relevant to NSP. Please identify each parameter in the relevant sub-tables and provide the volume and value of GSL payments. For GSL parameters that do not fit within the provided sub-tables provided, please enter a heading and identify the relevant parameter(s).
B10: 6.9.1 - GUARANTEED SERVICE LEVELS - JURISDICTIONAL GSL SCHEME
D11: =CRY -> 2016-17 | E11: =CRY -> 2016-17
D12: Volume | E12: Value of GSL payments
D13: 0's | E13: $0's
B14: Appointments
B19: To enter further GSL parameters relating to appointments - please copy a row from above and "insert copied cells" above this row.
B20: Connections
B21: Connections made | D21: 132
B22: Connections not made on agreed date | D22: 0 | E22: 0
B26: To enter further GSL parameters relating to connections - please copy a row from above and "insert copied cells" above this row.
B27: Reliability of supply
B28: Interruption Duration Standards - Claims | D28: 470 | E28: 32640
B29: Interruption frequency Standards - Claims | D29: 35 | E29: 0
B39: To enter further GSL parameters relating to reliability of supply - please copy a row from above and "insert copied cells" above this row.
B40: Street lights
B41: Street Lights - GSL payments | D41: 422 | E41: 5925
B48: To enter further GSL parameters relating to street lights - please copy a row from above and "insert copied cells" above this row.
B49: Planned interruptions
B50: Planned interruptions - 4 business days notice not given | D50: 34
B51: Planned interruptions - 4 business days notice not given | D51: 0 | E51: 0
B53: To enter further GSL parameters relating to planned interruptions - please copy a row from above and "insert copied cells" above this row.
B54: <NSP defined parameter category>
B58: To enter further GSL parameters - please identify the parameter and if insufficient rows please copy a row from above and "insert copied cells" above this row.
B59: <NSP defined parameter category>
B63: To enter further GSL parameters - please identify the parameter and if insufficient rows please copy a row from above and "insert copied cells" above this row.
B64: <NSP defined parameter category>
B68: To enter further GSL parameters - please identify the parameter and if insufficient rows please copy a row from above and "insert copied cells" above this row.
B69: <NSP defined parameter category>
B73: To enter further GSL parameters - please identify the parameter and if insufficient rows please copy a row from above and "insert copied cells" above this row.
B76: 6.9.2 - GUARANTEED SERVICE LEVELS - AER GSL SCHEME
B78: Complete Table 6.9.2 if the AER's GSL scheme applied at any time during the regulatory year. Do not complete Table 6.9.2 if the AER's GSL scheme did not apply during the regulatory year.
D80: =CRY -> 2016-17 | E80: =CRY -> 2016-17
D81: Volume | E81: Value of GSL payments
D82: 0's | E82: $0's
B83: New connections
B84: Number of connections made
B85: Number of connections not made on or before the day agreed
B86: Connections - GSL payments – 1-6 day delay
B87: Connections - GSL payments – 7+ day delay
B88: Reliability of supply
B89: Frequency of interruptions – CBD feeders – 9 interruptions
B90: Frequency of interruptions – Urban feeders – 9 interruptions
B91: Frequency of interruptions – Rural (short and long) feeders – 15 interruptions
B92: Interruptions – CBD feeders – 12 hours duration
B93: Interruptions – Urban feeders – 12 hours duration
B94: Interruptions – Rural (short and long) feeders – 18 hours duration
B95: Total duration of interruptions Level 1 – 20 hours
B96: Total duration of interruptions Level 2 – 30 hours
B97: Total duration of interruptions Level 3 – 60 hours
B98: Street lights
B99: Streetlight repair 5 days – GSL payments
B100: Planned interruptions
B101: Notice of planned interruptions – 4 business days notice not given
B102: Total | E102: =SUM(E101,E99,E89:E97,E86:E87) -> 0

Sheet 7.8 Avoided TUOS Payments
B2: =dms_TradingName -> Ausgrid
B3: =CONCATENATE("Annual Reporting RIN Response ",CRY) -> Annual Reporting RIN Response 2016-17
B4: 7.8 - AVOIDED TUOS PAYMENTS
B6: 7.8.1 - AVOIDED TUOS PAYMENTS
B7: Description | C7: Avoided TUOS Payment
C8: $0's, nominal
B9: Embedded generators | C9: 815541.3039
B10: Market network service providers
B11: Other

Sheet 7.10 Juris Scheme
B2: =dms_TradingName -> Ausgrid
B3: =CONCATENATE("Annual Reporting RIN Response ",CRY) -> Annual Reporting RIN Response 2016-17
B4: 7.10 - JURISDICTIONAL SCHEMES
B6: Instructions Business must list each relevant jurisdictional scheme individually and report information for each scheme separately from other schemes.
B8: 7.10.1 - JURISDICTIONAL SCHEME PAYMENTS
B9: Jurisdictional Scheme Name | C9: Description | D9: Date DNSP Became Subject to Scheme | E9: Description of Cost Recovery Method | F9: Total Scheme Payments
F10: $0's, nominal
B11: Solar Bonus Scheme (SBS) | C11: Solar Bonus Scheme | D11: 2010-01-01 | E11: Recovered from the Climate Change Fund. SBS credit payments are made to eligible solar PV system customers. | F11: -101839.8653
B12: Climate Change Fund (CCF) | C12: Climate Change Fund | D12: 2007-07-01 | E12: Recovered from the customer's CCF component of their bills. | F12: 16074624.67
E17: Total | F17: =SUM(F11:F16) -> 15972784.8

Sheet 7.11 DMIS-DMIA
B2: =dms_TradingName -> Ausgrid
B3: =CONCATENATE("Annual Reporting RIN Response ",CRY) -> Annual Reporting RIN Response 2016-17
B4: 7.11 - DEMAND MANAGEMENT INCENTIVE SCHEME
B6: 7.11.1 - DMIA - PROJECTS SUBMITTED FOR APPROVAL
B7: Name of project | C7: =CONCATENATE("Total amount of the DMIA spent in ", CRY) -> Total amount of the DMIA spent in 2016-17
C8: Operating expenditure | D8: Capital expenditure | E8: Total
C9: $0's, nominal
B10: AS4755 air conditioner and pool pump load control | C10: 21518 | D10: 0 | E10: =SUM(C10:D10) -> 21518
B11: Customer power factor correction | C11: 45042 | D11: 0 | E11: 45042
B12: CoolSaver Maitland | C12: 92321 | D12: 0 | E12: 92321
B13: Winter air conditioner load control | C13: 36070 | D13: 0 | E13: 36070
B14: DMIA stakeholder engagement | C14: 37700 | D14: 0 | E14: 37700
B15: Solar and battery customer research | C15: 134983 | D15: 0 | E15: =SUM(C15:D15) -> 134983
B16: Demand management for replacement projects (previously Non-residential energy efficiency program) | C16: 5552 | D16: 0 | E16: =SUM(C16:D16) -> 5552
E17: =SUM(C17:D17) -> 0
B18: To enter additional projects - please copy a row from above and "insert copied cells" above this row.
B19: Total | C19: =SUM(C10:C18) -> 373186 | D19: =SUM(D10:D18) -> 0 | E19: =SUM(E10:E18) -> 373186

Sheet 7.12 Safety and Bushfire
B2: =dms_TradingName -> Ausgrid
B3: =CONCATENATE("Annual Reporting RIN Response ",CRY) -> Annual Reporting RIN Response 2016-17
B4: 7.12 SAFETY AND BUSHFIRE RELATED EXPENDITURE
B6: These templates collect information from Victorian businesses only. Bushfire and safety related expenditure information is used by the AER to monitor the expenditures throughout the regulatory control period.
B8: CPI applied to convert expected expenditure in real $ to nominal based on lagged September CPI index
B10: Instructions
B11: For "Exclusive of Margins & Overheads" reported expenditure is to EXCLUDE any overheads, profit margins or management fees paid directly or indirectly to related party contractors (not including actual incurred expense of the related party contractor) for the reporting period.
B12: For "Value of Margins & Overheads" reported expenditure is to COMPRISE ONLY the sum of overheads, profit margins or management fees paid directly or indirectly to related party contractors (not including actual incurred expenses of the related party contractor) for the reporting period.
B14: =CONCATENATE(dms_TradingName, " is to specify each activity in this table in accordance with the definition in Appendix F of the RIN.") -> Ausgrid is to specify each activity in this table in accordance with the definition in Appendix F of the RIN.
B15: All activities must be reported but the Reason for Difference is only required if there is a 10 per cent difference between the expected value and the actual value. Use median unit costs. Where unit costs are not recorded at the asset category level - provide the best estimates of the unit cost using the cost allocation method identified in this table. (As a transitional measure, the unit cost may be based on a statistically significant annual sample of actual work orders at a 5% or better confidence interval.) Provide basis of allocation where applicable.
B17: 7.12.1 - SAFETY AND BUSHFIRE RELATED ASSET GROUP DEFINITIONS AND ALLOCATION BASIS
B18: Activity | C18: Definitions | G18: Basis for allocation of cost to activity
B19: Planned non-preferred services replacements
B20: Planned replacement of non-preferred services due to height
B21: Removal of public lighting switchwire
B22: Replacement of existing SWER lines with 22kV overhead bare conductor
B23: Installation of GFN and associated equipment at zone substations
B24: Replacement of crossarms/insulator sets – pole top fire mitigation
B25: Replacement of crossarms – based on age and condition
B26: Replacement of poles – based on age and condition
B27: Stake poles – based on age and condition
B28: Replacement of undersized poles
B29: Stake undersized poles
B30: Replacement of overhead conductor – mainly steel
B31: Service line clearance – overhead services requiring relocation
B32: Service line clearance – overhead services requiring undergrounding
B33: Replacement of 22kV distribution feeders with ABC/underground cabling
B34: Replacement of SWER with covered carbon core conductor or equivalent
B35: Replacement of SWER with ABC
B36: Replacement of SWER with underground
B37: Replacement of surge diverters (neptune configuration)
B38: Replacement of surge diverters (single phase or three phase)
B46: To enter further activities - please copy row from above and "insert copied cells" into a row above this row.
B48: 7.12.2 - BUSHFIRE RELATED
B50: 7.12.2.1 - NUMBER OF ACTIVITIES
B51: Activity | C51: Units | D51: AER expected number | E51: Actual Number | F51: Difference | G51: Reasons for Difference
B52: Planned non-preferred services replacements | C52: number of services | F52: =D52-E52 -> 0
B53: Planned replacement of non-preferred services due to height | C53: number of services | F53: =D53-E53 -> 0
B54: Removal of public lighting switchwire | C54: number of spans removed | F54: 0
B55: Replacement of existing SWER lines with 22kV overhead bare conductor | C55: kms of SWER | F55: 0
B56: Installation of GFN and associated equipment at zone substations | C56: number of zone substations | F56: =D56-E56 -> 0
B57: Replacement of crossarms/insulator sets – pole top fire mitigation | C57: number of crossarms/sets | F57: 0
B58: Replacement of crossarms – based on age and condition | C58: number of crossarms | F58: 0
B59: Replacement of poles – based on age and condition | C59: number of poles | F59: 0
B60: Stake poles – based on age and condition | C60: number of poles | F60: 0
B61: Replacement of undersized poles | C61: number of poles | F61: 0
B62: Stake undersized poles | C62: number of poles | F62: 0
B63: Replacement of overhead conductor – mainly steel | C63: kms | F63: 0
B64: Service line clearance – overhead services requiring relocation | C64: number of services | F64: 0
B65: Service line clearance – overhead services requiring undergrounding | C65: number of services | F65: 0
B66: Replacement of 22kV distribution feeders with ABC/underground cabling | C66: number of feeders | F66: 0
B67: Replacement of SWER with covered carbon core conductor or equivalent | C67: kms | F67: 0
B68: Replacement of SWER with ABC | C68: kms | F68: 0
B69: Replacement of SWER with underground | C69: kms | F69: 0
B70: Replacement of surge diverters (neptune configuration) | C70: number of units | F70: =D70-E70 -> 0
B71: Replacement of surge diverters (single phase or three phase) | C71: number of units | F71: 0
B72: =IF(ISBLANK(B39),"",B39) ->  | F72: =D72-E72 -> 0
B73: =IF(ISBLANK(B40),"",B40) ->  | F73: 0
F74: 0
F75: 0
F76: 0
F77: 0
F78: 0
B79: To enter further activities - please copy row from above and "insert copied cells" into a row above this row.
B82: 7.12.2.2 - EXPENDITURE
B83: Activity | C83: Units | D83: Exclusive of Margins & Overheads | G83: Value of Margins & Overheads | J83: Reasons for Difference
D84: AER expected expenditure | E84: Actual expenditure | F84: Difference | G84: AER expected expenditure | H84: Actual expenditure | I84: Difference
D85: $0's, Nominal | G85: $0's, Nominal
B86: Planned non-preferred services replacements | C86: number of services | F86: =D86*$C$8-E86 -> 0 | I86: =G86*$C$8-H86 -> 0
B87: Planned replacement of non-preferred services due to height | C87: number of services | F87: =D87*$C$8-E87 -> 0 | I87: =G87*$C$8-H87 -> 0
B88: Removal of public lighting switchwire | C88: number of spans removed | F88: 0 | I88: 0
B89: Replacement of existing SWER lines with 22kV overhead bare conductor | C89: kms of SWER | F89: 0 | I89: 0
B90: Installation of GFN and associated equipment at zone substations | C90: number of zone substations | F90: 0 | I90: 0
B91: Replacement of crossarms/insulator sets – pole top fire mitigation | C91: number of crossarms/sets | F91: 0 | I91: 0
B92: Replacement of crossarms – based on age and condition | C92: number of crossarms | F92: 0 | I92: 0
B93: Replacement of poles – based on age and condition | C93: number of poles | F93: 0 | I93: 0
B94: Stake poles – based on age and condition | C94: number of poles | F94: 0 | I94: 0
B95: Replacement of undersized poles | C95: number of poles | F95: 0 | I95: 0
B96: Stake undersized poles | C96: number of poles | F96: 0 | I96: 0
B97: Replacement of overhead conductor – mainly steel | C97: kms | F97: 0 | I97: 0
B98: Service line clearance – overhead services requiring relocation | C98: number of services | F98: 0 | I98: 0
B99: Service line clearance – overhead services requiring undergrounding | C99: number of services | F99: 0 | I99: 0
B100: Replacement of 22kV distribution feeders with ABC/underground cabling | C100: number of feeders | F100: 0 | I100: 0
B101: Replacement of SWER with covered carbon core conductor or equivalent | C101: kms | F101: 0 | I101: 0
B102: Replacement of SWER with ABC | C102: kms | F102: 0 | I102: 0
B103: Replacement of SWER with underground | C103: kms | F103: 0 | I103: 0
B104: Replacement of surge diverters (neptune configuration) | C104: number of units | F104: 0 | I104: 0
B105: Replacement of surge diverters (single phase or three phase) | C105: number of units | F105: 0 | I105: 0
B106: =IF(ISBLANK(B39),"",B39) ->  | C106: =IF(ISBLANK(C72),"",C72) ->  | F106: 0 | I106: 0
F107: =D107*$C$8-E107 -> 0 | I107: =G107*$C$8-H107 -> 0
F108: 0 | I108: 0
F109: 0 | I109: 0
F110: 0 | I110: 0
F111: 0 | I111: 0
F112: 0 | I112: 0
B113: To enter further activities - please copy row from above and "insert copied cells" into a row above this row.
B117: 7.12.2.3 - UNIT COSTS
B118: Activity | D118: AER expected | E118: Actual | F118: Difference | G118: Reasons for Difference
D119: $0's, Per Unit
B120: Planned non-preferred services replacements | F120: =D120*$C$8-E120 -> 0
B121: Planned replacement of non-preferred services due to height | F121: 0
B122: Removal of public lighting switchwire | F122: 0
B123: Replacement of existing SWER lines with 22kV overhead bare conductor | F123: 0
B124: Installation of GFN and associated equipment at zone substations | F124: 0
B125: Replacement of crossarms/insulator sets – pole top fire mitigation | F125: 0
B126: Replacement of crossarms – based on age and condition | F126: 0
B127: Replacement of poles – based on age and condition | F127: 0
B128: Stake poles – based on age and condition | F128: 0
B129: Replacement of undersized poles | F129: 0
B130: Stake undersized poles | F130: 0
B131: Replacement of overhead conductor – mainly steel | F131: 0
B132: Service line clearance – overhead services requiring relocation | F132: 0
B133: Service line clearance – overhead services requiring undergrounding | F133: 0
B134: Replacement of 22kV distribution feeders with ABC/underground cabling | F134: 0
B135: Replacement of SWER with covered carbon core conductor or equivalent | F135: 0
B136: Replacement of SWER with ABC | F136: 0
B137: Replacement of SWER with underground | F137: 0
B138: Replacement of surge diverters (neptune configuration) | F138: 0
B139: Replacement of surge diverters (single phase or three phase) | F139: 0
B140: =IF(ISBLANK(B39),"",B39) ->  | F140: 0
F141: 0
F142: 0
F143: 0
F144: 0
F145: 0
F146: 0
B147: To enter further activities - please copy row from above and "insert copied cells" into a row above this row.
B150: 7.12.2.4 - CONTINGENT PROJECT APPLICATIONS - VOLUMES APPROVED
B151: Activity | C151: Units | D151: Volume approved under contingent project applications | E151: Actual volumes | F151: Difference
F152: =E152-D152 -> 0
F153: 0
F154: 0
F155: 0
F156: 0
F157: 0
F158: 0
F159: 0
B160: To enter further activities - please copy row from above and "insert copied cells" into a row above this row.
B162: 7.12.2.5 - CONTINGENT PROJECT APPLICATIONS - EXPENDITURE APPROVED
B163: Activity | C163: Exclusive of Margins & Overheads | F163: Value of Margins & Overheads | I163: Reasons for Difference
C164: Expenditure approved under contingent project applications | D164: Actual expenditure | E164: Difference | F164: Expenditure approved under contingent project applications | G164: Actual expenditure | H164: Difference
C165: $0's, Nominal | F165: $0's, Nominal
B166: =IF(ISBLANK(B152),"",B152) ->  | E166: =C166-D166 -> 0 | H166: =F166-G166 -> 0
B167: =IF(ISBLANK(B153),"",B153) ->  | E167: =C167-D167 -> 0 | H167: =F167-G167 -> 0
E168: 0 | H168: 0
E169: 0 | H169: 0
E170: 0 | H170: 0
E171: 0 | H171: 0
E172: 0 | H172: 0
E173: 0 | H173: 0
B174: To enter further activities - please copy row from above and "insert copied cells" into a row above this row.
B178: 7.12.3 - SAFETY RELATED
B180: 7.12.3.1 - NUMBER OF ACTIVITIES
B181: Activity | C181: Units | D181: AER expected volumes | E181: Actual units | F181: Difference | G181: Reasons for Difference
B182: Planned non-preferred services replacements | C182: number of services | F182: =D182-E182 -> 0
B183: Planned replacement of non-preferred services due to height | C183: number of services | F183: =D183-E183 -> 0
B184: Removal of public lighting switchwire | C184: number of spans removed | F184: 0
B185: Replacement of existing SWER lines with 22kV overhead bare conductor | C185: kms of SWER | F185: 0
B186: Installation of GFN and associated equipment at zone substations | C186: number of zone substations | F186: 0
B187: Replacement of crossarms/insulator sets – pole top fire mitigation | C187: number of crossarms/sets | F187: 0
B188: Replacement of crossarms – based on age and condition | C188: number of crossarms | F188: 0
B189: Replacement of poles – based on age and condition | C189: number of poles | F189: 0
B190: Stake poles – based on age and condition | C190: number of poles | F190: 0
B191: Replacement of undersized poles | C191: number of poles | F191: 0
B192: Stake undersized poles | C192: number of poles | F192: 0
B193: Replacement of overhead conductor – mainly steel | C193: kms | F193: 0
B194: Service line clearance – overhead services requiring relocation | C194: number of services | F194: 0
B195: Service line clearance – overhead services requiring undergrounding | C195: number of services | F195: 0
B196: Replacement of 22kV distribution feeders with ABC/underground cabling | C196: number of feeders | F196: 0
B197: Replacement of SWER with covered carbon core conductor or equivalent | C197: kms | F197: 0
B198: Replacement of SWER with ABC | C198: kms | F198: =D198-E198 -> 0
B199: Replacement of SWER with underground | C199: kms | F199: =D199-E199 -> 0
B200: Replacement of surge diverters (neptune configuration) | C200: number of units | F200: 0
B201: Replacement of surge diverters (single phase or three phase) | C201: number of units | F201: 0
B202: =IF(ISBLANK(B39),"",B39) ->  | C202: =IF(ISBLANK(C72),"",C72) ->  | F202: 0
F203: 0
F204: =D204-E204 -> 0
F205: =D205-E205 -> 0
F206: =D206-E206 -> 0
F207: 0
F208: 0
B209: To enter further activities - please copy row from above and "insert copied cells" into a row above this row.
B212: 7.12.3.2 - EXPENDITURE
B213: Activity | C213: Units | D213: Exclusive of Margins & Overheads | G213: Value of Margins & Overheads | J213: Reasons for Difference
D214: AER expected expenditure | E214: Actual expenditure | F214: Difference | G214: AER expected expenditure | H214: Actual expenditure | I214: Difference
D215: $0's, Nominal | G215: $0's, Nominal
B216: Planned non-preferred services replacements | C216: number of services | F216: =D216*$C$8-E216 -> 0 | I216: =G216*$C$8-H216 -> 0
B217: Planned replacement of non-preferred services due to height | C217: number of services | F217: =D217*$C$8-E217 -> 0 | I217: =G217*$C$8-H217 -> 0
B218: Removal of public lighting switchwire | C218: number of spans removed | F218: 0 | I218: 0
B219: Replacement of existing SWER lines with 22kV overhead bare conductor | C219: kms of SWER | F219: 0 | I219: 0
B220: Installation of GFN and associated equipment at zone substations | C220: number of zone substations | F220: 0 | I220: 0
B221: Replacement of crossarms/insulator sets – pole top fire mitigation | C221: number of crossarms/sets | F221: 0 | I221: 0
B222: Replacement of crossarms – based on age and condition | C222: number of crossarms | F222: 0 | I222: 0
B223: Replacement of poles – based on age and condition | C223: number of poles | F223: 0 | I223: 0
B224: Stake poles – based on age and condition | C224: number of poles | F224: 0 | I224: 0
B225: Replacement of undersized poles | C225: number of poles | F225: 0 | I225: 0
B226: Stake undersized poles | C226: number of poles | F226: 0 | I226: 0
B227: Replacement of overhead conductor – mainly steel | C227: kms | F227: 0 | I227: 0
B228: Service line clearance – overhead services requiring relocation | C228: number of services | F228: 0 | I228: 0
B229: Service line clearance – overhead services requiring undergrounding | C229: number of services | F229: 0 | I229: 0
... 105 more rows

Sheet 7.13 TARC
B2: =dms_TradingName -> Ausgrid
B3: =CONCATENATE("Annual Reporting RIN Response ",CRY) -> Annual Reporting RIN Response 2016-17
B4: 7.13 - TARC
B7: 7.13.1 - TOTAL ANNUAL RETAILER CHARGES
C8: $0's
B9: TARC | C9: 2517685525

Sheet 8.1 Income
B2: =dms_TradingName -> Ausgrid
B3: =CONCATENATE("Annual Reporting RIN Response ",CRY) -> Annual Reporting RIN Response 2016-17
B4: 8.1 - INCOME
B6: 8.1.1 - INCOME STATEMENT
B7: Description | C7: Audited Statutory Accounts | D7: Adjustments | E7: Distribution business | F7: Standard Control Services | G7: Alternative Control Services | L7: Negotiated Services
G8: Public Lighting | I8: Other
G9: =IF(dms_Jurisdiction="Vic","Energy efficient","") ->  | H9: =IF(dms_Jurisdiction="Vic","Non-energy efficient","") ->  | I9: Connection services | J9: Metering services | K9: Ancillary network services
C10: $0's, nominal
B12: 8.1.1.1 - REVENUE
B13: Distribution revenue | C13: 0 | D13: 1698333541 | E13: 1698333541 | F13: 1548992701 | G13: 41588807.08 | I13: 27990855.5 | J13: 64414693.03 | K13: 15346484.08
B14: Cross boundary revenue | C14: 0 | D14: 0 | E14: 0 | F14: 0 | G14: 0 | I14: 0 | J14: 0 | K14: 0
B15: Contributions | C15: 136032556.7 | D15: -11403.59868 | E15: 136021153.1 | F15: 117384197.3 | G15: 13761772.14 | I15: 1805.482361 | J15: 4870030.44 | K15: 3347.78461
B16: Interest income | C16: 2539286.09 | D16: -13686.08161 | E16: 2525600.008 | F16: 2434265.36 | G16: 29845.38004 | I16: 2159.108191 | J16: 55986.04955 | K16: 3344.110799
B17: Jurisdictional scheme amounts | C17: 0 | D17: 180542787.7 | E17: 180542787.7 | F17: 180542787.7 | G17: 0 | I17: 0 | J17: 0 | K17: 0
B18: Profit from sale of fixed assets | C18: 1650016.47 | D18: 0 | E18: 1650016.47 | F18: 1650016.47 | G18: 0 | I18: 0 | J18: 0 | K18: 0
B19: TUOS revenue | C19: 0 | D19: 530532636 | E19: 530532636 | F19: 530532636 | G19: 0 | I19: 0 | J19: 0 | K19: 0
B20: Pass through revenue (F-factor) | C20: 0 | D20: 0 | E20: 0 | F20: 0 | G20: 0 | I20: 0 | J20: 0 | K20: 0
B21: Other Revenue | C21: 2561043419 | D21: -2560649047 | E21: 394372.5407 | F21: 261891.8219 | G21: 131950.7973 | I21: 112.7686471 | J21: 338.930985 | K21: 78.22183299
B22: Total revenue | C22: =SUM(C13:C21) -> 2701265278 | D22: -151265171.6 | E22: 2550000107 | F22: 2381798496 | G22: 55512375.39 | H22: 0 | I22: 27994932.86 | J22: 69341048.45 | K22: 15353254.2 | L22: 0
B24: 8.1.1.2 - EXPENDITURE
B25: TUOS expenditure | C25: 0 | D25: 456175432 | E25: 456175432 | F25: 456175432 | G25: 0 | I25: 0 | J25: 0 | K25: 0
B26: Avoided TUOS expenditure | C26: 0 | D26: 815541.3039 | E26: 815541.3039 | F26: 815541.3039 | G26: 0 | I26: 0 | J26: 0 | K26: 0
B27: Cross boundary expenditure | C27: 0 | D27: 0 | E27: 0 | F27: 0 | G27: 0 | I27: 0 | J27: 0 | K27: 0
B28: Depreciation | C28: 468728366.8 | D28: -5246430.677 | E28: 463481936.1 | F28: 414475667.5 | G28: 11213342.59 | I28: 1404719.49 | J28: 35450274.41 | K28: 937932.1045
B29: Finance charges | C29: 1106236144 | D29: 3010108.143 | E29: 1109246252 | F29: 1069131975 | G29: 13108123.15 | I29: 948282.6499 | J29: 24589133.44 | K29: 1468737.075
B30: Impairment losses | C30: 0 | D30: 0 | E30: 0 | F30: 0 | G30: 0 | I30: 0 | J30: 0 | K30: 0
B31: Jurisdictional scheme amounts | C31: 0 | D31: 164570003.4 | E31: 164570003.4 | F31: 164570003.4 | G31: 0 | I31: 0 | J31: 0 | K31: 0
B32: Loss from sale of fixed assets | C32: 22815326.15 | D32: -3737397.359 | E32: 19077928.79 | F32: 1860636.462 | G32: 49904.5567 | I32: -4607.637317 | J32: 17181477.24 | K32: -9481.831816
B33: Maintenance expenditure | C33: 0 | D33: 191220524.5 | E33: 191220524.5 | F33: 177297828 | G33: 13922696.51 | I33: 0 | J33: 0 | K33: 0
B34: Operating expenditure excluding maintenance expenditure | C34: 0 | D34: 431345569.1 | E34: 431345569.1 | F34: 353839400.7 | G34: 7109779.222 | I34: 34720941.64 | J34: 24433492.05 | K34: 11241955.46
B35: Other | C35: 2162050688 | D35: -1197093693 | E35: 964956994.4 | F35: 930060729.1 | G35: 11403036.16 | I35: 824931.3209 | J35: 21390612.1 | K35: 1277685.736
B37: 8.1.1.3 - PROFIT
B38: Profit before tax (PBT) | C38: =C22-SUM(C25:C35) -> -1058565246 | D38: -192324828.8 | E38: -1250890075 | F38: -1186428718 | G38: -1294506.797 | H38: 0 | I38: -9899334.604 | J38: -53703940.79 | K38: 436425.6558 | L38: 0
B39: Income tax expenses (/ benefit) | C39: 92107341.83 | D39: -10298972.06 | E39: 81808369.77 | F39: 107273430.3 | G39: 13418422.43 | I39: -9806342.652 | J39: -31207777.73 | K39: 2130637.377
B40: Profit after tax | C40: =C38-C39 -> -1150672588 | D40: -182025856.7 | E40: -1332698444 | F40: -1293702148 | G40: -14712929.23 | H40: 0 | I40: -92991.95203 | J40: -22496163.06 | K40: -1694211.721 | L40: =L38-L39 -> 0

Sheet 8.2 Capex
B2: =dms_TradingName -> Ausgrid
B3: =CONCATENATE("Annual Reporting RIN Response ",CRY) -> Annual Reporting RIN Response 2016-17
B4: 8.2 - CAPEX
B6: Instructions
B7: Reported expenditure must EXCLUDE capital contributions (except tables 8.2.1 and 8.2.5 which should include all capital contributions).
B8: =CONCATENATE("Forecast expenditure is to be taken from ",dms_TradingName,"'s ",dms_DeterminationRef,".") -> 
B9: If allocating based on assumptions then provide method in Basis of Preparation. All adjustments must be explained in Basis of Preparation with supporting documentation attached.
B11: For tables 8.2.1 and 8.2.3: Reported expenditure must INCLUDE any profit margins or management fees paid directly or indirectly to related party contractors (not including actual incurred expenses of the related party contractor) for the regulatory reporting period. 'Related Party Margin Expenditure' must COMPRISE ONLY profit margins or management fees paid directly or indirectly to related party contractors (not including actual incurred expenses of the related party contractor) for the regulatory reporting period.
B13: 8.2.1 - CAPEX BY PURPOSE - STANDARD CONTROL SERVICES
B15: Each line item in this table must INCLUDE the capital contributions. Total capital contributions should also be identified in the last item in the table.
B17: Description | C17: EXPENDITURE
C18: CPI adjusted Forecast | D18: Actual | E18: Difference | F18: Related Party Margin | G18: Voltage level
G19: Subtransmission | H19: HV | I19: LV | J19: Other
C20: $0's, nominal | E20: (%) | F20: $0's, nominal
B21: Replacement expenditure | C21: 403545890.6 | D21: 274347496.7 | E21: -0.3201578729 | F21: 0 | G21: 161058746.9 | H21: 60938598.06 | I21: 49823110.25 | J21: 2527041.43
B22: Connections | C22: 38629353.19 | D22: 8065736.51 | E22: -0.7912018752 | F22: 0 | G22: 727075.3573 | H22: 5867215.747 | I22: 1433632.148 | J22: 37813.25679
B23: Augmentation Expenditure | C23: 61161646.08 | D23: 15698547.59 | E23: -0.743326928 | F23: 0 | G23: 8617673.769 | H23: 3843757.798 | I23: 3221710.549 | J23: 15405.48403
B24: Non-network | C24: 71784613.63 | D24: 38172285.31 | E24: -0.4682386185 | F24: 0 | G24: 0 | H24: 0 | I24: 0 | J24: 38172285.31
B25: capitalised network overheads | C25: 140084146 | D25: 118188122 | E25: -0.1563062245 | F25: 0 | G25: 49540574.32 | H25: 41311516.62 | I25: 26711554.53 | J25: 624476.5729
B26: capitalised corporate overheads | C26: 6318170.542 | D26: 3609283.56 | E26: -0.4287454674 | F26: 0 | G26: 0 | H26: 0 | I26: 0 | J26: 3609283.56
B27: Metering | C27: 0 | D27: 0 | E27: 1 | F27: 0 | G27: 0 | H27: 0 | I27: 0 | J27: 0
B28: Public Lighting | C28: 0 | D28: 0 | E28: 1 | F28: 0 | G28: 0 | H28: 0 | I28: 0 | J28: 0
B29: Capital Contributions | C29: 99305484.14 | D29: 115937401.9 | E29: 0.1674823689 | F29: 0 | G29: 15807218.48 | H29: 60800754.74 | I29: 39284003.65 | J29: 45425
B36: Capital contributions included in the above
B37: Total | C37: =SUM(C21:C35) -> 820829304.2 | D37: 574018873.6 | E37: =IF(C37=0,1,(D37-C37)/C37*1) -> -0.3006842341 | G37: =SUM(G21:G35) -> 235751288.9 | H37: =SUM(H21:H35) -> 172761843 | I37: 120474011.1 | J37: 45031730.61
B40: 8.2.2 - CAPEX BY PURPOSE - MATERIAL DIFFERENCE EXPLANATION
B42: Where the difference between forecast and actual expenditure shown in table 8.2.1 is a Material Difference please explain the main factors driving the difference.
B44: Description | C44: Reason for material difference
B45: Replacement expenditure | C45: Reduction in reactive requirements (i.e. conditional & functional breakdowns); Change in strategic options for some key major projects (i.e. CBD); Delays in contract procurement on ADMS project.
B46: Connections | C46: Faster transition to new connection policy (will result in increased Capital Contributions refer to item below). Major customer connection network projects are dependant on customer programs which have been slipping.
B47: Augmentation Expenditure | C47: ○ Impact of risk based assessment criteria and improved program governance of HV & LV Augmentation Programs; ○ CBD projects delayed due to impact of light rail project and street closures restricting access to pit and duct network.
B48: Non-network | C48: Building works and refurbishment deferrals; Reduction in minor assets and mobile plant requirements.
B49: capitalised network overheads | C49: More labour assessed to Opex as a result of a lower overall Capex expenditure.
B50: capitalised corporate overheads | C50: More labour assessed to Opex as a result of a lower overall Capex expenditure.
B51: Metering | C51: NA
B52: Public Lighting | C52: NA
B53: Capital Contributions | C53: ○ Faster transition to new connection policy. Delay impact as Capital Contributions are recognised post asset commissioning; ○ Delays in major connections.
B62: 8.2.3 - CAPEX OTHER
C63: EXPENDITURE
C64: CPI adjusted Forecast | D64: Actual | E64: Difference | F64: Related Party Margin | G64: Voltage level
G65: Subtransmission | H65: HV | I65: LV | J65: Other
C66: $0's, nominal | E66: (%) | F66: $0's, nominal
B67: Public lighting
B68: =IF(dms_Jurisdiction="Vic","Energy Efficient", "Total") ->  | D68: =SUM(G68:J68) -> 9817376.51 | E68: =IF(C68=0,1,((D68-C68)/C68)*1) -> 1 | I68: 9817376.51
B69: =IF(dms_Jurisdiction="Vic","Non-energy efficient", "") ->  | D69: =SUM(G69:J69) -> 0 | E69: =IF(C69=0,1,((D69-C69)/C69)*1) -> 1
B70: Alternative Control Services
B71: Connection services | D71: =SUM(G71:J71) -> 8981143.4 | E71: =IF(C71=0,1,((D71-C71)/C71)*1) -> 1 | I71: 8976922.74 | J71: 4220.66
B72: Metering services | D72: 14269325.3 | E72: =IF(C72=0,1,((D72-C72)/C72)*1) -> 1 | J72: 14269325.3
B73: Ancillary network services | D73: 844965.03 | E73: =IF(C73=0,1,((D73-C73)/C73)*1) -> 1 | J73: 844965.03
B74: Negotiated Services
B75: Negotiated services | D75: =SUM(G75:J75) -> 0 | E75: =IF(C75=0,1,((D75-C75)/C75)*1) -> 1
B76: Total | C76: =SUM(C68:C69,C71:C73,C75) -> 0 | D76: =SUM(D68:D69,D71:D73,D75) -> 33912810.24 | E76: =IF(C76=0,1,((C76-#REF!)/#REF!)*1) -> 1 | G76: =SUM(G68:G69,G71:G73,G75) -> 0 | H76: =SUM(H68:H69,H71:H73,H75) -> 0 | I76: =SUM(I68:I69,I71:I73,I75) -> 18794299.25 | J76: =SUM(J68:J69,J71:J73,J75) -> 15118510.99
B80: 8.2.4 - CAPEX BY ASSET CLASS
B82: =CONCATENATE(dms_TradingName, " to enter in Table 8.2.4 each Asset Class specified in its current determination as listed in the AER's final decision in its Roll Forward Model and Post-tax Revenue Model and enter information against that Asset Class.") -> Ausgrid to enter in Table 8.2.4 each Asset Class specified in its current determination as listed in the AER's final decision in its Roll Forward Model and Post-tax Revenue Model and enter information against that Asset Class.
B84: Asset class | C84: CPI adjusted Forecast | D84: Actual | E84: Difference | F84: Movements in provisions allocated to as-incurred capex
C86: $0's, nominal | E86: (%) | F86: $0's, nominal
E87: =IF(C87=0,1,((D87-C87)/C87)*1) -> 1
B88: Dx Sub-transmission lines and cables | C88: 79166493.06 | D88: 36112239.33 | E88: =IF(C88=0,1,((D88-C88)/C88)*1) -> -0.5438443976 | F88: 13669113.07
B89: Dx Cable tunnel (dx) | C89: 90157.94802 | D89: 1944686.65 | E89: 20.56977496
B90: Dx Distribution lines and cables | C90: 66692181.08 | D90: 97160691.5 | E90: 0.4568528113
B91: Dx Substations | C91: 190811002.7 | D91: 105904890.5 | E91: -0.4449749282 | F91: 5413004.58
B92: Dx Transformers | C92: 42456079.69 | D92: 8475882.93 | E92: -0.8003611499
B93: Dx Ancillary substation equipment (dx) | C93: 26043560.95 | D93: 7732357.19 | E93: -0.7030990807
B94: Dx Low voltage lines and cables | C94: 111893093 | D94: 72137428.37 | E94: -0.3553004349
B95: Dx Customer metering and load control | C95: 0 | D95: 5.31 | E95: 1
B96: Dx Customer metering (digital) | C96: 0 | D96: 0 | E96: 1
B97: Dx Total communications | C97: 0 | D97: 492748.64 | E97: 1
B98: Dx Communications (digital) - dx | C98: 0 | D98: 0 | E98: 1
B99: Dx Land and easements | C99: 5090204.522 | D99: 926981.38 | E99: -0.8178891681
B100: Dx System IT (dx) | C100: 16670104.37 | D100: 3954374.83 | E100: -0.7627864384
B101: Dx Emergency spares (major plant, excludes inventory) | C101: 0 | D101: 0 | E101: 1
E102: 1
E103: 1
B104: Dx IT systems | C104: 22252607.14 | D104: 18902511.18 | E104: -0.15054847
B105: Dx Furniture, fittings, plant and equipment | C105: 7262052.323 | D105: 1290474.68 | E105: -0.8222989008
B106: Dx Motor vehicles | C106: 6248187.332 | D106: 1924929.14 | E106: -0.6919219867
B107: Dx Buildings | C107: 23775154.91 | D107: 10782692.87 | E107: -0.5464722349
B108: Dx Land (non-system) | C108: 0 | D108: 0 | E108: 1
B109: Dx Other non-system assets | C109: 0 | D109: 821084.39 | E109: 1
B110: Dx Equity raising costs | C110: 0 | D110: 0 | E110: 1
E111: 1
E112: 1
E113: 1
E114: 1
B115: Tx Transmission and zone land easements | C115: 3188304.44 | D115: 18261615 | E115: 4.727688602
B116: Tx Transmission building 132/66kV | C116: 18184445.1 | D116: 1041585.47 | E116: -0.9427210748
B117: Tx Zone buildings 132/66kV | C117: 0 | D117: 2687632.98 | E117: =IF(C117=0,1,((D117-C117)/C117)*1) -> 1
B118: Tx Transmission transformers 132/66kV | C118: 5059371.009 | D118: 2005938.48 | E118: -0.6035201854
B119: Tx Zone transformers 132/66kV | C119: 6048485.621 | D119: 1027872.26 | E119: -0.8300612212
B120: Tx Transmission sub-station equipment 132/66kv | C120: 7335738.882 | D120: 33380805.06 | E120: 3.550435286
B121: Tx Zone sub-station equipment 132/66kV | C121: 16320510.34 | D121: 4500733.27 | E121: -0.7242283987
B122: Tx Transmission and zone emergency spares | C122: 0 | D122: 0 | E122: 1
B123: Tx Ancillary substation equipment | C123: 7400543.672 | D123: 4098402.44 | E123: -0.4462025195
B124: Tx 132 kV tower lines | C124: 1996455.151 | D124: 2299847.14 | E124: 0.1519653416
B125: Tx 132kV concrete and steel pole lines | C125: 174597.4555 | D125: 71656.24 | E125: -0.589591728
B126: Tx 132 kV wood pole lines | C126: 2118477.762 | D126: 2677888.7 | E126: 0.2640626908
B127: Tx 132kV feeder underground | C127: 39595169.86 | D127: 32215432.53 | E127: -0.1863797367
B128: Tx Cable tunnel | C128: 23474.35585 | D128: 0 | E128: -1
B129: Tx Network control & communication system | C129: 0 | D129: 0 | E129: 1
B130: Tx Communications (digital) | C130: 0 | D130: 20700.92 | E130: 1
B131: Tx System IT | C131: 5542554.155 | D131: 0 | E131: -1
E132: 1
E133: 1
B134: Tx IT systems | C134: 3769062.016 | D134: 2276279.89 | E134: =IF(C134=0,1,((D134-C134)/C134)*1) -> -0.3960619698
B135: Tx Furniture, fittings, plant and equipment | C135: 1230025.092 | D135: 98427.43 | E135: =IF(C135=0,1,((D135-C135)/C135)*1) -> -0.9199793316
B136: Tx Motor vehicles | C136: 1058299.618 | D136: 144992.6 | E136: =IF(C136=0,1,((D136-C136)/C136)*1) -> -0.8629947535
B137: Tx Buildings | C137: 4026965.905 | D137: 822057.07 | E137: -0.7958619245
B138: Tx Land (non-system) | C138: 0 | D138: 0 | E138: =IF(C138=0,1,((D138-C138)/C138)*1) -> 1
B139: Tx Other non-system assets | C139: 0 | D139: 131725.7 | E139: =IF(C139=0,1,((D139-C139)/C139)*1) -> 1
B140: Tx Equity raising costs | C140: 0 | D140: 0 | E140: 1
E141: 1
E142: 1
B143: Total | C143: =C112+C142 -> 0 | D143: =D112+D142 -> 0 | E143: 1
B146: 8.2.5 - CAPITAL CONTRIBUTIONS BY ASSET CLASS
B147: Asset class | C147: CPI Adjusted Forecast | D147: Actual | E147: Difference
C149: $0's, nominal | E149: (%)
E150: =IF(C150=0,1,((D150-C150)/C150)*1) -> 1
B151: Dx Sub-transmission lines and cables | C151: 5460875.75 | D151: 15807218.48 | E151: =IF(C151=0,1,((D151-C151)/C151)*1) -> 1.894630679
B152: Dx Cable tunnel (dx) | C152: 0 | D152: 0 | E152: 1
B153: Dx Distribution lines and cables | C153: 27235212.7 | D153: 26544732.2 | E153: -0.02535249147
B154: Dx Substations | C154: 10289040.81 | D154: 26109249.39 | E154: 1.537578562
B155: Dx Transformers | C155: 0 | D155: 8146773.15 | E155: 1
B156: Dx Ancillary substation equipment (dx) | C156: 0 | D156: 0 | E156: 1
B157: Dx Low voltage lines and cables | C157: 56320354.88 | D157: 39284003.65 | E157: -0.3024901257
B158: Dx Customer metering and load control | C158: 0 | D158: 0 | E158: 1
B159: Dx Customer metering (digital) | C159: 0 | D159: 0 | E159: 1
B160: Dx Total communications | C160: 0 | D160: 0 | E160: 1
B161: Dx Communications (digital) - dx | C161: 0 | D161: 45425 | E161: 1
B162: Dx Land and easements | C162: 0 | D162: 0 | E162: 1
B163: Dx System IT (dx) | C163: 0 | D163: 0 | E163: 1
B164: Dx Emergency spares / Other (major plant, excludes inventory) | C164: 0 | D164: 0 | E164: 1
E165: 1
E166: 1
B167: Dx IT systems | D167: 0 | E167: 1
B168: Dx Furniture, fittings, plant and equipment | D168: 0 | E168: 1
B169: Dx Motor vehicles | D169: 0 | E169: 1
B170: Dx Buildings | D170: 0 | E170: 1
B171: Dx Land (non-system) | D171: 0 | E171: 1
B172: Dx Other non-system assets | D172: 0 | E172: 1
B173: Dx Equity raising costs | D173: 0 | E173: 1
B174: Dx Sub-total | C174: 0 | D174: 0 | E174: 1
E175: 1
E176: 1
E177: 1
B178: Tx Transmission and zone land easements | D178: 0 | E178: 1
B179: Tx Transmission building 132/66kV | D179: 0 | E179: =IF(C179=0,1,((D179-C179)/C179)*1) -> 1
B180: Tx Zone buildings 132/66kV | D180: 0 | E180: 1
B181: Tx Transmission transformers 132/66kV | D181: 0 | E181: 1
B182: Tx Transmission sub-station equipment 132/66kv | D182: 0 | E182: 1
B183: Tx Zone sub-station equipment 132/66kV | D183: 0 | E183: 1
B184: Tx Transmission and zone emergency spares | D184: 0 | E184: 1
B185: Tx Ancillary substation equipment | D185: 0 | E185: 1
B186: Tx 132 kV tower lines | D186: 0 | E186: 1
B187: Tx 132kV concrete and steel pole lines | D187: 0 | E187: 1
B188: Tx 132 kV wood pole lines | D188: 0 | E188: 1
B189: Tx 132kV feeder underground | D189: 0 | E189: =IF(C189=0,1,((D189-C189)/C189)*1) -> 1
B190: Tx Cable tunnel | D190: 0 | E190: 1
B191: Tx Network control & communication system | D191: 0 | E191: 1
B192: Tx Communications (digital) | D192: 0 | E192: 1
B193: Tx System IT/ Other | D193: 0 | E193: 1
C194: 0 | D194: 0 | E194: 1
C195: 0 | D195: 0 | E195: 1
B196: Tx IT systems | D196: 0 | E196: 1
B197: Tx Furniture, fittings, plant and equipment | D197: 0 | E197: 1
B198: Tx Motor vehicles | D198: 0 | E198: 1
B199: Tx Buildings | D199: 0 | E199: =IF(C199=0,1,((D199-C199)/C199)*1) -> 1
B200: Tx Land (non-system) | D200: 0 | E200: 1
B201: Tx Other non-system assets | D201: 0 | E201: 1
B202: Tx Equity raising costs | D202: 0 | E202: 1
C203: 0 | D203: 0 | E203: 1
C204: 0 | D204: 0 | E204: 1
B205: Total | C205: =SUM(dms_080205_01_Values) -> 99305484.14 | D205: =SUM(dms_080205_02_Values) -> 115937401.9 | E205: 0.1674823689
B208: 8.2.6 - DISPOSALS BY ASSET CLASS
B209: Asset class | C209: CPI Adjusted Forecast | D209: Actual | E209: Difference
C211: $0's, nominal | E211: (%)
E212: =IF(C212=0,1,((D212-C212)/C212)*1) -> 1
B213: Dx Sub-transmission lines and cables | C213: 0 | D213: 0 | E213: =IF(C213=0,1,((D213-C213)/C213)*1) -> 1
B214: Dx Cable tunnel (dx) | C214: 0 | D214: 0 | E214: 1
B215: Dx Distribution lines and cables | C215: 0 | D215: 0 | E215: 1
B216: Dx Substations | C216: 0 | D216: 0 | E216: 1
B217: Dx Transformers | C217: 0 | D217: 0 | E217: 1
B218: Dx Ancillary substation equipment (dx) | C218: 0 | D218: 0 | E218: 1
B219: Dx Low voltage lines and cables | C219: 0 | D219: 0 | E219: 1
B220: Dx Customer metering and load control | C220: 0 | D220: 0 | E220: 1
B221: Dx Customer metering (digital) | C221: 0 | D221: 0 | E221: 1
B222: Dx Total communications | C222: 0 | D222: 0 | E222: 1
B223: Dx Communications (digital) - dx | C223: 0 | D223: 0 | E223: 1
B224: Dx Land and easements | C224: 16058686.68 | D224: 5588231.71 | E224: -0.6520119097
B225: Dx System IT (dx) | C225: 0 | D225: 0 | E225: 1
B226: Dx Emergency spares / Other (major plant, excludes inventory) | C226: 0 | D226: 0 | E226: 1
E227: 1
E228: 1
B229: Dx IT systems | C229: 0 | D229: 0 | E229: 1
B230: Dx Furniture, fittings, plant and equipment | C230: 0 | D230: 0 | E230: 1
B231: Dx Motor vehicles | C231: 2771713.437 | D231: 3121454.164 | E231: 0.1261821376
B232: Dx Buildings | C232: 0 | D232: 0 | E232: 1
B233: Dx Land (non-system) | C233: 0 | D233: 10732702.89 | E233: 1
B234: Dx Other non-system assets | C234: 0 | D234: 0 | E234: 1
B235: Dx Equity raising costs | C235: 0 | D235: 0 | E235: 1
E236: 1
... 31 more rows

Sheet 8.4 Opex
B2: =dms_TradingName -> Ausgrid
B3: =CONCATENATE("Annual Reporting RIN Response ",CRY) -> Annual Reporting RIN Response 2016-17
B4: 8.4 OPEX
B6: Instructions
B8: If allocating based on assumptions then provide method in Basis of Preparation. All adjustments must be explained in Basis of Preparation with supporting documentation attached.
B10: 8.4.1 - OPERATING & MAINTENANCE EXPENDITURE - BY PURPOSE
B13: =CONCATENATE(dms_TradingName," is to list the operating expenditure categories identified in ", dms_TradingName,"'s regulatory proposal at table 3.2.1.1 current opex categories and cost allocations.") -> Ausgrid is to list the operating expenditure categories identified in Ausgrid's regulatory proposal at table 3.2.1.1 current opex categories and cost allocations.
B14: =CONCATENATE(dms_TradingName, " must specify any expenditure category where the expense is more than 5 per cent of the total standard control services operating expenditure.") -> Ausgrid must specify any expenditure category where the expense is more than 5 per cent of the total standard control services operating expenditure.
B15: Reported operating expenditure must INCLUDE any profit margins or management fees paid directly or indirectly to related party contractors (not including actual incurred expenditure of the related party contractor) for the regulatory reporting period.
B17: Opex category | C17: Audited Statutory Accounts | D17: Adjustments | E17: Distribution business | F17: Standard Control Services | I17: Alternative Control Services | N17: Negotiated Services
F18: CPI Adjusted Forecast | G18: Actual | H18: Difference | I18: Public Lighting | K18: Other
I19: =IF(dms_Jurisdiction="Vic","Energy efficient","") ->  | J19: =IF(dms_Jurisdiction="Vic","Non-energy efficient","") ->  | K19: Connection services | L19: Metering services | M19: Ancillary network services
C20: $0's, nominal | H20: % | I20: $0's, nominal
B21: Contact Centre | D21: 6473510.14 | E21: 6473510.14 | G21: 6354397.553 | H21: 1 | I21: 119112.5866 | K21: 0 | L21: 0 | M21: 0
B22: Customer Operations | D22: 32148065.73 | E22: 32148065.73 | G22: 9187656.97 | H22: 1 | I22: 0 | K22: 22077001.6 | L22: 0 | M22: 883407.16
B23: Data Operations | D23: 10155567.78 | E23: 10155567.78 | G23: 7908285.763 | H23: 1 | I23: 0 | K23: 86.13 | L23: 0 | M23: 2247195.887
B24: Engineering, Planning & Project Management | D24: 43676313.68 | E24: 43676313.68 | G24: 37969258.63 | H24: 1 | I24: 1580067.523 | K24: 4119850.869 | L24: 6998.821858 | M24: 137.8391764
B25: Finance Function | D25: -17674861.84 | E25: -17674861.84 | G25: -14724061.8 | H25: 1 | I25: -582801.2053 | K25: -1945524.682 | L25: -339623.0803 | M25: -82851.07479
B26: Information Communication & Technology | D26: 57701364.33 | E26: 57701364.33 | G26: 51708512.21 | H26: 1 | I26: 332860.601 | K26: 161055.4607 | L26: 4987961.237 | M26: 510974.8197
B27: Insurance | D27: 5283328.171 | E27: 5283328.171 | G27: 5007585.469 | H27: 1 | I27: 67991.58506 | K27: 48627.82415 | L27: 132440.6872 | M27: 26682.60507
B28: Management | D28: 150845197.7 | E28: 150845197.7 | G28: 133968108.2 | H28: 1 | I28: 3794898.941 | K28: 8528725.508 | L28: 3718144.878 | M28: 835320.1418
B29: Metering | D29: 21081597.21 | E29: 21081597.21 | G29: 1470767.8 | H29: 1 | I29: 0 | K29: 0 | L29: 13266342.89 | M29: 6344486.517
B30: System Control | D30: 21062186.56 | E30: 21062186.56 | G30: 21062186.56 | H30: 1 | I30: 0 | K30: 0 | L30: 0 | M30: 0
B31: Network maintenance costs | D31: 191220524.5 | E31: 191220524.5 | G31: 177297828 | H31: 1 | I31: 13922696.51 | K31: 0 | L31: 0 | M31: 0
B32: Demand Management | D32: 799271.36 | E32: 799271.36 | G32: 799271.36 | H32: 1 | I32: 0 | K32: 0 | L32: 0 | M32: 0
B33: Operational Technology | D33: 11638382.36 | E33: 11638382.36 | G33: 11199614.27 | H33: 1 | I33: 72980.7764 | K33: 28975.78327 | L33: 298026.942 | M33: 38784.58971
B34: Other | D34: 23336801.24 | E34: 23336801.24 | G34: 21278330.86 | H34: 1 | I34: 983894.9122 | K34: 652769.4948 | L34: 337041.0633 | M34: 84764.91417
B35: Property Management | D35: 51482566.26 | E35: 51482566.26 | G35: 48971755.64 | H35: 1 | I35: 370627.4338 | K35: 175405.9683 | L35: 1689178.822 | M35: 275598.4011
B36: Training & Development | D36: 13336278.41 | E36: 13336278.41 | G36: 11677731.21 | H36: 1 | I36: 370146.0692 | K36: 873967.6833 | L36: 336979.7862 | M36: 77453.65722
B37: Total | C37: =SUM(C21:C36) -> 0 | D37: =SUM(D21:D36) -> 622566093.6 | E37: =SUM(E21:E36) -> 622566093.6 | F37: =SUM(F21:F36) -> 0 | G37: =SUM(G21:G36) -> 531137228.7 | H37: =IF(F37=0,1,((G37-F37)/F37)*1) -> 1 | I37: =SUM(I21:I36) -> 21032475.73 | J37: 0 | K37: 34720941.64 | L37: 24433492.05 | M37: 11241955.46 | N37: 0
B40: 8.4.2 - OPERATING & MAINTENANCE EXPENDITURE - BY PURPOSE - MARGINS ONLY
B42: "Related party margin expenditure' must COMPRISE ONLY profit margins or management fees paid directly or indirectly to related party contractors (for expenditure that is not an actual incurred expenditure of the related party contractor) for the regulatory reporting period.
B44: Opex category | C44: Audited Statutory Accounts | D44: Adjustments | E44: Distribution business | F44: Standard Control Services | I44: Alternative Control Services | N44: Negotiated Services
F45: CPI Adjusted Forecast | G45: Actual | H45: Difference | I45: Public Lighting | K45: Other
I46: =IF(dms_Jurisdiction="Vic","Energy efficient","") ->  | J46: =IF(dms_Jurisdiction="Vic","Non-energy efficient","") ->  | K46: Connection services | L46: Metering services | M46: Ancillary network services
C47: $0's, nominal | G47: $0's, nominal | H47: per cent | I47: $0's, nominal
B48: =IF(ISBLANK(B21),"",B21) -> Contact Centre | H48: =IF(F48=0,1,((G48-F48)/F48)*1) -> 1
B49: Customer Operations | H49: 1
B50: Data Operations | H50: 1
B51: Engineering, Planning & Project Management | H51: 1
B52: Finance Function | H52: 1
B53: Information Communication & Technology | H53: 1
B54: Insurance | H54: 1
B55: Management | H55: 1
B56: Metering | H56: 1
B57: System Control | H57: 1
B58: Network maintenance costs | H58: 1
B59: Demand Management | H59: 1
B60: Operational Technology | H60: 1
B61: Other | H61: 1
B62: Property Management | H62: 1
B63: Training & Development | H63: =IF(F63=0,1,((G63-F63)/F63)*1) -> 1
B64: Total | C64: =SUM(C48:C63) -> 0 | D64: =SUM(D48:D63) -> 0 | E64: =SUM(E48:E63) -> 0 | F64: =SUM(F48:F63) -> 0 | G64: =SUM(G48:G63) -> 0 | H64: 1 | I64: =SUM(I48:I63) -> 0 | J64: 0 | K64: 0 | L64: 0 | M64: 0 | N64: 0
B67: 8.4.3 - OPERATING & MAINTENANCE EXPENDITURE - EXPLANATION OF MATERIAL DIFFERENCE
B69: Where the difference between forecast and actual expenditure shown in table 8.4.1, column I is a Material Difference please explain the main factors driving the difference.
B71: Category | C71: Explanation
B72: Contact Centre | C72: Ausgrid would use the operating expenditure forecast from the April 2015 determination as a reference point for comparison. On 24 May 2017, the Full Federal Court partly upheld the AER's appeal in relation to the Australian Competition Tribunal's decision to set aside the AER's April 2015 Revenue Determination. A consequence of the Tribunal's decision is that there is no distribution determination for the 2014-19 period and as such it is not strictly correct to compare Ausgrid's actual expenditure outturn with the opex determined in the April 2015 decision. Operating expenditure is in line or below management expectations for the year. The AER has not provided Ausgrid with the split of the "CPI Adjusted Forecast" between opex categories. As a result Ausgrid is unable to determine in which categories were overspent.
B73: Customer Operations | C73: Ausgrid would use the operating expenditure forecast from the April 2015 determination as a reference point for comparison. On 24 May 2017, the Full Federal Court partly upheld the AER's appeal in relation to the Australian Competition Tribunal's decision to set aside the AER's April 2015 Revenue Determination. A consequence of the Tribunal's decision is that there is no distribution determination for the 2014-19 period and as such it is not strictly correct to compare Ausgrid's actual expenditure outturn with the opex determined in the April 2015 decision. Operating expenditure is in line or below management expectations for the year. The AER has not provided Ausgrid with the split of the "CPI Adjusted Forecast" between opex categories. As a result Ausgrid is unable to determine in which categories were overspent.
B74: Data Operations | C74: Ausgrid would use the operating expenditure forecast from the April 2015 determination as a reference point for comparison. On 24 May 2017, the Full Federal Court partly upheld the AER's appeal in relation to the Australian Competition Tribunal's decision to set aside the AER's April 2015 Revenue Determination. A consequence of the Tribunal's decision is that there is no distribution determination for the 2014-19 period and as such it is not strictly correct to compare Ausgrid's actual expenditure outturn with the opex determined in the April 2015 decision. Operating expenditure is in line or below management expectations for the year. The AER has not provided Ausgrid with the split of the "CPI Adjusted Forecast" between opex categories. As a result Ausgrid is unable to determine in which categories were overspent.
B75: Engineering, Planning & Project Management | C75: Ausgrid would use the operating expenditure forecast from the April 2015 determination as a reference point for comparison. On 24 May 2017, the Full Federal Court partly upheld the AER's appeal in relation to the Australian Competition Tribunal's decision to set aside the AER's April 2015 Revenue Determination. A consequence of the Tribunal's decision is that there is no distribution determination for the 2014-19 period and as such it is not strictly correct to compare Ausgrid's actual expenditure outturn with the opex determined in the April 2015 decision. Operating expenditure is in line or below management expectations for the year. The AER has not provided Ausgrid with the split of the "CPI Adjusted Forecast" between opex categories. As a result Ausgrid is unable to determine in which categories were overspent.
B76: Finance Function | C76: Ausgrid would use the operating expenditure forecast from the April 2015 determination as a reference point for comparison. On 24 May 2017, the Full Federal Court partly upheld the AER's appeal in relation to the Australian Competition Tribunal's decision to set aside the AER's April 2015 Revenue Determination. A consequence of the Tribunal's decision is that there is no distribution determination for the 2014-19 period and as such it is not strictly correct to compare Ausgrid's actual expenditure outturn with the opex determined in the April 2015 decision. Operating expenditure is in line or below management expectations for the year. The AER has not provided Ausgrid with the split of the "CPI Adjusted Forecast" between opex categories. As a result Ausgrid is unable to determine in which categories were overspent.
B77: Information Communication & Technology | C77: Ausgrid would use the operating expenditure forecast from the April 2015 determination as a reference point for comparison. On 24 May 2017, the Full Federal Court partly upheld the AER's appeal in relation to the Australian Competition Tribunal's decision to set aside the AER's April 2015 Revenue Determination. A consequence of the Tribunal's decision is that there is no distribution determination for the 2014-19 period and as such it is not strictly correct to compare Ausgrid's actual expenditure outturn with the opex determined in the April 2015 decision. Operating expenditure is in line or below management expectations for the year. The AER has not provided Ausgrid with the split of the "CPI Adjusted Forecast" between opex categories. As a result Ausgrid is unable to determine in which categories were overspent.
B78: Management | C78: Ausgrid would use the operating expenditure forecast from the April 2015 determination as a reference point for comparison. On 24 May 2017, the Full Federal Court partly upheld the AER's appeal in relation to the Australian Competition Tribunal's decision to set aside the AER's April 2015 Revenue Determination. A consequence of the Tribunal's decision is that there is no distribution determination for the 2014-19 period and as such it is not strictly correct to compare Ausgrid's actual expenditure outturn with the opex determined in the April 2015 decision. Expenditure in this category is above management's expectations for the year. The overspend relates to the transformation program, redundancy expenditure and the career transition program.
B79: Metering | C79: Ausgrid would use the operating expenditure forecast from the April 2015 determination as a reference point for comparison. On 24 May 2017, the Full Federal Court partly upheld the AER's appeal in relation to the Australian Competition Tribunal's decision to set aside the AER's April 2015 Revenue Determination. A consequence of the Tribunal's decision is that there is no distribution determination for the 2014-19 period and as such it is not strictly correct to compare Ausgrid's actual expenditure outturn with the opex determined in the April 2015 decision. Operating expenditure is in line or below management expectations for the year. The AER has not provided Ausgrid with the split of the "CPI Adjusted Forecast" between opex categories. As a result Ausgrid is unable to determine in which categories were overspent.
B80: System Control | C80: Ausgrid would use the operating expenditure forecast from the April 2015 determination as a reference point for comparison. On 24 May 2017, the Full Federal Court partly upheld the AER's appeal in relation to the Australian Competition Tribunal's decision to set aside the AER's April 2015 Revenue Determination. A consequence of the Tribunal's decision is that there is no distribution determination for the 2014-19 period and as such it is not strictly correct to compare Ausgrid's actual expenditure outturn with the opex determined in the April 2015 decision. Operating expenditure is in line or below management expectations for the year. The AER has not provided Ausgrid with the split of the "CPI Adjusted Forecast" between opex categories. As a result Ausgrid is unable to determine in which categories were overspent.
B81: Demand Management | C81: Ausgrid would use the operating expenditure forecast from the April 2015 determination as a reference point for comparison. On 24 May 2017, the Full Federal Court partly upheld the AER's appeal in relation to the Australian Competition Tribunal's decision to set aside the AER's April 2015 Revenue Determination. A consequence of the Tribunal's decision is that there is no distribution determination for the 2014-19 period and as such it is not strictly correct to compare Ausgrid's actual expenditure outturn with the opex determined in the April 2015 decision. Operating expenditure is in line or below management expectations for the year. The AER has not provided Ausgrid with the split of the "CPI Adjusted Forecast" between opex categories. As a result Ausgrid is unable to determine in which categories were overspent.
B82: Operational Technology | C82: Ausgrid would use the operating expenditure forecast from the April 2015 determination as a reference point for comparison. On 24 May 2017, the Full Federal Court partly upheld the AER's appeal in relation to the Australian Competition Tribunal's decision to set aside the AER's April 2015 Revenue Determination. A consequence of the Tribunal's decision is that there is no distribution determination for the 2014-19 period and as such it is not strictly correct to compare Ausgrid's actual expenditure outturn with the opex determined in the April 2015 decision. Operating expenditure is in line or below management expectations for the year. The AER has not provided Ausgrid with the split of the "CPI Adjusted Forecast" between opex categories. As a result Ausgrid is unable to determine in which categories were overspent.
B83: Other | C83: Ausgrid would use the operating expenditure forecast from the April 2015 determination as a reference point for comparison. On 24 May 2017, the Full Federal Court partly upheld the AER's appeal in relation to the Australian Competition Tribunal's decision to set aside the AER's April 2015 Revenue Determination. A consequence of the Tribunal's decision is that there is no distribution determination for the 2014-19 period and as such it is not strictly correct to compare Ausgrid's actual expenditure outturn with the opex determined in the April 2015 decision. Operating expenditure is in line or below management expectations for the year. The AER has not provided Ausgrid with the split of the "CPI Adjusted Forecast" between opex categories. As a result Ausgrid is unable to determine in which categories were overspent.
B84: Property Management | C84: Ausgrid would use the operating expenditure forecast from the April 2015 determination as a reference point for comparison. On 24 May 2017, the Full Federal Court partly upheld the AER's appeal in relation to the Australian Competition Tribunal's decision to set aside the AER's April 2015 Revenue Determination. A consequence of the Tribunal's decision is that there is no distribution determination for the 2014-19 period and as such it is not strictly correct to compare Ausgrid's actual expenditure outturn with the opex determined in the April 2015 decision. Operating expenditure is in line or below management expectations for the year. The AER has not provided Ausgrid with the split of the "CPI Adjusted Forecast" between opex categories. As a result Ausgrid is unable to determine in which categories were overspent.
B85: Training & Development | C85: Ausgrid would use the operating expenditure forecast from the April 2015 determination as a reference point for comparison. On 24 May 2017, the Full Federal Court partly upheld the AER's appeal in relation to the Australian Competition Tribunal's decision to set aside the AER's April 2015 Revenue Determination. A consequence of the Tribunal's decision is that there is no distribution determination for the 2014-19 period and as such it is not strictly correct to compare Ausgrid's actual expenditure outturn with the opex determined in the April 2015 decision. Operating expenditure is in line or below management expectations for the year. The AER has not provided Ausgrid with the split of the "CPI Adjusted Forecast" between opex categories. As a result Ausgrid is unable to determine in which categories were overspent.
B86: Total | C86: Operating and maintenance expenditure is generally in line with management expectations. The AER has not provided Ausgrid with the split of the "CPI Adjusted Forecast" between opex categories. As a result, we are unable to determine in which categories we have overspent.

Sheet 9.5 TUoS
B2: =dms_TradingName -> Ausgrid
B3: =CONCATENATE("Annual Reporting RIN Response ",CRY) -> Annual Reporting RIN Response 2016-17
B4: 9.5 - TUoS AUDIT (t-2)
B6: This template collects information for annual pricing proposals from Victorian businesses only.
B8: 9.5.1 - TUOS CHARGES (AEMO)
F9: =CRY -> 2016-17
E14: Total | F14: =SUM(F10:F13) -> 0
B16: 9.5.2 - TRANSMISSION CONNECTION FEES
F17: =CRY -> 2016-17
E22: Total | F22: =SUM(F18:F21) -> 0
B24: 9.5.3 - CROSS BOUNDARY NETWORK CHARGES
B25: Distribution Business | C25: Amount (payable)/receivable
C26: $0's, nominal
C27: HV crossings | D27: Subtransmission crossings | E27: TUoS Adjustment | F27: Total
F28: =CRY -> 2016-17
F29: =IF((SUM(C29:E29)=0),"",(SUM(C29:E29))) -> 
F30: =IF((SUM(C30:E30)=0),"",(SUM(C30:E30))) -> 
B37: Total
B39: 9.5.4 - PAYMENTS TO EMBEDDED GENERATORS
B40: 9.5.4.1 - AVOIDED TRANSMISSION COSTS | F40: =CRY -> 2016-17
B49: Total | F49: =SUM(F41:F48) -> 0
B50: 9.5.4.2 - AVOIDED TUoS USAGE CHARGES | F50: =CRY -> 2016-17
B59: Total | F59: =SUM(F51:F58) -> 0
B60: Total payments to embedded generators | F60: =F59+F49 -> 0
